Workbook

Sheet Sverigeranking
B1: Svenska Hästskokastarförbundets Sverigeranking | X1: Antal kastare som deltagit i samtliga tävlingar senaste 12 månaderna: | Y1: =COUNTIF(F5:F199,16) -> 5
B3: SLUTSTÄLLNING 2016/2017 | I3: =IF(SUM(I5:I400)>100,1,"") -> 1 | J3: 1 | K3: 1 | L3: 1 | M3: 1 | N3: 1 | O3: 1 | P3: 1 | Q3: 1 | R3: 1 | S3: 1 | T3: 1 | U3: 1 | V3: 1 | X3: 1 | Y3: 1 | Z3: 1 | AA3: 1
A4: Plac. | B4: Kastare | C4: Klubb | D4: Rankingpoäng | F4: Antal tävlingar | G4: Snitt per serie | I4: Växjö Open | J4: Björkenäs Open | K4: Utomhus-SM Dag 1 | L4: Utomhus-SM Dag 2 | M4: Utomhus Smålandsmästaren | N4: Carlskrona Cup | O4: Gotland Open | P4: Septemberskon | Q4: Dynapac Open | R4: Blekinge-DM Ute | S4: Åseda Open | T4: Höstskon Nybro | U4: Novemberkampen | V4: Inomhus-SM | X4: Inomhus Smålandsmästaren | Y4: Blekinge DM inne | Z4: Värendspokalen | AA4: Tingsryds Open | AB4: Antal arrangerade tävlingar | AC4: Ej medräknat resultat | AD4: Ej medräknat resultat | BH4: 1 | BI4: 2 | BJ4: 3 | BK4: 4 | BL4: 5 | BM4: 6 | BN4: 7 | BO4: 8 | BP4: 9 | BQ4: 10 | BR4: 11 | BS4: 12 | BT4: 13 | BU4: 14 | BV4: 15 | BW4: 16 | BX4: ej medräknad | BZ4: missade tävlingar
A5: =IF(BE5>1,AF5&" ("&AE5&")",AF5&" ("&AG5&")") -> 1 (1) | B5: Sandor Bodi | C5: Växjö | D5: =SUM(BH5:BT5) -> 5105 | F5: =COUNT(I5:AA5) -> 15 | G5: =SUM((CB5)/(F5*2)) -> 190.4666667 | I5: 408 | J5: 318 | K5: 454 | L5: 291 | M5: 380 | N5: 424 | P5: 322 | Q5: 329 | S5: 393 | T5: 361 | U5: 401 | V5: 420 | X5: 386 | Z5: 409 | AA5: 418 | AB5: =SUM($I$3:$AA$3) -> 18 | AC5: =BX5 -> 291 | AD5: =BY5 -> - | AE5: 1 | AF5: 1 | AG5: =IF(F5>1,ROW(1:1),"-") -> 1 | AH5: 1 | AK5: =COUNT($I$3,I5,H5) -> 2 | AL5: =COUNT($J$3,J5,I5) -> 3 | AM5: =COUNT($K$3,K5,J5) -> 3 | AN5: =COUNT($L$3,L5,K5) -> 3 | AO5: =COUNT($M$3,M5,L5) -> 3 | AP5: =COUNT($N$3,N5,M5) -> 3 | AQ5: =COUNT($O$3,O5,N5) -> 2 | AR5: =COUNT($P$3,P5,O5) -> 2 | AS5: =COUNT($Q$3,Q5,P5) -> 3 | AT5: =COUNT($R$3,R5,Q5) -> 2 | AU5: =COUNT($S$3,S5,R5) -> 2 | AV5: =COUNT($T$3,T5,S5) -> 3 | AW5: =COUNT($U$3,U5,T5) -> 3 | AX5: =COUNT($V$3,V5,U5) -> 3 | AY5: =COUNT($W$3,W5,V5) -> 1 | AZ5: =COUNT($X$3,X5,W5) -> 2 | BA5: =COUNT($Y$3,Y5,X5) -> 2 | BB5: =COUNT($Z$3,Z5,Y5) -> 2 | BC5: =COUNT($AA$3,AA5,Z5) -> 3 | BE5: =IF(H5="x",1,2) -> 2 | BH5: =IF($F5>0,LARGE($I5:$AA5,1),"") -> 454 | BI5: =IF($F5>1,LARGE($I5:$AA5,2),"") -> 424 | BJ5: =IF($F5>2,LARGE($I5:$AA5,3),"") -> 420 | BK5: =IF($F5>3,LARGE($I5:$AA5,4),"") -> 418 | BL5: =IF($F5>4,LARGE($I5:$AA5,5),"") -> 409 | BM5: =IF($F5>5,LARGE($I5:$AA5,6),"") -> 408 | BN5: =IF($F5>6,LARGE($I5:$AA5,7),"") -> 401 | BO5: =IF($F5>7,LARGE($I5:$AA5,8),"") -> 393 | BP5: =IF($F5>8,LARGE($I5:$AA5,9),"") -> 386 | BQ5: =IF($F5>9,LARGE($I5:$AA5,10),"") -> 380 | BR5: =IF($F5>10,LARGE($I5:$AA5,11),"") -> 361 | BS5: =IF($F5>11,LARGE($I5:$AA5,12),"") -> 329 | BT5: =IF($F5>12,LARGE($I5:$AA5,13),"") -> 322 | BU5: =IF($F5>13,LARGE($I5:$AA5,14),"") -> 318 | BV5: =IF($F5>14,LARGE($I5:$AA5,15),"") -> 291 | BW5: =IF($F5>15,LARGE($I5:$AA5,16),"") ->  | BX5: =IF($F5>14,LARGE($I5:$AA5,15),"-") -> 291 | BY5: =IF($F5>15,LARGE($I5:$AA5,16),"-") -> - | BZ5: =SUM(AB5-F5)-3 -> 0 | CB5: =SUM(BH5:BW5) -> 5714 | EM5: 1 | EO5: =IF(BE5>=1,AF5,"") -> 1 | EP5: =IF(BE5>1,"("&AE5&")","("&AG5&")") -> (1)
A6: 2 (2) | B6: Olle Ottosson | C6: Dynapac | D6: 4499 | F6: 15 | G6: 166.2333333 | I6: 247 | J6: 241 | K6: 286 | L6: 280 | N6: 371 | P6: 433 | Q6: 342 | R6: 355 | S6: 292 | T6: 306 | U6: 360 | V6: 398 | Y6: 377 | Z6: 370 | AA6: 329 | AB6: 18 | AC6: 241 | AD6: - | AE6: 2 | AF6: =IF(D6<D5,AH6,AF5) -> 2 | AG6: 2 | AH6: 2 | AK6: =COUNT($I$3,I6,H6) -> 2 | AL6: =COUNT($J$3,J6,I6) -> 3 | AM6: =COUNT($K$3,K6,J6) -> 3 | AN6: =COUNT($L$3,L6,K6) -> 3 | AO6: =COUNT($M$3,M6,L6) -> 2 | AP6: =COUNT($N$3,N6,M6) -> 2 | AQ6: =COUNT($O$3,O6,N6) -> 2 | AR6: =COUNT($P$3,P6,O6) -> 2 | AS6: =COUNT($Q$3,Q6,P6) -> 3 | AT6: =COUNT($R$3,R6,Q6) -> 3 | AU6: =COUNT($S$3,S6,R6) -> 3 | AV6: =COUNT($T$3,T6,S6) -> 3 | AW6: =COUNT($U$3,U6,T6) -> 3 | AX6: =COUNT($V$3,V6,U6) -> 3 | AY6: =COUNT($W$3,W6,V6) -> 1 | AZ6: =COUNT($X$3,X6,W6) -> 1 | BA6: =COUNT($Y$3,Y6,X6) -> 2 | BB6: =COUNT($Z$3,Z6,Y6) -> 3 | BC6: =COUNT($AA$3,AA6,Z6) -> 3 | BE6: 2 | BH6: =IF($F6>0,LARGE($I6:$AA6,1),"") -> 433 | BI6: =IF($F6>1,LARGE($I6:$AA6,2),"") -> 398 | BJ6: =IF($F6>2,LARGE($I6:$AA6,3),"") -> 377 | BK6: =IF($F6>3,LARGE($I6:$AA6,4),"") -> 371 | BL6: =IF($F6>4,LARGE($I6:$AA6,5),"") -> 370 | BM6: =IF($F6>5,LARGE($I6:$AA6,6),"") -> 360 | BN6: =IF($F6>6,LARGE($I6:$AA6,7),"") -> 355 | BO6: =IF($F6>7,LARGE($I6:$AA6,8),"") -> 342 | BP6: =IF($F6>8,LARGE($I6:$AA6,9),"") -> 329 | BQ6: =IF($F6>9,LARGE($I6:$AA6,10),"") -> 306 | BR6: =IF($F6>10,LARGE($I6:$AA6,11),"") -> 292 | BS6: =IF($F6>11,LARGE($I6:$AA6,12),"") -> 286 | BT6: =IF($F6>12,LARGE($I6:$AA6,13),"") -> 280 | BU6: =IF($F6>13,LARGE($I6:$AA6,14),"") -> 247 | BV6: =IF($F6>14,LARGE($I6:$AA6,15),"") -> 241 | BW6: =IF($F6>15,LARGE($I6:$AA6,16),"") ->  | BX6: =IF($F6>14,LARGE($I6:$AA6,15),"-") -> 241 | BY6: =IF($F6>15,LARGE($I6:$AA6,16),"-") -> - | BZ6: 0 | CB6: 4987 | EM6: 2 | EO6: 2 | EP6: (2)
A7: 3 (3) | B7: Gert Karlsson | C7: Korpen Åseda | D7: 4253 | F7: 16 | G7: 156.75 | I7: 261 | J7: 300 | K7: 300 | L7: 332 | M7: 274 | N7: 316 | O7: 228 | P7: 330 | Q7: 374 | S7: 276 | T7: 359 | U7: 332 | V7: 316 | X7: 352 | Z7: 352 | AA7: 314 | AB7: 18 | AC7: 261 | AD7: 228 | AE7: 3 | AF7: =IF(D7<D6,AH7,AF6) -> 3 | AG7: 3 | AH7: 3 | AK7: 2 | AL7: 3 | AM7: 3 | AN7: 3 | AO7: 3 | AP7: 3 | AQ7: 3 | AR7: 3 | AS7: 3 | AT7: 2 | AU7: 2 | AV7: 3 | AW7: 3 | AX7: 3 | AY7: 1 | AZ7: 2 | BA7: 2 | BB7: 2 | BC7: 3 | BE7: 2 | BH7: =IF($F7>0,LARGE($I7:$AA7,1),"") -> 374 | BI7: =IF($F7>1,LARGE($I7:$AA7,2),"") -> 359 | BJ7: =IF($F7>2,LARGE($I7:$AA7,3),"") -> 352 | BK7: =IF($F7>3,LARGE($I7:$AA7,4),"") -> 352 | BL7: =IF($F7>4,LARGE($I7:$AA7,5),"") -> 332 | BM7: =IF($F7>5,LARGE($I7:$AA7,6),"") -> 332 | BN7: =IF($F7>6,LARGE($I7:$AA7,7),"") -> 330 | BO7: =IF($F7>7,LARGE($I7:$AA7,8),"") -> 316 | BP7: =IF($F7>8,LARGE($I7:$AA7,9),"") -> 316 | BQ7: =IF($F7>9,LARGE($I7:$AA7,10),"") -> 314 | BR7: =IF($F7>10,LARGE($I7:$AA7,11),"") -> 300 | BS7: =IF($F7>11,LARGE($I7:$AA7,12),"") -> 300 | BT7: =IF($F7>12,LARGE($I7:$AA7,13),"") -> 276 | BU7: 274 | BV7: 261 | BW7: 228 | BX7: 261 | BY7: 228 | BZ7: -1 | CB7: 5016 | EM7: 3 | EO7: 3 | EP7: (3)
A8: 4 (3) | B8: Tobias Gneupel | C8: Sibbamåla | D8: 4104 | F8: 12 | G8: 171 | I8: 341 | J8: 229 | K8: 223 | L8: 317 | N8: 383 | O8: 223 | P8: 332 | R8: 397 | U8: 396 | V8: 469 | Y8: 403 | Z8: 391 | AB8: 18 | AC8: - | AD8: - | AE8: 3 | AF8: 4 | AG8: 4 | AH8: 4 | AK8: =COUNT($I$3,I8,H8) -> 2 | AL8: =COUNT($J$3,J8,I8) -> 3 | AM8: =COUNT($K$3,K8,J8) -> 3 | AN8: =COUNT($L$3,L8,K8) -> 3 | AO8: =COUNT($M$3,M8,L8) -> 2 | AP8: =COUNT($N$3,N8,M8) -> 2 | AQ8: =COUNT($O$3,O8,N8) -> 3 | AR8: =COUNT($P$3,P8,O8) -> 3 | AS8: =COUNT($Q$3,Q8,P8) -> 2 | AT8: =COUNT($R$3,R8,Q8) -> 2 | AU8: =COUNT($S$3,S8,R8) -> 2 | AV8: =COUNT($T$3,T8,S8) -> 1 | AW8: =COUNT($U$3,U8,T8) -> 2 | AX8: =COUNT($V$3,V8,U8) -> 3 | AY8: =COUNT($W$3,W8,V8) -> 1 | AZ8: =COUNT($X$3,X8,W8) -> 1 | BA8: =COUNT($Y$3,Y8,X8) -> 2 | BB8: =COUNT($Z$3,Z8,Y8) -> 3 | BC8: =COUNT($AA$3,AA8,Z8) -> 2 | BE8: 2 | BH8: =IF($F8>0,LARGE($I8:$AA8,1),"") -> 469 | BI8: =IF($F8>1,LARGE($I8:$AA8,2),"") -> 403 | BJ8: =IF($F8>2,LARGE($I8:$AA8,3),"") -> 397 | BK8: =IF($F8>3,LARGE($I8:$AA8,4),"") -> 396 | BL8: =IF($F8>4,LARGE($I8:$AA8,5),"") -> 391 | BM8: =IF($F8>5,LARGE($I8:$AA8,6),"") -> 383 | BN8: =IF($F8>6,LARGE($I8:$AA8,7),"") -> 341 | BO8: =IF($F8>7,LARGE($I8:$AA8,8),"") -> 332 | BP8: =IF($F8>8,LARGE($I8:$AA8,9),"") -> 317 | BQ8: =IF($F8>9,LARGE($I8:$AA8,10),"") -> 229 | BR8: =IF($F8>10,LARGE($I8:$AA8,11),"") -> 223 | BS8: =IF($F8>11,LARGE($I8:$AA8,12),"") -> 223 | BT8: =IF($F8>12,LARGE($I8:$AA8,13),"") ->  | BU8: =IF($F8>13,LARGE($I8:$AA8,14),"") ->  | BV8: =IF($F8>14,LARGE($I8:$AA8,15),"") ->  | BX8: - | BY8: - | BZ8: 3 | CB8: 4104 | EM8: 4 | EO8: 4 | EP8: (3)
A9: 5 (5) | B9: Ingvar Eriksson | C9: Carlskrona | D9: 4084 | F9: 16 | G9: 150.84375 | I9: 271 | J9: 228 | K9: 264 | L9: 262 | N9: 314 | O9: 259 | P9: 460 | Q9: 287 | R9: 350 | S9: 279 | T9: 256 | U9: 275 | V9: 285 | Y9: 315 | Z9: 396 | AA9: 326 | AB9: 18 | AC9: 256 | AD9: 228 | AE9: 5 | AF9: 5 | AG9: 5 | AH9: 5 | AK9: =COUNT($I$3,I9,H9) -> 2 | AL9: =COUNT($J$3,J9,I9) -> 3 | AM9: =COUNT($K$3,K9,J9) -> 3 | AN9: =COUNT($L$3,L9,K9) -> 3 | AO9: =COUNT($M$3,M9,L9) -> 2 | AP9: =COUNT($N$3,N9,M9) -> 2 | AQ9: =COUNT($O$3,O9,N9) -> 3 | AR9: =COUNT($P$3,P9,O9) -> 3 | AS9: =COUNT($Q$3,Q9,P9) -> 3 | AT9: =COUNT($R$3,R9,Q9) -> 3 | AU9: =COUNT($S$3,S9,R9) -> 3 | AV9: =COUNT($T$3,T9,S9) -> 3 | AW9: =COUNT($U$3,U9,T9) -> 3 | AX9: =COUNT($V$3,V9,U9) -> 3 | AY9: =COUNT($W$3,W9,V9) -> 1 | AZ9: =COUNT($X$3,X9,W9) -> 1 | BA9: =COUNT($Y$3,Y9,X9) -> 2 | BB9: =COUNT($Z$3,Z9,Y9) -> 3 | BC9: =COUNT($AA$3,AA9,Z9) -> 3 | BE9: 2 | BH9: =IF($F9>0,LARGE($I9:$AA9,1),"") -> 460 | BI9: =IF($F9>1,LARGE($I9:$AA9,2),"") -> 396 | BJ9: =IF($F9>2,LARGE($I9:$AA9,3),"") -> 350 | BK9: =IF($F9>3,LARGE($I9:$AA9,4),"") -> 326 | BL9: =IF($F9>4,LARGE($I9:$AA9,5),"") -> 315 | BM9: =IF($F9>5,LARGE($I9:$AA9,6),"") -> 314 | BN9: =IF($F9>6,LARGE($I9:$AA9,7),"") -> 287 | BO9: =IF($F9>7,LARGE($I9:$AA9,8),"") -> 285 | BP9: =IF($F9>8,LARGE($I9:$AA9,9),"") -> 279 | BQ9: =IF($F9>9,LARGE($I9:$AA9,10),"") -> 275 | BR9: =IF($F9>10,LARGE($I9:$AA9,11),"") -> 271 | BS9: =IF($F9>11,LARGE($I9:$AA9,12),"") -> 264 | BT9: =IF($F9>12,LARGE($I9:$AA9,13),"") -> 262 | BU9: =IF($F9>13,LARGE($I9:$AA9,14),"") -> 259 | BV9: =IF($F9>14,LARGE($I9:$AA9,15),"") -> 256 | BW9: 228 | BX9: 256 | BY9: 228 | BZ9: -1 | CB9: 4827 | EM9: 5 | EO9: 5 | EP9: (5)
A10: 6 (6) | B10: Kent Sundahl | C10: Carlskrona | D10: 3966 | F10: 12 | G10: 165.25 | I10: 309 | J10: 349 | K10: 284 | L10: 290 | N10: 363 | Q10: 268 | S10: 203 | U10: 363 | V10: 380 | Y10: 350 | Z10: 415 | AA10: 392 | AB10: 18 | AC10: - | AD10: - | AE10: 6 | AF10: 6 | AG10: 6 | AH10: 6 | AK10: =COUNT($I$3,I10,H10) -> 2 | AL10: =COUNT($J$3,J10,I10) -> 3 | AM10: =COUNT($K$3,K10,J10) -> 3 | AN10: =COUNT($L$3,L10,K10) -> 3 | AO10: =COUNT($M$3,M10,L10) -> 2 | AP10: =COUNT($N$3,N10,M10) -> 2 | AQ10: =COUNT($O$3,O10,N10) -> 2 | AR10: =COUNT($P$3,P10,O10) -> 1 | AS10: =COUNT($Q$3,Q10,P10) -> 2 | AT10: =COUNT($R$3,R10,Q10) -> 2 | AU10: =COUNT($S$3,S10,R10) -> 2 | AV10: =COUNT($T$3,T10,S10) -> 2 | AW10: =COUNT($U$3,U10,T10) -> 2 | AX10: =COUNT($V$3,V10,U10) -> 3 | AY10: =COUNT($W$3,W10,V10) -> 1 | AZ10: =COUNT($X$3,X10,W10) -> 1 | BA10: =COUNT($Y$3,Y10,X10) -> 2 | BB10: =COUNT($Z$3,Z10,Y10) -> 3 | BC10: =COUNT($AA$3,AA10,Z10) -> 3 | BE10: 2 | BH10: =IF($F10>0,LARGE($I10:$AA10,1),"") -> 415 | BI10: =IF($F10>1,LARGE($I10:$AA10,2),"") -> 392 | BJ10: =IF($F10>2,LARGE($I10:$AA10,3),"") -> 380 | BK10: =IF($F10>3,LARGE($I10:$AA10,4),"") -> 363 | BL10: =IF($F10>4,LARGE($I10:$AA10,5),"") -> 363 | BM10: =IF($F10>5,LARGE($I10:$AA10,6),"") -> 350 | BN10: =IF($F10>6,LARGE($I10:$AA10,7),"") -> 349 | BO10: =IF($F10>7,LARGE($I10:$AA10,8),"") -> 309 | BP10: =IF($F10>8,LARGE($I10:$AA10,9),"") -> 290 | BQ10: =IF($F10>9,LARGE($I10:$AA10,10),"") -> 284 | BR10: =IF($F10>10,LARGE($I10:$AA10,11),"") -> 268 | BS10: =IF($F10>11,LARGE($I10:$AA10,12),"") -> 203 | BT10: =IF($F10>12,LARGE($I10:$AA10,13),"") ->  | BU10: =IF($F10>13,LARGE($I10:$AA10,14),"") ->  | BV10: =IF($F10>14,LARGE($I10:$AA10,15),"") ->  | BX10: - | BY10: - | BZ10: 3 | CB10: 3966 | EM10: 6 | EO10: 6 | EP10: (6)
A11: 7 (7) | B11: Matz Karlsson | C11: Korpen Åseda | D11: 3843 | F11: 16 | G11: 139.46875 | I11: 281 | J11: 238 | K11: 262 | L11: 265 | M11: 330 | N11: 268 | O11: 191 | P11: 431 | Q11: 285 | S11: 191 | T11: 362 | U11: 297 | V11: 246 | X11: 324 | Z11: 240 | AA11: 252 | AB11: 18 | AC11: 191 | AD11: 191 | AE11: 7 | AF11: 7 | AG11: 7 | AH11: 7 | AK11: 2 | AL11: 3 | AM11: 3 | AN11: 3 | AO11: 3 | AP11: 3 | AQ11: 3 | AR11: 3 | AS11: 3 | AT11: 2 | AU11: 2 | AV11: 3 | AW11: 3 | AX11: 3 | AY11: 1 | AZ11: 2 | BA11: 2 | BB11: 2 | BC11: 3 | BE11: 2 | BH11: 431 | BI11: 362 | BJ11: 330 | BK11: 324 | BL11: 297 | BM11: 285 | BN11: 281 | BO11: 268 | BP11: 265 | BQ11: 262 | BR11: 252 | BS11: 246 | BT11: 240 | BU11: 238 | BV11: 191 | BW11: 191 | BX11: 191 | BY11: 191 | BZ11: -1 | CB11: 4463 | EM11: 7 | EO11: 7 | EP11: (7)
A12: 8 (8) | B12: Maj-Britt Jarl | C12: Växjö | D12: 3587 | F12: 15 | G12: 133.7 | I12: 217 | J12: 336 | K12: 238 | L12: 213 | M12: 292 | N12: 311 | P12: 326 | Q12: 225 | S12: 278 | T12: 293 | U12: 228 | V12: 237 | X12: 324 | Z12: 282 | AA12: 211 | AB12: 18 | AC12: 211 | AD12: - | AE12: 8 | AF12: 8 | AG12: 8 | AH12: 8 | AK12: 2 | AL12: 3 | AM12: 3 | AN12: 3 | AO12: 3 | AP12: 3 | AQ12: 2 | AR12: 2 | AS12: 3 | AT12: 2 | AU12: 2 | AV12: 3 | AW12: 3 | AX12: 3 | AY12: 1 | AZ12: 2 | BA12: 2 | BB12: 2 | BC12: 3 | BE12: 2 | BH12: 336 | BI12: 326 | BJ12: 324 | BK12: 311 | BL12: 293 | BM12: 292 | BN12: 282 | BO12: 278 | BP12: 238 | BQ12: 237 | BR12: 228 | BS12: 225 | BT12: 217 | BU12: 213 | BV12: 211 | BX12: 211 | BY12: - | BZ12: 0 | CB12: 4011 | EM12: 8 | EO12: 8 | EP12: (8)
A13: 9 (9) | B13: Anders Johansson | C13: Dynapac | D13: 3465 | F13: 15 | G13: 128.9666667 | I13: 260 | J13: 292 | K13: 219 | L13: 228 | N13: 245 | O13: 193 | P13: 255 | Q13: 269 | R13: 216 | T13: 257 | U13: 303 | V13: 380 | Y13: 211 | Z13: 311 | AA13: 230 | AB13: 18 | AC13: 193 | AD13: - | AE13: 9 | AF13: 9 | AG13: 9 | AH13: 9 | AK13: 2 | AL13: 3 | AM13: 3 | AN13: 3 | AO13: 2 | AP13: 2 | AQ13: 3 | AR13: 3 | AS13: 3 | AT13: 3 | AU13: 2 | AV13: 2 | AW13: 3 | AX13: 3 | AY13: 1 | AZ13: 1 | BA13: 2 | BB13: 3 | BC13: 3 | BE13: 2 | BH13: 380 | BI13: 311 | BJ13: 303 | BK13: 292 | BL13: 269 | BM13: 260 | BN13: 257 | BO13: 255 | BP13: 245 | BQ13: 230 | BR13: 228 | BS13: 219 | BT13: 216 | BU13: 211 | BV13: 193 | BX13: 193 | BY13: - | BZ13: 0 | CB13: 3869 | EM13: 9 | EO13: 9 | EP13: (9)
A14: =IF(BE14>1,AF14&" ("&AE14&")",AF14&" ("&AG14&")") -> 10 (10) | B14: Lasse Brincner | C14: Värends Hsk | D14: 3457 | F14: 14 | G14: 128.3928571 | I14: 173 | J14: 138 | K14: 275 | L14: 160 | M14: 270 | N14: 335 | O14: 236 | P14: 345 | Q14: 194 | U14: 273 | V14: 239 | X14: 364 | Z14: 346 | AA14: 247 | AB14: 18 | AC14: - | AD14: - | AE14: 10 | AF14: 10 | AG14: 10 | AH14: 10 | AK14: 2 | AL14: 3 | AM14: 3 | AN14: 3 | AO14: 3 | AP14: 3 | AQ14: 3 | AR14: 3 | AS14: 3 | AT14: 2 | AU14: 1 | AV14: 1 | AW14: 2 | AX14: 3 | AY14: 1 | AZ14: 2 | BA14: 2 | BB14: 2 | BC14: 3 | BE14: 2 | BH14: 364 | BI14: 346 | BJ14: 345 | BK14: 335 | BL14: 275 | BM14: 273 | BN14: 270 | BO14: 247 | BP14: 239 | BQ14: 236 | BR14: 194 | BS14: 173 | BT14: 160 | BU14: 138 | BX14: - | BY14: - | BZ14: 1 | CB14: 3595 | EM14: 10 | EO14: 10 | EP14: (10)
A15: 11 (12) | B15: Peter Olsson | C15: Dynapac | D15: 3348 | F15: 16 | G15: 120.0625 | I15: 318 | J15: 159 | K15: 222 | L15: 203 | N15: 332 | O15: 137 | P15: 260 | Q15: 261 | R15: 280 | S15: 237 | T15: 299 | U15: 217 | V15: 200 | Y15: 280 | Z15: 239 | AA15: 198 | AB15: 18 | AC15: 159 | AD15: 137 | AE15: 12 | AF15: 11 | AG15: 11 | AH15: 11 | AK15: 2 | AL15: 3 | AM15: 3 | AN15: 3 | AO15: 2 | AP15: 2 | AQ15: 3 | AR15: 3 | AS15: 3 | AT15: 3 | AU15: 3 | AV15: 3 | AW15: 3 | AX15: 3 | AY15: 1 | AZ15: 1 | BA15: 2 | BB15: 3 | BC15: 3 | BE15: 2 | BH15: 332 | BI15: 318 | BJ15: 299 | BK15: 280 | BL15: 280 | BM15: 261 | BN15: 260 | BO15: 239 | BP15: 237 | BQ15: 222 | BR15: 217 | BS15: 203 | BT15: 200 | BU15: 198 | BV15: 159 | BW15: 137 | BX15: 159 | BY15: 137 | BZ15: -1 | CB15: 3842 | EM15: 11 | EO15: 11 | EP15: (12)
A16: 12 (10) | B16: Magnus Israelsson | C16: Sibbamåla | D16: 3190 | F16: 11 | G16: 145 | I16: 308 | J16: 269 | K16: 262 | L16: 268 | P16: 270 | Q16: 259 | R16: 344 | U16: 254 | V16: 255 | Y16: 287 | Z16: 414 | AB16: 18 | AC16: - | AD16: - | AE16: 10 | AF16: 12 | AG16: 12 | AH16: 12 | AK16: 2 | AL16: 3 | AM16: 3 | AN16: 3 | AO16: 2 | AP16: 1 | AQ16: 1 | AR16: 2 | AS16: 3 | AT16: 3 | AU16: 2 | AV16: 1 | AW16: 2 | AX16: 3 | AY16: 1 | AZ16: 1 | BA16: 2 | BB16: 3 | BC16: 2 | BE16: 2 | BH16: 414 | BI16: 344 | BJ16: 308 | BK16: 287 | BL16: 270 | BM16: 269 | BN16: 268 | BO16: 262 | BP16: 259 | BQ16: 255 | BR16: 254 | BX16: - | BY16: - | BZ16: 4 | CB16: 3190 | EM16: 12 | EO16: 12 | EP16: (10)
A17: 13 (13) | B17: Mattias Gneupel | C17: Sibbamåla | D17: 3164 | F17: 13 | G17: 121.6923077 | I17: 272 | J17: 240 | K17: 209 | L17: 189 | N17: 267 | O17: 140 | P17: 341 | Q17: 310 | R17: 212 | U17: 207 | V17: 334 | Y17: 202 | Z17: 241 | AB17: 18 | AC17: - | AD17: - | AE17: 13 | AF17: 13 | AG17: 13 | AH17: 13 | AK17: 2 | AL17: 3 | AM17: 3 | AN17: 3 | AO17: 2 | AP17: 2 | AQ17: 3 | AR17: 3 | AS17: 3 | AT17: 3 | AU17: 2 | AV17: 1 | AW17: 2 | AX17: 3 | AY17: 1 | AZ17: 1 | BA17: 2 | BB17: 3 | BC17: 2 | BE17: 2 | BH17: 341 | BI17: 334 | BJ17: 310 | BK17: 272 | BL17: 267 | BM17: 241 | BN17: 240 | BO17: 212 | BP17: 209 | BQ17: 207 | BR17: 202 | BS17: 189 | BT17: 140 | BX17: - | BY17: - | BZ17: 2 | CB17: 3164 | EM17: 13 | EO17: 13 | EP17: (13)
A18: 14 (15) | B18: Bo Petersson | C18: Korpen Nybro | D18: 3080 | F18: 12 | G18: 128.3333333 | J18: 235 | K18: 214 | L18: 256 | N18: 346 | P18: 370 | Q18: 206 | S18: 194 | T18: 285 | U18: 232 | V18: 264 | Z18: 272 | AA18: 206 | AB18: 18 | AC18: - | AD18: - | AE18: 15 | AF18: 14 | AG18: 14 | AH18: 14 | AK18: 1 | AL18: 2 | AM18: 3 | AN18: 3 | AO18: 2 | AP18: 2 | AQ18: 2 | AR18: 2 | AS18: 3 | AT18: 2 | AU18: 2 | AV18: 3 | AW18: 3 | AX18: 3 | AY18: 1 | AZ18: 1 | BA18: 1 | BB18: 2 | BC18: 3 | BE18: 2 | BH18: 370 | BI18: 346 | BJ18: 285 | BK18: 272 | BL18: 264 | BM18: 256 | BN18: 235 | BO18: 232 | BP18: 214 | BQ18: 206 | BR18: 206 | BS18: 194 | BX18: - | BY18: - | BZ18: 3 | CB18: 3080 | EM18: 14 | EO18: 14 | EP18: (15)
A19: 15 (16) | B19: Maire Johansson | C19: Växjö | D19: 3047 | F19: 15 | G19: 110.7666667 | I19: 169 | J19: 188 | K19: 135 | L19: 170 | M19: 320 | N19: 247 | P19: 262 | Q19: 238 | S19: 141 | T19: 227 | U19: 194 | V19: 278 | X19: 211 | Z19: 353 | AA19: 190 | AB19: 18 | AC19: 135 | AD19: - | AE19: 16 | AF19: 15 | AG19: 15 | AH19: 15 | AK19: 2 | AL19: 3 | AM19: 3 | AN19: 3 | AO19: 3 | AP19: 3 | AQ19: 2 | AR19: 2 | AS19: 3 | AT19: 2 | AU19: 2 | AV19: 3 | AW19: 3 | AX19: 3 | AY19: 1 | AZ19: 2 | BA19: 2 | BB19: 2 | BC19: 3 | BE19: 2 | BH19: 353 | BI19: 320 | BJ19: 278 | BK19: 262 | BL19: 247 | BM19: 238 | BN19: 227 | BO19: 211 | BP19: 194 | BQ19: 190 | BR19: 188 | BS19: 170 | BT19: 169 | BU19: 141 | BV19: 135 | BX19: 135 | BY19: - | BZ19: 0 | CB19: 3323 | EM19: 15 | EO19: 15 | EP19: (16)
A20: 16 (17) | B20: Gebriela Kostantinos | C20: Korpen Åseda | D20: 2992 | F20: 12 | G20: 124.6666667 | I20: 176 | M20: 258 | N20: 284 | P20: 333 | Q20: 211 | S20: 204 | T20: 317 | U20: 177 | V20: 293 | X20: 268 | Z20: 254 | AA20: 217 | AB20: 18 | AC20: - | AD20: - | AE20: 17 | AF20: 16 | AG20: 16 | AH20: 16 | AK20: 2 | AL20: 2 | AM20: 1 | AN20: 1 | AO20: 2 | AP20: 3 | AQ20: 2 | AR20: 2 | AS20: 3 | AT20: 2 | AU20: 2 | AV20: 3 | AW20: 3 | AX20: 3 | AY20: 1 | AZ20: 2 | BA20: 2 | BB20: 2 | BC20: 3 | BE20: 2 | BH20: 333 | BI20: 317 | BJ20: 293 | BK20: 284 | BL20: 268 | BM20: 258 | BN20: 254 | BO20: 217 | BP20: 211 | BQ20: 204 | BR20: 177 | BS20: 176 | BX20: - | BY20: - | BZ20: 3 | CB20: 2992 | EM20: 16 | EO20: 16 | EP20: (17)
A21: 17 (18) | B21: Tomas Lindahl | C21: Korpen Åseda | D21: 2939 | F21: 14 | G21: 110.7142857 | I21: 223 | J21: 161 | K21: 178 | L21: 251 | N21: 266 | O21: 205 | Q21: 184 | S21: 178 | T21: 210 | U21: 207 | V21: 242 | X21: 282 | Z21: 278 | AA21: 235 | AB21: 18 | AC21: - | AD21: - | AE21: 18 | AF21: 17 | AG21: 17 | AH21: 17 | AK21: 2 | AL21: 3 | AM21: 3 | AN21: 3 | AO21: 2 | AP21: 2 | AQ21: 3 | AR21: 2 | AS21: 2 | AT21: 2 | AU21: 2 | AV21: 3 | AW21: 3 | AX21: 3 | AY21: 1 | AZ21: 2 | BA21: 2 | BB21: 2 | BC21: 3 | BE21: 2 | BH21: 282 | BI21: 278 | BJ21: 266 | BK21: 251 | BL21: 242 | BM21: 235 | BN21: 223 | BO21: 210 | BP21: 207 | BQ21: 205 | BR21: 184 | BS21: 178 | BT21: 178 | BU21: 161 | BX21: - | BY21: - | BZ21: 1 | CB21: 3100 | EM21: 17 | EO21: 17 | EP21: (18)
A22: 18 (13) | B22: Leo Andersson | C22: Carlskrona | D22: 2925 | F22: 10 | G22: 146.25 | I22: 219 | J22: 292 | K22: 334 | L22: 336 | Q22: 343 | R22: 358 | S22: 200 | V22: 211 | Y22: 328 | Z22: 304 | AB22: 18 | AC22: - | AD22: - | AE22: 13 | AF22: 18 | AG22: 18 | AH22: 18 | AK22: 2 | AL22: 3 | AM22: 3 | AN22: 3 | AO22: 2 | AP22: 1 | AQ22: 1 | AR22: 1 | AS22: 2 | AT22: 3 | AU22: 3 | AV22: 2 | AW22: 1 | AX22: 2 | AY22: 1 | AZ22: 1 | BA22: 2 | BB22: 3 | BC22: 2 | BE22: 2 | BH22: 358 | BI22: 343 | BJ22: 336 | BK22: 334 | BL22: 328 | BM22: 304 | BN22: 292 | BO22: 219 | BP22: 211 | BQ22: 200 | BX22: - | BY22: - | BZ22: 5 | CB22: 2925 | EM22: 18 | EO22: 18 | EP22: (13)
A23: 19 (18) | B23: Christer Blomgren | C23: Lanternan | D23: 2916 | F23: 13 | G23: 112.1538462 | I23: 187 | J23: 228 | K23: 232 | L23: 123 | N23: 216 | P23: 232 | R23: 273 | S23: 226 | T23: 189 | U23: 177 | V23: 262 | Y23: 247 | Z23: 324 | AB23: 18 | AC23: - | AD23: - | AE23: 18 | AF23: 19 | AG23: 19 | AH23: 19 | AK23: 2 | AL23: 3 | AM23: 3 | AN23: 3 | AO23: 2 | AP23: 2 | AQ23: 2 | AR23: 2 | AS23: 2 | AT23: 2 | AU23: 3 | AV23: 3 | AW23: 3 | AX23: 3 | AY23: 1 | AZ23: 1 | BA23: 2 | BB23: 3 | BC23: 2 | BE23: 2 | BH23: 324 | BI23: 273 | BJ23: 262 | BK23: 247 | BL23: 232 | BM23: 232 | BN23: 228 | BO23: 226 | BP23: 216 | BQ23: 189 | BR23: 187 | BS23: 177 | BT23: 123 | BX23: - | BY23: - | BZ23: 2 | CB23: 2916 | EM23: 19 | EO23: 19 | EP23: (18)
A24: 20 (21) | B24: Joel Sundahl | C24: Carlskrona | D24: 2870 | F24: 14 | G24: 108.1428571 | I24: 163 | J24: 193 | L24: 187 | N24: 244 | P24: 283 | Q24: 217 | R24: 197 | S24: 190 | T24: 158 | U24: 203 | V24: 210 | Y24: 282 | Z24: 210 | AA24: 291 | AB24: 18 | AC24: - | AD24: - | AE24: 21 | AF24: 20 | AG24: 20 | AH24: 20 | AK24: 2 | AL24: 3 | AM24: 2 | AN24: 2 | AO24: 2 | AP24: 2 | AQ24: 2 | AR24: 2 | AS24: 3 | AT24: 3 | AU24: 3 | AV24: 3 | AW24: 3 | AX24: 3 | AY24: 1 | AZ24: 1 | BA24: 2 | BB24: 3 | BC24: 3 | BE24: 2 | BH24: 291 | BI24: 283 | BJ24: 282 | BK24: 244 | BL24: 217 | BM24: 210 | BN24: 210 | BO24: 203 | BP24: 197 | BQ24: 193 | BR24: 190 | BS24: 187 | BT24: 163 | BU24: 158 | BX24: - | BY24: - | BZ24: 1 | CB24: 3028 | EM24: 20 | EO24: 20 | EP24: (21)
A25: 21 (20) | B25: Stefan Tollstam | C25: Dynapac | D25: 2857 | F25: 15 | G25: 104.0666667 | I25: 268 | J25: 237 | K25: 171 | L25: 142 | N25: 205 | O25: 123 | P25: 290 | Q25: 269 | R25: 142 | S25: 157 | T25: 273 | V25: 237 | Y25: 196 | Z25: 208 | AA25: 204 | AB25: 18 | AC25: 123 | AD25: - | AE25: 20 | AF25: 21 | AG25: 21 | AH25: 21 | AK25: 2 | AL25: 3 | AM25: 3 | AN25: 3 | AO25: 2 | AP25: 2 | AQ25: 3 | AR25: 3 | AS25: 3 | AT25: 3 | AU25: 3 | AV25: 3 | AW25: 2 | AX25: 2 | AY25: 1 | AZ25: 1 | BA25: 2 | BB25: 3 | BC25: 3 | BE25: 2 | BH25: 290 | BI25: 273 | BJ25: 269 | BK25: 268 | BL25: 237 | BM25: 237 | BN25: 208 | BO25: 205 | BP25: 204 | BQ25: 196 | BR25: 171 | BS25: 157 | BT25: 142 | BU25: 142 | BV25: 123 | BX25: 123 | BY25: - | BZ25: 0 | CB25: 3122 | EM25: 21 | EO25: 21 | EP25: (20)
A26: 22 (23) | B26: Leif Sundahl | C26: Carlskrona | D26: 2722 | F26: 12 | G26: 113.4166667 | I26: 224 | K26: 250 | N26: 313 | P26: 200 | R26: 252 | S26: 154 | T26: 209 | U26: 169 | V26: 225 | Y26: 248 | Z26: 251 | AA26: 227 | AB26: 18 | AC26: - | AD26: - | AE26: 23 | AF26: 22 | AG26: 22 | AH26: 22 | AK26: 2 | AL26: 2 | AM26: 2 | AN26: 2 | AO26: 1 | AP26: 2 | AQ26: 2 | AR26: 2 | AS26: 2 | AT26: 2 | AU26: 3 | AV26: 3 | AW26: 3 | AX26: 3 | AY26: 1 | AZ26: 1 | BA26: 2 | BB26: 3 | BC26: 3 | BE26: 2 | BH26: 313 | BI26: 252 | BJ26: 251 | BK26: 250 | BL26: 248 | BM26: 227 | BN26: 225 | BO26: 224 | BP26: 209 | BQ26: 200 | BR26: 169 | BS26: 154 | BX26: - | BY26: - | BZ26: 3 | CB26: 2722 | EM26: 22 | EO26: 22 | EP26: (23)
A27: 23 (24) | B27: Anita Fabbeke | C27: Dynapac | D27: 2715 | F27: 12 | G27: 113.125 | I27: 240 | J27: 232 | K27: 163 | L27: 150 | N27: 254 | P27: 281 | Q27: 166 | S27: 198 | T27: 315 | V27: 195 | Z27: 243 | AA27: 278 | AB27: 18 | AC27: - | AD27: - | AE27: 24 | AF27: 23 | AG27: 23 | AH27: 23 | AK27: 2 | AL27: 3 | AM27: 3 | AN27: 3 | AO27: 2 | AP27: 2 | AQ27: 2 | AR27: 2 | AS27: 3 | AT27: 2 | AU27: 2 | AV27: 3 | AW27: 2 | AX27: 2 | AY27: 1 | AZ27: 1 | BA27: 1 | BB27: 2 | BC27: 3 | BE27: 2 | BH27: 315 | BI27: 281 | BJ27: 278 | BK27: 254 | BL27: 243 | BM27: 240 | BN27: 232 | BO27: 198 | BP27: 195 | BQ27: 166 | BR27: 163 | BS27: 150 | BX27: - | BY27: - | BZ27: 3 | CB27: 2715 | EM27: 23 | EO27: 23 | EP27: (24)
A28: 24 (24) | B28: Hans Lundqvist | C28: Alvesta | D28: 2709 | F28: 13 | G28: 104.1923077 | I28: 244 | J28: 238 | K28: 134 | M28: 177 | O28: 122 | P28: 232 | S28: 213 | T28: 195 | U28: 189 | V28: 271 | X28: 237 | Z28: 267 | AA28: 190 | AB28: 18 | AC28: - | AD28: - | AE28: 24 | AF28: 24 | AG28: 24 | AH28: 24 | AK28: 2 | AL28: 3 | AM28: 3 | AN28: 2 | AO28: 2 | AP28: 2 | AQ28: 2 | AR28: 3 | AS28: 2 | AT28: 1 | AU28: 2 | AV28: 3 | AW28: 3 | AX28: 3 | AY28: 1 | AZ28: 2 | BA28: 2 | BB28: 2 | BC28: 3 | BE28: 2 | BH28: 271 | BI28: 267 | BJ28: 244 | BK28: 238 | BL28: 237 | BM28: 232 | BN28: 213 | BO28: 195 | BP28: 190 | BQ28: 189 | BR28: 177 | BS28: 134 | BT28: 122 | BX28: - | BY28: - | BZ28: 2 | CB28: 2709 | EM28: 24 | EO28: 24 | EP28: (24)
A29: 25 (21) | B29: Bela Bodi | C29: Växjö | D29: 2690 | F29: 12 | G29: 112.0833333 | I29: 229 | J29: 262 | K29: 177 | L29: 166 | M29: 265 | N29: 312 | Q29: 190 | S29: 169 | T29: 266 | U29: 193 | V29: 242 | Z29: 219 | AB29: 18 | AC29: - | AD29: - | AE29: 21 | AF29: 25 | AG29: 25 | AH29: 25 | AK29: 2 | AL29: 3 | AM29: 3 | AN29: 3 | AO29: 3 | AP29: 3 | AQ29: 2 | AR29: 1 | AS29: 2 | AT29: 2 | AU29: 2 | AV29: 3 | AW29: 3 | AX29: 3 | AY29: 1 | AZ29: 1 | BA29: 1 | BB29: 2 | BC29: 2 | BE29: 2 | BH29: 312 | BI29: 266 | BJ29: 265 | BK29: 262 | BL29: 242 | BM29: 229 | BN29: 219 | BO29: 193 | BP29: 190 | BQ29: 177 | BR29: 169 | BS29: 166 | BX29: - | BY29: - | BZ29: 3 | CB29: 2690 | EM29: 25 | EO29: 25 | EP29: (21)
A30: 26 (27) | B30: Göran Olofsson | C30: Korpen Nybro | D30: 2589 | F30: 14 | G30: 97.75 | I30: 205 | J30: 202 | K30: 166 | L30: 154 | M30: 248 | N30: 165 | P30: 179 | S30: 192 | T30: 148 | U30: 224 | V30: 190 | X30: 204 | Z30: 225 | AA30: 235 | AB30: 18 | AC30: - | AD30: - | AE30: 27 | AF30: 26 | AG30: 26 | AH30: 26 | AK30: 2 | AL30: 3 | AM30: 3 | AN30: 3 | AO30: 3 | AP30: 3 | AQ30: 2 | AR30: 2 | AS30: 2 | AT30: 1 | AU30: 2 | AV30: 3 | AW30: 3 | AX30: 3 | AY30: 1 | AZ30: 2 | BA30: 2 | BB30: 2 | BC30: 3 | BE30: 2 | BH30: 248 | BI30: 235 | BJ30: 225 | BK30: 224 | BL30: 205 | BM30: 204 | BN30: 202 | BO30: 192 | BP30: 190 | BQ30: 179 | BR30: 166 | BS30: 165 | BT30: 154 | BU30: 148 | BX30: - | BY30: - | BZ30: 1 | CB30: 2737 | EM30: 26 | EO30: 26 | EP30: (27)
A31: 27 (26) | B31: Ingegerd Pettersson | C31: Lanternan | D31: 2533 | F31: 14 | G31: 94.07142857 | I31: 209 | J31: 177 | K31: 117 | L31: 101 | N31: 196 | P31: 230 | Q31: 135 | R31: 168 | S31: 142 | T31: 215 | U31: 114 | V31: 322 | Y31: 207 | Z31: 301 | AB31: 18 | AC31: - | AD31: - | AE31: 26 | AF31: 27 | AG31: 27 | AH31: 27 | AK31: 2 | AL31: 3 | AM31: 3 | AN31: 3 | AO31: 2 | AP31: 2 | AQ31: 2 | AR31: 2 | AS31: 3 | AT31: 3 | AU31: 3 | AV31: 3 | AW31: 3 | AX31: 3 | AY31: 1 | AZ31: 1 | BA31: 2 | BB31: 3 | BC31: 2 | BE31: 2 | BH31: 322 | BI31: 301 | BJ31: 230 | BK31: 215 | BL31: 209 | BM31: 207 | BN31: 196 | BO31: 177 | BP31: 168 | BQ31: 142 | BR31: 135 | BS31: 117 | BT31: 114 | BU31: 101 | BX31: - | BY31: - | BZ31: 1 | CB31: 2634 | EM31: 27 | EO31: 27 | EP31: (26)
A32: 28 (30) | B32: Johan Johansson | C32: Tingsryd | D32: 2527 | F32: 9 | G32: 140.3888889 | K32: 273 | L32: 240 | M32: 331 | O32: 183 | U32: 236 | V32: 353 | X32: 337 | Z32: 331 | AA32: 243 | AB32: 18 | AC32: - | AD32: - | AE32: 30 | AF32: 28 | AG32: 28 | AH32: 28 | AK32: 1 | AL32: 1 | AM32: 2 | AN32: 3 | AO32: 3 | AP32: 2 | AQ32: 2 | AR32: 2 | AS32: 1 | AT32: 1 | AU32: 1 | AV32: 1 | AW32: 2 | AX32: 3 | AY32: 1 | AZ32: 2 | BA32: 2 | BB32: 2 | BC32: 3 | BE32: 2 | BH32: 353 | BI32: 337 | BJ32: 331 | BK32: 331 | BL32: 273 | BM32: 243 | BN32: 240 | BO32: 236 | BP32: 183 | BX32: - | BY32: - | BZ32: 6 | CB32: 2527 | EM32: 28 | EO32: 28 | EP32: (30)
A33: 29 (34) | B33: Bengt Andersson | C33: Växjö Hsk | D33: 2514 | F33: 12 | G33: 104.75 | I33: 221 | J33: 205 | K33: 149 | L33: 165 | N33: 255 | Q33: 153 | S33: 184 | U33: 174 | V33: 301 | X33: 274 | Z33: 232 | AA33: 201 | AB33: 18 | AC33: - | AD33: - | AE33: 34 | AF33: 29 | AG33: 29 | AH33: 29 | AK33: 2 | AL33: 3 | AM33: 3 | AN33: 3 | AO33: 2 | AP33: 2 | AQ33: 2 | AR33: 1 | AS33: 2 | AT33: 2 | AU33: 2 | AV33: 2 | AW33: 2 | AX33: 3 | AY33: 1 | AZ33: 2 | BA33: 2 | BB33: 2 | BC33: 3 | BE33: 2 | BH33: 301 | BI33: 274 | BJ33: 255 | BK33: 232 | BL33: 221 | BM33: 205 | BN33: 201 | BO33: 184 | BP33: 174 | BQ33: 165 | BR33: 153 | BS33: 149 | BX33: - | BY33: - | BZ33: 3 | CB33: 2514 | EM33: 29 | EO33: 29 | EP33: (34)
A34: 30 (27) | B34: Christian Balsiger | C34: Värends Hsk | D34: 2504 | F34: 13 | G34: 96.30769231 | I34: 292 | J34: 148 | K34: 185 | L34: 160 | M34: 193 | P34: 186 | S34: 196 | T34: 180 | U34: 147 | V34: 272 | X34: 119 | Z34: 274 | AA34: 152 | AB34: 18 | AC34: - | AD34: - | AE34: 27 | AF34: 30 | AG34: 30 | AH34: 30 | AK34: 2 | AL34: 3 | AM34: 3 | AN34: 3 | AO34: 3 | AP34: 2 | AQ34: 1 | AR34: 2 | AS34: 2 | AT34: 1 | AU34: 2 | AV34: 3 | AW34: 3 | AX34: 3 | AY34: 1 | AZ34: 2 | BA34: 2 | BB34: 2 | BC34: 3 | BE34: 2 | BH34: 292 | BI34: 274 | BJ34: 272 | BK34: 196 | BL34: 193 | BM34: 186 | BN34: 185 | BO34: 180 | BP34: 160 | BQ34: 152 | BR34: 148 | BS34: 147 | BT34: 119 | BX34: - | BY34: - | BZ34: 2 | CB34: 2504 | EM34: 30 | EO34: 30 | EP34: (27)
A35: 31 (31) | B35: Berndt Pettersson | C35: Lanternan | D35: 2470 | F35: 14 | G35: 92.32142857 | I35: 231 | J35: 115 | K35: 143 | L35: 133 | N35: 249 | P35: 203 | Q35: 170 | R35: 192 | S35: 171 | T35: 152 | U35: 141 | V35: 224 | Y35: 224 | Z35: 237 | AB35: 18 | AC35: - | AD35: - | AE35: 31 | AF35: 31 | AG35: 31 | AH35: 31 | AK35: 2 | AL35: 3 | AM35: 3 | AN35: 3 | AO35: 2 | AP35: 2 | AQ35: 2 | AR35: 2 | AS35: 3 | AT35: 3 | AU35: 3 | AV35: 3 | AW35: 3 | AX35: 3 | AY35: 1 | AZ35: 1 | BA35: 2 | BB35: 3 | BC35: 2 | BE35: 2 | BH35: 249 | BI35: 237 | BJ35: 231 | BK35: 224 | BL35: 224 | BM35: 203 | BN35: 192 | BO35: 171 | BP35: 170 | BQ35: 152 | BR35: 143 | BS35: 141 | BT35: 133 | BU35: 115 | BX35: - | BY35: - | BZ35: 1 | CB35: 2585 | EM35: 31 | EO35: 31 | EP35: (31)
A36: 32 (31) | B36: Jan Petersson | C36: Lanternan | D36: 2467 | F36: 14 | G36: 92.32142857 | I36: 170 | J36: 186 | K36: 125 | L36: 135 | N36: 198 | P36: 223 | Q36: 127 | R36: 260 | S36: 225 | T36: 118 | U36: 182 | V36: 176 | Y36: 251 | Z36: 209 | AB36: 18 | AC36: - | AD36: - | AE36: 31 | AF36: 32 | AG36: 32 | AH36: 32 | AK36: 2 | AL36: 3 | AM36: 3 | AN36: 3 | AO36: 2 | AP36: 2 | AQ36: 2 | AR36: 2 | AS36: 3 | AT36: 3 | AU36: 3 | AV36: 3 | AW36: 3 | AX36: 3 | AY36: 1 | AZ36: 1 | BA36: 2 | BB36: 3 | BC36: 2 | BE36: 2 | BH36: 260 | BI36: 251 | BJ36: 225 | BK36: 223 | BL36: 209 | BM36: 198 | BN36: 186 | BO36: 182 | BP36: 176 | BQ36: 170 | BR36: 135 | BS36: 127 | BT36: 125 | BU36: 118 | BX36: - | BY36: - | BZ36: 1 | CB36: 2585 | EM36: 32 | EO36: 32 | EP36: (31)
A37: 33 (33) | B37: Peter Edlund | C37: Dynapac | D37: 2459 | F37: 14 | G37: 91.46428571 | J37: 147 | K37: 179 | L37: 187 | N37: 181 | O37: 121 | P37: 378 | Q37: 214 | R37: 169 | S37: 175 | T37: 256 | U37: 159 | Y37: 102 | Z37: 187 | AA37: 106 | AB37: 18 | AC37: - | AD37: - | AE37: 33 | AF37: 33 | AG37: =IF(F37>1,ROW(33:33),"-") -> 33 | AH37: 33 | AK37: 1 | AL37: 2 | AM37: 3 | AN37: 3 | AO37: 2 | AP37: 2 | AQ37: 3 | AR37: 3 | AS37: 3 | AT37: 3 | AU37: 3 | AV37: 3 | AW37: 3 | AX37: 2 | AY37: 0 | AZ37: 1 | BA37: 2 | BB37: 3 | BC37: 3 | BE37: 2 | BH37: 378 | BI37: 256 | BJ37: 214 | BK37: 187 | BL37: 187 | BM37: 181 | BN37: 179 | BO37: 175 | BP37: 169 | BQ37: 159 | BR37: 147 | BS37: 121 | BT37: 106 | BU37: 102 | BX37: - | BY37: - | BZ37: 1 | CB37: 2561 | EM37: 33 | EO37: =IF(BE37>=1,AF37,"") -> 33 | EP37: (33)
A38: 34 (36) | B38: Mikael Bodi | C38: Växjö Hsk | D38: 2448 | F38: 13 | G38: 94.15384615 | I38: 231 | J38: 142 | M38: 118 | N38: 248 | P38: 177 | Q38: 160 | S38: 124 | T38: 159 | U38: 204 | V38: 219 | X38: 194 | Z38: 217 | AA38: 255 | AB38: 18 | AC38: - | AD38: - | AE38: 36 | AF38: 34 | AG38: 34 | AH38: 34 | AK38: 2 | AL38: 3 | AM38: 2 | AN38: 1 | AO38: 2 | AP38: 3 | AQ38: 2 | AR38: 2 | AS38: 3 | AT38: 2 | AU38: 2 | AV38: 3 | AW38: 3 | AX38: 3 | AY38: 1 | AZ38: 2 | BA38: 2 | BB38: 2 | BC38: 3 | BE38: 2 | BH38: 255 | BI38: 248 | BJ38: 231 | BK38: 219 | BL38: 217 | BM38: 204 | BN38: 194 | BO38: 177 | BP38: 160 | BQ38: 159 | BR38: 142 | BS38: 124 | BT38: 118 | BX38: - | BY38: - | BZ38: 2 | CB38: 2448 | EM38: 34 | EO38: 34 | EP38: (36)
A39: 35 (34) | B39: Roy Dahlén | C39: Dynapac | D39: 2439 | F39: 12 | G39: 101.625 | I39: 230 | J39: 193 | K39: 209 | L39: 181 | N39: 171 | Q39: 194 | R39: 268 | T39: 232 | U39: 131 | Y39: 151 | Z39: 236 | AA39: 243 | AB39: 18 | AC39: - | AD39: - | AE39: 34 | AF39: 35 | AG39: 35 | AH39: 35 | AK39: 2 | AL39: 3 | AM39: 3 | AN39: 3 | AO39: 2 | AP39: 2 | AQ39: 2 | AR39: 1 | AS39: 2 | AT39: 3 | AU39: 2 | AV39: 2 | AW39: 3 | AX39: 2 | AY39: 0 | AZ39: 1 | BA39: 2 | BB39: 3 | BC39: 3 | BE39: 2 | BH39: 268 | BI39: 243 | BJ39: 236 | BK39: 232 | BL39: 230 | BM39: 209 | BN39: 194 | BO39: 193 | BP39: 181 | BQ39: 171 | BR39: 151 | BS39: 131 | BX39: - | BY39: - | BZ39: 3 | CB39: 2439 | EM39: 35 | EO39: 35 | EP39: (34)
A40: 36 (27) | B40: Göran Persson | C40: Dynapac | D40: 2341 | F40: 12 | G40: 97.54166667 | I40: 218 | J40: 308 | K40: 192 | L40: 160 | N40: 148 | P40: 164 | Q40: 149 | R40: 261 | S40: 128 | T40: 197 | U40: 230 | V40: 186 | AB40: 18 | AC40: - | AD40: - | AE40: 27 | AF40: 36 | AG40: 36 | AH40: 36 | AK40: 2 | AL40: 3 | AM40: 3 | AN40: 3 | AO40: 2 | AP40: 2 | AQ40: 2 | AR40: 2 | AS40: 3 | AT40: 3 | AU40: 3 | AV40: 3 | AW40: 3 | AX40: 3 | AY40: 1 | AZ40: 1 | BA40: 1 | BB40: 1 | BC40: 1 | BE40: 2 | BH40: 308 | BI40: 261 | BJ40: 230 | BK40: 218 | BL40: 197 | BM40: 192 | BN40: 186 | BO40: 164 | BP40: 160 | BQ40: 149 | BR40: 148 | BS40: 128 | BX40: - | BY40: - | BZ40: 3 | CB40: 2341 | EM40: 36 | EO40: 36 | EP40: (27)
A41: 37 (39) | B41: Alf Svensson | C41: Korpen Åseda | D41: 2317 | F41: 16 | G41: 82.1875 | I41: 200 | J41: 110 | K41: 93 | L41: 116 | M41: 188 | N41: 209 | O41: 181 | P41: 148 | Q41: 122 | S41: 165 | T41: 130 | U41: 110 | V41: 182 | X41: 163 | Z41: 234 | AA41: 279 | AB41: 18 | AC41: 110 | AD41: 93 | AE41: 39 | AF41: 37 | AG41: 37 | AH41: 37 | AK41: 2 | AL41: 3 | AM41: 3 | AN41: 3 | AO41: 3 | AP41: 3 | AQ41: 3 | AR41: 3 | AS41: 3 | AT41: 2 | AU41: 2 | AV41: 3 | AW41: 3 | AX41: 3 | AY41: 1 | AZ41: 2 | BA41: 2 | BB41: 2 | BC41: 3 | BE41: 2 | BH41: 279 | BI41: 234 | BJ41: 209 | BK41: 200 | BL41: 188 | BM41: 182 | BN41: 181 | BO41: 165 | BP41: 163 | BQ41: 148 | BR41: 130 | BS41: 122 | BT41: 116 | BU41: 110 | BV41: 110 | BW41: 93 | BX41: 110 | BY41: 93 | BZ41: -1 | CB41: 2630 | EM41: 37 | EO41: 37 | EP41: (39)
A42: 38 (36) | B42: Bengt Fabbeke | C42: Dynapac | D42: 2316 | F42: 12 | G42: 96.5 | I42: 138 | J42: 194 | K42: 156 | L42: 169 | N42: 211 | P42: 152 | Q42: 238 | S42: 214 | T42: 273 | V42: 218 | Z42: 142 | AA42: 211 | AB42: 18 | AC42: - | AD42: - | AE42: 36 | AF42: 38 | AG42: 38 | AH42: 38 | AK42: 2 | AL42: 3 | AM42: 3 | AN42: 3 | AO42: 2 | AP42: 2 | AQ42: 2 | AR42: 2 | AS42: 3 | AT42: 2 | AU42: 2 | AV42: 3 | AW42: 2 | AX42: 2 | AY42: 1 | AZ42: 1 | BA42: 1 | BB42: 2 | BC42: 3 | BE42: 2 | BH42: 273 | BI42: 238 | BJ42: 218 | BK42: 214 | BL42: 211 | BM42: 211 | BN42: 194 | BO42: 169 | BP42: 156 | BQ42: 152 | BR42: 142 | BS42: 138 | BX42: - | BY42: - | BZ42: 3 | CB42: 2316 | EM42: 38 | EO42: 38 | EP42: (36)
A43: 39 (39) | B43: Lisbeth Nygaard-Karlsson | C43: Tingsryd | D43: 2285 | F43: 9 | G43: 126.9444444 | J43: 143 | K43: 136 | L43: 260 | N43: 401 | S43: 224 | U43: 248 | V43: 334 | Z43: 282 | AA43: 257 | AB43: 18 | AC43: - | AD43: - | AE43: 39 | AF43: 39 | AG43: 39 | AH43: 39 | AK43: 1 | AL43: 2 | AM43: 3 | AN43: 3 | AO43: 2 | AP43: 2 | AQ43: 2 | AR43: 1 | AS43: 1 | AT43: 1 | AU43: 2 | AV43: 2 | AW43: 2 | AX43: 3 | AY43: 1 | AZ43: 1 | BA43: 1 | BB43: 2 | BC43: 3 | BE43: 2 | BH43: 401 | BI43: 334 | BJ43: 282 | BK43: 260 | BL43: 257 | BM43: 248 | BN43: 224 | BO43: 143 | BP43: 136 | BX43: - | BY43: - | BZ43: 6 | CB43: 2285 | EM43: 39 | EO43: 39 | EP43: (39)
A44: 40 (38) | B44: Ronny Lundberg | C44: Lanternan | D44: 2236 | F44: 11 | G44: 101.6363636 | I44: 175 | K44: 187 | L44: 129 | N44: 256 | P44: 222 | Q44: 183 | S44: 147 | T44: 176 | U44: 182 | Y44: 307 | Z44: 272 | AB44: 18 | AC44: - | AD44: - | AE44: 38 | AF44: 40 | AG44: 40 | AH44: 40 | AK44: 2 | AL44: 2 | AM44: 2 | AN44: 3 | AO44: 2 | AP44: 2 | AQ44: 2 | AR44: 2 | AS44: 3 | AT44: 2 | AU44: 2 | AV44: 3 | AW44: 3 | AX44: 2 | AY44: 0 | AZ44: 1 | BA44: 2 | BB44: 3 | BC44: 2 | BE44: 2 | BH44: 307 | BI44: 272 | BJ44: 256 | BK44: 222 | BL44: 187 | BM44: 183 | BN44: 182 | BO44: 176 | BP44: 175 | BQ44: 147 | BR44: 129 | BX44: - | BY44: - | BZ44: 4 | CB44: 2236 | EM44: 40 | EO44: 40 | EP44: (38)
A45: 41 (39) | B45: Carina Gneupel | C45: Sibbamåla | D45: 2223 | F45: 10 | G45: 111.15 | I45: 220 | J45: 189 | K45: 193 | L45: 191 | P45: 210 | Q45: 169 | R45: 238 | V45: 315 | Y45: 249 | Z45: 249 | AB45: 18 | AC45: - | AD45: - | AE45: 39 | AF45: 41 | AG45: 41 | AH45: 41 | AK45: 2 | AL45: 3 | AM45: 3 | AN45: 3 | AO45: 2 | AP45: 1 | AQ45: 1 | AR45: 2 | AS45: 3 | AT45: 3 | AU45: 2 | AV45: 1 | AW45: 1 | AX45: 2 | AY45: 1 | AZ45: 1 | BA45: 2 | BB45: 3 | BC45: 2 | BE45: 2 | BH45: 315 | BI45: 249 | BJ45: 249 | BK45: 238 | BL45: 220 | BM45: 210 | BN45: 193 | BO45: 191 | BP45: 189 | BQ45: 169 | BX45: - | BY45: - | BZ45: 5 | CB45: 2223 | EM45: 41 | EO45: 41 | EP45: (39)
A46: 42 (42) | B46: Lukas Bern | C46: Dynapac | D46: 2112 | F46: 11 | G46: 96 | J46: 225 | K46: 195 | L46: 162 | N46: 154 | P46: 144 | R46: 185 | S46: 204 | U46: 177 | V46: 281 | Y46: 180 | Z46: 205 | AB46: 18 | AC46: - | AD46: - | AE46: 42 | AF46: 42 | AG46: 42 | AH46: 42 | AK46: 1 | AL46: 2 | AM46: 3 | AN46: 3 | AO46: 2 | AP46: 2 | AQ46: 2 | AR46: 2 | AS46: 2 | AT46: 2 | AU46: 3 | AV46: 2 | AW46: 2 | AX46: 3 | AY46: 1 | AZ46: 1 | BA46: 2 | BB46: 3 | BC46: 2 | BE46: 2 | BH46: 281 | BI46: 225 | BJ46: 205 | BK46: 204 | BL46: 195 | BM46: 185 | BN46: 180 | BO46: 177 | BP46: 162 | BQ46: 154 | BR46: 144 | BX46: - | BY46: - | BZ46: 4 | CB46: 2112 | EM46: 42 | EO46: 42 | EP46: (42)
A47: 43 (44) | B47: Solveig Axelsson | C47: Alvesta | D47: 2032 | F47: 13 | G47: 78.15384615 | I47: 170 | J47: 193 | K47: 132 | L47: 246 | M47: 179 | O47: 161 | P47: 123 | Q47: 101 | T47: 126 | U47: 85 | V47: 181 | X47: 200 | Z47: 135 | AB47: 18 | AC47: - | AD47: - | AE47: 44 | AF47: 43 | AG47: 43 | AH47: 43 | AK47: 2 | AL47: 3 | AM47: 3 | AN47: 3 | AO47: 3 | AP47: 2 | AQ47: 2 | AR47: 3 | AS47: 3 | AT47: 2 | AU47: 1 | AV47: 2 | AW47: 3 | AX47: 3 | AY47: 1 | AZ47: 2 | BA47: 2 | BB47: 2 | BC47: 2 | BE47: 2 | BH47: 246 | BI47: 200 | BJ47: 193 | BK47: 181 | BL47: 179 | BM47: 170 | BN47: 161 | BO47: 135 | BP47: 132 | BQ47: 126 | BR47: 123 | BS47: 101 | BT47: 85 | BX47: - | BY47: - | BZ47: 2 | CB47: 2032 | EM47: 43 | EO47: 43 | EP47: (44)
A48: 44 (51) | B48: Sune Olsson | C48: Korpen Nybro | D48: 1971 | F48: 10 | G48: 98.55 | K48: 128 | L48: 139 | M48: 296 | N48: 236 | P48: 234 | S48: 201 | U48: 148 | V48: 172 | Z48: 183 | AA48: 234 | AB48: 18 | AC48: - | AD48: - | AE48: 51 | AF48: 44 | AG48: 44 | AH48: 44 | AK48: 1 | AL48: 1 | AM48: 2 | AN48: 3 | AO48: 3 | AP48: 3 | AQ48: 2 | AR48: 2 | AS48: 2 | AT48: 1 | AU48: 2 | AV48: 2 | AW48: 2 | AX48: 3 | AY48: 1 | AZ48: 1 | BA48: 1 | BB48: 2 | BC48: 3 | BE48: 2 | BH48: 296 | BI48: 236 | BJ48: 234 | BK48: 234 | BL48: 201 | BM48: 183 | BN48: 172 | BO48: 148 | BP48: 139 | BQ48: 128 | BX48: - | BY48: - | BZ48: 5 | CB48: 1971 | EM48: 44 | EO48: 44 | EP48: (51)
A49: 45 (42) | B49: Dan Hallstan | C49: Växjö | D49: 1967 | F49: 11 | G49: 89.40909091 | I49: 225 | J49: 195 | K49: 208 | M49: 186 | N49: 161 | O49: 120 | T49: 154 | U49: 187 | V49: 160 | X49: 207 | Z49: 164 | AB49: 18 | AC49: - | AD49: - | AE49: 42 | AF49: 45 | AG49: 45 | AH49: 45 | AK49: 2 | AL49: 3 | AM49: 3 | AN49: 2 | AO49: 2 | AP49: 3 | AQ49: 3 | AR49: 2 | AS49: 1 | AT49: 1 | AU49: 1 | AV49: 2 | AW49: 3 | AX49: 3 | AY49: 1 | AZ49: 2 | BA49: 2 | BB49: 2 | BC49: 2 | BE49: 2 | BH49: 225 | BI49: 208 | BJ49: 207 | BK49: 195 | BL49: 187 | BM49: 186 | BN49: 164 | BO49: 161 | BP49: 160 | BQ49: 154 | BR49: 120 | BX49: - | BY49: - | BZ49: 4 | CB49: 1967 | EM49: 45 | EO49: 45 | EP49: (42)
A50: 46 (45) | B50: Malin Lundqvist | C50: Alvesta | D50: 1950 | F50: 12 | G50: 81.25 | I50: 237 | J50: 155 | K50: 192 | L50: 179 | M50: 165 | O50: 169 | P50: 131 | Q50: 128 | S50: 120 | U50: 88 | V50: 235 | Z50: 151 | AB50: 18 | AC50: - | AD50: - | AE50: 45 | AF50: 46 | AG50: 46 | AH50: 46 | AK50: 2 | AL50: 3 | AM50: 3 | AN50: 3 | AO50: 3 | AP50: 2 | AQ50: 2 | AR50: 3 | AS50: 3 | AT50: 2 | AU50: 2 | AV50: 2 | AW50: 2 | AX50: 3 | AY50: 1 | AZ50: 1 | BA50: 1 | BB50: 2 | BC50: 2 | BE50: 2 | BH50: 237 | BI50: 235 | BJ50: 192 | BK50: 179 | BL50: 169 | BM50: 165 | BN50: 155 | BO50: 151 | BP50: 131 | BQ50: 128 | BR50: 120 | BS50: 88 | BX50: - | BY50: - | BZ50: 3 | CB50: 1950 | EM50: 46 | EO50: 46 | EP50: (45)
A51: 47 (46) | B51: Olle Nilsson | C51: Tingsryd | D51: 1917 | F51: 11 | G51: 87.13636364 | I51: 180 | J51: 166 | K51: 211 | L51: 134 | N51: 204 | S51: 108 | U51: 239 | V51: 107 | X51: 202 | Z51: 187 | AA51: 179 | AB51: 18 | AC51: - | AD51: - | AE51: 46 | AF51: 47 | AG51: 47 | AH51: 47 | AK51: 2 | AL51: 3 | AM51: 3 | AN51: 3 | AO51: 2 | AP51: 2 | AQ51: 2 | AR51: 1 | AS51: 1 | AT51: 1 | AU51: 2 | AV51: 2 | AW51: 2 | AX51: 3 | AY51: 1 | AZ51: 2 | BA51: 2 | BB51: 2 | BC51: 3 | BE51: 2 | BH51: 239 | BI51: 211 | BJ51: 204 | BK51: 202 | BL51: 187 | BM51: 180 | BN51: 179 | BO51: 166 | BP51: 134 | BQ51: 108 | BR51: 107 | BX51: - | BY51: - | BZ51: 4 | CB51: 1917 | EM51: 47 | EO51: 47 | EP51: (46)
A52: 48 (53) | B52: Lennart Karlsson | C52: Tingsryd | D52: 1860 | F52: 8 | G52: 116.25 | J52: 194 | K52: 174 | L52: 152 | N52: 258 | U52: 232 | V52: 303 | Z52: 263 | AA52: 284 | AB52: 18 | AC52: - | AD52: - | AE52: 53 | AF52: 48 | AG52: 48 | AH52: 48 | AK52: 1 | AL52: 2 | AM52: 3 | AN52: 3 | AO52: 2 | AP52: 2 | AQ52: 2 | AR52: 1 | AS52: 1 | AT52: 1 | AU52: 1 | AV52: 1 | AW52: 2 | AX52: 3 | AY52: 1 | AZ52: 1 | BA52: 1 | BB52: 2 | BC52: 3 | BE52: 2 | BH52: 303 | BI52: 284 | BJ52: 263 | BK52: 258 | BL52: 232 | BM52: 194 | BN52: 174 | BO52: 152 | BX52: - | BY52: - | BZ52: 7 | CB52: 1860 | EM52: 48 | EO52: 48 | EP52: (53)
A53: 49 (47) | B53: Mattias Olsson | C53: Dynapac | D53: 1801 | F53: 9 | G53: 100.0555556 | I53: 251 | J53: 152 | K53: 273 | L53: 186 | N53: 189 | Q53: 198 | U53: 288 | V53: 188 | Y53: 76 | AB53: 18 | AC53: - | AD53: - | AE53: 47 | AF53: 49 | AG53: 49 | AH53: 49 | AK53: 2 | AL53: 3 | AM53: 3 | AN53: 3 | AO53: 2 | AP53: 2 | AQ53: 2 | AR53: 1 | AS53: 2 | AT53: 2 | AU53: 1 | AV53: 1 | AW53: 2 | AX53: 3 | AY53: 1 | AZ53: 1 | BA53: 2 | BB53: 2 | BC53: 1 | BE53: 2 | BH53: 288 | BI53: 273 | BJ53: 251 | BK53: 198 | BL53: 189 | BM53: 188 | BN53: 186 | BO53: 152 | BP53: 76 | BX53: - | BY53: - | BZ53: 6 | CB53: 1801 | EM53: 49 | EO53: 49 | EP53: (47)
A54: 50 (49) | B54: Inga-Lill Stühr | C54: Lessebo | D54: 1762 | F54: 9 | G54: 97.88888889 | I54: 206 | K54: 174 | L54: 164 | M54: 195 | S54: 190 | T54: 153 | U54: 197 | Z54: 245 | AA54: 238 | AB54: 18 | AC54: - | AD54: - | AE54: 49 | AF54: 50 | AG54: 50 | AH54: 50 | AK54: 2 | AL54: 2 | AM54: 2 | AN54: 3 | AO54: 3 | AP54: 2 | AQ54: 1 | AR54: 1 | AS54: 1 | AT54: 1 | AU54: 2 | AV54: 3 | AW54: 3 | AX54: 2 | AY54: 0 | AZ54: 1 | BA54: 1 | BB54: 2 | BC54: 3 | BE54: 2 | BH54: 245 | BI54: 238 | BJ54: 206 | BK54: 197 | BL54: 195 | BM54: 190 | BN54: 174 | BO54: 164 | BP54: 153 | BX54: - | BY54: - | BZ54: 6 | CB54: 1762 | EM54: 50 | EO54: 50 | EP54: (49)
A55: 51 (49) | B55: Clara Larsson | C55: Värends Hsk | D55: 1759 | F55: 11 | G55: 79.95454545 | I55: 152 | K55: 81 | L55: 146 | M55: 168 | P55: 210 | T55: 176 | U55: 131 | V55: 204 | X55: 187 | Z55: 146 | AA55: 158 | AB55: 18 | AC55: - | AD55: - | AE55: 49 | AF55: 51 | AG55: 51 | AH55: 51 | AK55: 2 | AL55: 2 | AM55: 2 | AN55: 3 | AO55: 3 | AP55: 2 | AQ55: 1 | AR55: 2 | AS55: 2 | AT55: 1 | AU55: 1 | AV55: 2 | AW55: 3 | AX55: 3 | AY55: 1 | AZ55: 2 | BA55: 2 | BB55: 2 | BC55: 3 | BE55: 2 | BH55: 210 | BI55: 204 | BJ55: 187 | BK55: 176 | BL55: 168 | BM55: 158 | BN55: 152 | BO55: 146 | BP55: 146 | BQ55: 131 | BR55: 81 | BX55: - | BY55: - | BZ55: 4 | CB55: 1759 | EM55: 51 | EO55: 51 | EP55: (49)
A56: 52 (51) | B56: Thomas Dahl | C56: Växjö | D56: 1757 | F56: 12 | G56: 73.20833333 | J56: 116 | K56: 147 | L56: 102 | M56: 138 | P56: 156 | Q56: 172 | S56: 173 | T56: 144 | U56: 140 | V56: 135 | X56: 192 | Z56: 142 | AB56: 18 | AC56: - | AD56: - | AE56: 51 | AF56: 52 | AG56: 52 | AH56: 52 | AK56: 1 | AL56: 2 | AM56: 3 | AN56: 3 | AO56: 3 | AP56: 2 | AQ56: 1 | AR56: 2 | AS56: 3 | AT56: 2 | AU56: 2 | AV56: 3 | AW56: 3 | AX56: 3 | AY56: 1 | AZ56: 2 | BA56: 2 | BB56: 2 | BC56: 2 | BE56: 2 | BH56: 192 | BI56: 173 | BJ56: 172 | BK56: 156 | BL56: 147 | BM56: 144 | BN56: 142 | BO56: 140 | BP56: 138 | BQ56: 135 | BR56: 116 | BS56: 102 | BX56: - | BY56: - | BZ56: 3 | CB56: 1757 | EM56: 52 | EO56: 52 | EP56: (51)
A57: 53 (47) | B57: Nils-Åke Hansson | C57: Korpen Nybro | D57: 1688 | F57: 11 | G57: 76.72727273 | I57: 149 | J57: 129 | K57: 117 | L57: 122 | N57: 190 | S57: 168 | T57: 231 | U57: 136 | V57: 142 | X57: 144 | Z57: 160 | AB57: 18 | AC57: - | AD57: - | AE57: 47 | AF57: 53 | AG57: 53 | AH57: 53 | AK57: 2 | AL57: 3 | AM57: 3 | AN57: 3 | AO57: 2 | AP57: 2 | AQ57: 2 | AR57: 1 | AS57: 1 | AT57: 1 | AU57: 2 | AV57: 3 | AW57: 3 | AX57: 3 | AY57: 1 | AZ57: 2 | BA57: 2 | BB57: 2 | BC57: 2 | BE57: 2 | BH57: 231 | BI57: 190 | BJ57: 168 | BK57: 160 | BL57: 149 | BM57: 144 | BN57: 142 | BO57: 136 | BP57: 129 | BQ57: 122 | BR57: 117 | BX57: - | BY57: - | BZ57: 4 | CB57: 1688 | EM57: 53 | EO57: 53 | EP57: (47)
A58: 54 (54) | B58: Fredrik Lundin | C58: Lanternan | D58: 1682 | F58: 7 | G58: 120.1428571 | J58: 232 | K58: 224 | Q58: 245 | S58: 175 | U58: 222 | V58: 283 | Y58: 301 | AB58: 18 | AC58: - | AD58: - | AE58: 54 | AF58: 54 | AG58: 54 | AH58: 54 | AK58: 1 | AL58: 2 | AM58: 3 | AN58: 2 | AO58: 1 | AP58: 1 | AQ58: 1 | AR58: 1 | AS58: 2 | AT58: 2 | AU58: 2 | AV58: 2 | AW58: 2 | AX58: 3 | AY58: 1 | AZ58: 1 | BA58: 2 | BB58: 2 | BC58: 1 | BE58: 2 | BH58: 301 | BI58: 283 | BJ58: 245 | BK58: 232 | BL58: 224 | BM58: 222 | BN58: 175 | BX58: - | BY58: - | BZ58: 8 | CB58: 1682 | EM58: 54 | EO58: 54 | EP58: (54)
A59: 55 (56) | B59: Anne-Marie Larsson | C59: Tingsryd | D59: 1618 | F59: 10 | G59: 80.9 | I59: 128 | K59: 134 | L59: 137 | M59: 278 | S59: 154 | U59: 118 | V59: 154 | X59: 190 | Z59: 135 | AA59: 190 | AB59: 18 | AC59: - | AD59: - | AE59: 56 | AF59: 55 | AG59: 55 | AH59: 55 | AK59: 2 | AL59: 2 | AM59: 2 | AN59: 3 | AO59: 3 | AP59: 2 | AQ59: 1 | AR59: 1 | AS59: 1 | AT59: 1 | AU59: 2 | AV59: 2 | AW59: 2 | AX59: 3 | AY59: 1 | AZ59: 2 | BA59: 2 | BB59: 2 | BC59: 3 | BE59: 2 | BH59: 278 | BI59: 190 | BJ59: 190 | BK59: 154 | BL59: 154 | BM59: 137 | BN59: 135 | BO59: 134 | BP59: 128 | BQ59: 118 | BX59: - | BY59: - | BZ59: 5 | CB59: 1618 | EM59: 55 | EO59: 55 | EP59: (56)
A60: 56 (58) | B60: Alf Johansson | C60: Värends Hsk | D60: 1559 | F60: 11 | G60: 70.86363636 | I60: 179 | K60: 108 | M60: 149 | P60: 125 | S60: 85 | T60: 179 | U60: 68 | V60: 129 | X60: 207 | Z60: 144 | AA60: 186 | AB60: 18 | AC60: - | AD60: - | AE60: 58 | AF60: 56 | AG60: 56 | AH60: 56 | AK60: 2 | AL60: 2 | AM60: 2 | AN60: 2 | AO60: 2 | AP60: 2 | AQ60: 1 | AR60: 2 | AS60: 2 | AT60: 1 | AU60: 2 | AV60: 3 | AW60: 3 | AX60: 3 | AY60: 1 | AZ60: 2 | BA60: 2 | BB60: 2 | BC60: 3 | BE60: 2 | BH60: 207 | BI60: 186 | BJ60: 179 | BK60: 179 | BL60: 149 | BM60: 144 | BN60: 129 | BO60: 125 | BP60: 108 | BQ60: 85 | BR60: 68 | BX60: - | BY60: - | BZ60: 4 | CB60: 1559 | EM60: 56 | EO60: 56 | EP60: (58)
A61: 57 (55) | B61: Kerstin Johansson | C61: Lessebo | D61: 1554 | F61: 8 | G61: 97.125 | I61: 208 | K61: 202 | L61: 102 | M61: 193 | S61: 158 | T61: 293 | Z61: 202 | AA61: 196 | AB61: 18 | AC61: - | AD61: - | AE61: 55 | AF61: 57 | AG61: 57 | AH61: 57 | AK61: 2 | AL61: 2 | AM61: 2 | AN61: 3 | AO61: 3 | AP61: 2 | AQ61: 1 | AR61: 1 | AS61: 1 | AT61: 1 | AU61: 2 | AV61: 3 | AW61: 2 | AX61: 1 | AY61: 0 | AZ61: 1 | BA61: 1 | BB61: 2 | BC61: 3 | BE61: 2 | BH61: 293 | BI61: 208 | BJ61: 202 | BK61: 202 | BL61: 196 | BM61: 193 | BN61: 158 | BO61: 102 | BX61: - | BY61: - | BZ61: 7 | CB61: 1554 | EM61: 57 | EO61: 57 | EP61: (55)
A62: 58 (60) | B62: Hans Johansson | C62: Tingsryd | D62: 1548 | F62: 7 | G62: 110.5714286 | K62: 216 | L62: 196 | M62: 259 | U62: 257 | V62: 193 | X62: 132 | AA62: 295 | AB62: 18 | AC62: - | AD62: - | AE62: 60 | AF62: 58 | AG62: 58 | AH62: 58 | AK62: 1 | AL62: 1 | AM62: 2 | AN62: 3 | AO62: 3 | AP62: 2 | AQ62: 1 | AR62: 1 | AS62: 1 | AT62: 1 | AU62: 1 | AV62: 1 | AW62: 2 | AX62: 3 | AY62: 1 | AZ62: 2 | BA62: 2 | BB62: 1 | BC62: 2 | BE62: 2 | BH62: 295 | BI62: 259 | BJ62: 257 | BK62: 216 | BL62: 196 | BM62: 193 | BN62: 132 | BX62: - | BY62: - | BZ62: 8 | CB62: 1548 | EM62: 58 | EO62: 58 | EP62: (60)
A63: 59 (65) | B63: Ronnie Pettersson | C63: Växjö Hsk | D63: 1535 | F63: 9 | G63: 85.27777778 | I63: 202 | K63: 149 | M63: 169 | O63: 137 | P63: 157 | V63: 151 | X63: 200 | Z63: 171 | AA63: 199 | AB63: 18 | AC63: - | AD63: - | AE63: 65 | AF63: 59 | AG63: 59 | AH63: 59 | AK63: 2 | AL63: 2 | AM63: 2 | AN63: 2 | AO63: 2 | AP63: 2 | AQ63: 2 | AR63: 3 | AS63: 2 | AT63: 1 | AU63: 1 | AV63: 1 | AW63: 1 | AX63: 2 | AY63: 1 | AZ63: 2 | BA63: 2 | BB63: 2 | BC63: 3 | BE63: 2 | BH63: 202 | BI63: 200 | BJ63: 199 | BK63: 171 | BL63: 169 | BM63: 157 | BN63: 151 | BO63: 149 | BP63: 137 | BX63: - | BY63: - | BZ63: 6 | CB63: 1535 | EM63: 59 | EO63: 59 | EP63: (65)
A64: 60 (56) | B64: Kerstin Svensson | C64: Växjö Hsk | D64: 1386 | F64: 10 | G64: 69.3 | I64: 107 | J64: 100 | M64: 124 | N64: 174 | O64: 82 | P64: 155 | T64: 152 | U64: 128 | V64: 124 | X64: 240 | AB64: 18 | AC64: - | AD64: - | AE64: 56 | AF64: 60 | AG64: 60 | AH64: 60 | AK64: 2 | AL64: 3 | AM64: 2 | AN64: 1 | AO64: 2 | AP64: 3 | AQ64: 3 | AR64: 3 | AS64: 2 | AT64: 1 | AU64: 1 | AV64: 2 | AW64: 3 | AX64: 3 | AY64: 1 | AZ64: 2 | BA64: 2 | BB64: 1 | BC64: 1 | BE64: 2 | BH64: 240 | BI64: 174 | BJ64: 155 | BK64: 152 | BL64: 128 | BM64: 124 | BN64: 124 | BO64: 107 | BP64: 100 | BQ64: 82 | BX64: - | BY64: - | BZ64: 5 | CB64: 1386 | EM64: 60 | EO64: 60 | EP64: (56)
A65: 61 (67) | B65: Gunnar Lundbeck | C65: Tingsryd | D65: 1365 | F65: 10 | G65: 68.25 | I65: 92 | J65: 194 | K65: 88 | N65: 142 | S65: 118 | U65: 180 | V65: 92 | X65: 187 | Z65: 146 | AA65: 126 | AB65: 18 | AC65: - | AD65: - | AE65: 67 | AF65: 61 | AG65: 61 | AH65: 61 | AK65: 2 | AL65: 3 | AM65: 3 | AN65: 2 | AO65: 1 | AP65: 2 | AQ65: 2 | AR65: 1 | AS65: 1 | AT65: 1 | AU65: 2 | AV65: 2 | AW65: 2 | AX65: 3 | AY65: 1 | AZ65: 2 | BA65: 2 | BB65: 2 | BC65: 3 | BE65: 2 | BH65: 194 | BI65: 187 | BJ65: 180 | BK65: 146 | BL65: 142 | BM65: 126 | BN65: 118 | BO65: 92 | BP65: 92 | BQ65: 88 | BX65: - | BY65: - | BZ65: 5 | CB65: 1365 | EM65: 61 | EO65: 61 | EP65: (67)
A66: 62 (62) | B66: Maria Andersson | C66: Team Småland Hsk | D66: 1341 | F66: 10 | G66: 67.05 | I66: 156 | K66: 81 | L66: 112 | P66: 191 | T66: 184 | U66: 162 | V66: 122 | X66: 129 | Z66: 101 | AA66: 103 | AB66: 18 | AC66: - | AD66: - | AE66: 62 | AF66: 62 | AG66: 62 | AH66: 62 | AK66: 2 | AL66: 2 | AM66: 2 | AN66: 3 | AO66: 2 | AP66: 1 | AQ66: 1 | AR66: 2 | AS66: 2 | AT66: 1 | AU66: 1 | AV66: 2 | AW66: 3 | AX66: 3 | AY66: 1 | AZ66: 2 | BA66: 2 | BB66: 2 | BC66: 3 | BE66: 2 | BH66: 191 | BI66: 184 | BJ66: 162 | BK66: 156 | BL66: 129 | BM66: 122 | BN66: 112 | BO66: 103 | BP66: 101 | BQ66: 81 | BX66: - | BY66: - | BZ66: 5 | CB66: 1341 | EM66: 62 | EO66: 62 | EP66: (62)
A67: 63 (71) | B67: Bernt Olsson | C67: Jämjö Hsk | D67: 1305 | F67: 6 | G67: 108.75 | J67: 218 | N67: 227 | Q67: 216 | R67: 269 | Y67: 237 | AA67: 138 | AB67: 18 | AC67: - | AD67: - | AE67: 71 | AF67: 63 | AG67: 63 | AH67: 63 | AK67: 1 | AL67: 2 | AM67: 2 | AN67: 1 | AO67: 1 | AP67: 2 | AQ67: 2 | AR67: 1 | AS67: 2 | AT67: 3 | AU67: 2 | AV67: 1 | AW67: 1 | AX67: 1 | AY67: 0 | AZ67: 1 | BA67: 2 | BB67: 2 | BC67: 2 | BE67: 2 | BH67: 269 | BI67: 237 | BJ67: 227 | BK67: 218 | BL67: 216 | BM67: 138 | BX67: - | BY67: - | BZ67: 9 | CB67: 1305 | EM67: 63 | EO67: 63 | EP67: (71)
A68: 64 (58) | B68: Roland Sjöstrand | C68: Hsk Tingzås | D68: 1294 | F68: 11 | G68: 58.81818182 | I68: 160 | J68: 155 | K68: 92 | L68: 75 | O68: 125 | Q68: 97 | S68: 88 | T68: 204 | V68: 170 | X68: 49 | Z68: 79 | AB68: 18 | AC68: - | AD68: - | AE68: 58 | AF68: 64 | AG68: 64 | AH68: 64 | AK68: 2 | AL68: 3 | AM68: 3 | AN68: 3 | AO68: 2 | AP68: 1 | AQ68: 2 | AR68: 2 | AS68: 2 | AT68: 2 | AU68: 2 | AV68: 3 | AW68: 2 | AX68: 2 | AY68: 1 | AZ68: 2 | BA68: 2 | BB68: 2 | BC68: 2 | BE68: 2 | BH68: 204 | BI68: 170 | BJ68: 160 | BK68: 155 | BL68: 125 | BM68: 97 | BN68: 92 | BO68: 88 | BP68: 79 | BQ68: 75 | BR68: 49 | BX68: - | BY68: - | BZ68: 4 | CB68: 1294 | EM68: 64 | EO68: 64 | EP68: (58)
A69: 65 (80) | B69: Ewa Malmqvist | C69: Jämjö Hsk | D69: =SUM(BH69:BT69) -> 1288 | F69: =COUNT(I69:AA69) -> 6 | G69: =SUM((CB69)/(F69*2)) -> 107.3333333 | J69: 199 | N69: 188 | Q69: 212 | R69: 186 | Y69: 243 | AA69: 260 | AB69: =SUM($I$3:$AA$3) -> 18 | AC69: =BX69 -> - | AD69: =BY69 -> - | AE69: 80 | AF69: 65 | AG69: =IF(F69>1,ROW(65:65),"-") -> 65 | AH69: 65 | AK69: 1 | AL69: 2 | AM69: 2 | AN69: 1 | AO69: 1 | AP69: 2 | AQ69: 2 | AR69: 1 | AS69: 2 | AT69: 3 | AU69: 2 | AV69: 1 | AW69: 1 | AX69: 1 | AY69: 0 | AZ69: 1 | BA69: 2 | BB69: 2 | BC69: 2 | BE69: =IF(H69="x",1,2) -> 2 | BH69: 260 | BI69: 243 | BJ69: 212 | BK69: 199 | BL69: 188 | BM69: 186 | BX69: - | BY69: - | BZ69: =SUM(AB69-F69)-3 -> 9 | CB69: =SUM(BH69:BW69) -> 1288 | EM69: 65 | EO69: =IF(BE69>=1,AF69,"") -> 65 | EP69: =IF(BE69>1,"("&AE69&")","("&AG69&")") -> (80)
A70: 66 (68) | B70: Martin Antic | C70: Värends Hsk | D70: 1268 | F70: 8 | G70: 79.25 | I70: 148 | K70: 97 | L70: 135 | M70: 233 | P70: 199 | S70: 152 | T70: 158 | U70: 146 | AB70: 18 | AC70: - | AD70: - | AE70: 68 | AF70: 66 | AG70: 66 | AH70: 66 | AK70: =COUNT($I$3,I70,H70) -> 2 | AL70: =COUNT($J$3,J70,I70) -> 2 | AM70: =COUNT($K$3,K70,J70) -> 2 | AN70: =COUNT($L$3,L70,K70) -> 3 | AO70: =COUNT($M$3,M70,L70) -> 3 | AP70: =COUNT($N$3,N70,M70) -> 2 | AQ70: =COUNT($O$3,O70,N70) -> 1 | AR70: =COUNT($P$3,P70,O70) -> 2 | AS70: =COUNT($Q$3,Q70,P70) -> 2 | AT70: =COUNT($R$3,R70,Q70) -> 1 | AU70: =COUNT($S$3,S70,R70) -> 2 | AV70: =COUNT($T$3,T70,S70) -> 3 | AW70: =COUNT($U$3,U70,T70) -> 3 | AX70: =COUNT($V$3,V70,U70) -> 2 | AY70: =COUNT($W$3,W70,V70) -> 0 | AZ70: =COUNT($X$3,X70,W70) -> 1 | BA70: =COUNT($Y$3,Y70,X70) -> 1 | BB70: =COUNT($Z$3,Z70,Y70) -> 1 | BC70: =COUNT($AA$3,AA70,Z70) -> 1 | BE70: 2 | BH70: =IF($F70>0,LARGE($I70:$AA70,1),"") -> 233 | BI70: =IF($F70>1,LARGE($I70:$AA70,2),"") -> 199 | BJ70: =IF($F70>2,LARGE($I70:$AA70,3),"") -> 158 | BK70: =IF($F70>3,LARGE($I70:$AA70,4),"") -> 152 | BL70: =IF($F70>4,LARGE($I70:$AA70,5),"") -> 148 | BM70: =IF($F70>5,LARGE($I70:$AA70,6),"") -> 146 | BN70: =IF($F70>6,LARGE($I70:$AA70,7),"") -> 135 | BO70: =IF($F70>7,LARGE($I70:$AA70,8),"") -> 97 | BP70: =IF($F70>8,LARGE($I70:$AA70,9),"") ->  | BQ70: =IF($F70>9,LARGE($I70:$AA70,10),"") ->  | BR70: =IF($F70>10,LARGE($I70:$AA70,11),"") ->  | BS70: =IF($F70>11,LARGE($I70:$AA70,12),"") ->  | BT70: =IF($F70>12,LARGE($I70:$AA70,13),"") ->  | BU70: =IF($F70>13,LARGE($I70:$AA70,14),"") ->  | BV70: =IF($F70>14,LARGE($I70:$AA70,15),"") ->  | BW70: =IF($F70>15,LARGE($I70:$AA70,16),"") ->  | BX70: =IF($F70>14,LARGE($I70:$AA70,15),"-") -> - | BY70: =IF($F70>15,LARGE($I70:$AA70,16),"-") -> - | BZ70: 7 | CB70: 1268 | EM70: 66 | EO70: 66 | EP70: (68)
A71: 67 (63) | B71: Inger Andersson | C71: Korpen Nybro | D71: 1257 | F71: 7 | G71: 89.78571429 | I71: 189 | K71: 140 | L71: 139 | M71: 244 | N71: 163 | P71: 198 | T71: 184 | AB71: 18 | AC71: - | AD71: - | AE71: 63 | AF71: =IF(D71<D70,AH71,AF70) -> 67 | AG71: 67 | AH71: 67 | AK71: 2 | AL71: 2 | AM71: 2 | AN71: 3 | AO71: 3 | AP71: 3 | AQ71: 2 | AR71: 2 | AS71: 2 | AT71: 1 | AU71: 1 | AV71: 2 | AW71: 2 | AX71: 1 | AY71: 0 | AZ71: 1 | BA71: 1 | BB71: 1 | BC71: 1 | BE71: 2 | BH71: 244 | BI71: 198 | BJ71: 189 | BK71: 184 | BL71: 163 | BM71: 140 | BN71: 139 | BX71: - | BY71: - | BZ71: 8 | CB71: 1257 | EM71: 67 | EO71: 67 | EP71: (63)
A72: 68 (73) | B72: Ulrika Rydell | C72: Värends Hsk | D72: 1250 | F72: 7 | G72: 89.28571429 | I72: 174 | K72: 254 | L72: 188 | U72: 201 | V72: 166 | Z72: 126 | AA72: 141 | AB72: 18 | AC72: - | AD72: - | AE72: 73 | AF72: 68 | AG72: 68 | AH72: 68 | AK72: 2 | AL72: 2 | AM72: 2 | AN72: 3 | AO72: 2 | AP72: 1 | AQ72: 1 | AR72: 1 | AS72: 1 | AT72: 1 | AU72: 1 | AV72: 1 | AW72: 2 | AX72: 3 | AY72: 1 | AZ72: 1 | BA72: 1 | BB72: 2 | BC72: 3 | BE72: 2 | BH72: 254 | BI72: 201 | BJ72: 188 | BK72: 174 | BL72: 166 | BM72: 141 | BN72: 126 | BX72: - | BY72: - | BZ72: 8 | CB72: 1250 | EM72: 68 | EO72: 68 | EP72: (73)
A73: 69 (64) | B73: Sebastian Israelsson | C73: Sibbamåla | D73: 1243 | F73: 8 | G73: 77.6875 | I73: 155 | J73: 161 | K73: 121 | L73: 127 | N73: 148 | Q73: 174 | R73: 197 | U73: 160 | AB73: 18 | AC73: - | AD73: - | AE73: 64 | AF73: 69 | AG73: 69 | AH73: 69 | AK73: 2 | AL73: 3 | AM73: 3 | AN73: 3 | AO73: 2 | AP73: 2 | AQ73: 2 | AR73: 1 | AS73: 2 | AT73: 3 | AU73: 2 | AV73: 1 | AW73: 2 | AX73: 2 | AY73: 0 | AZ73: 1 | BA73: 1 | BB73: 1 | BC73: 1 | BE73: 2 | BH73: 197 | BI73: 174 | BJ73: 161 | BK73: 160 | BL73: 155 | BM73: 148 | BN73: 127 | BO73: 121 | BX73: - | BY73: - | BZ73: 7 | CB73: 1243 | EM73: 69 | EO73: 69 | EP73: (64)
A74: 70 (70) | B74: Christer Brincner | C74: Värends Hsk | D74: 1212 | F74: 8 | G74: 75.75 | L74: 160 | P74: 159 | Q74: 163 | S74: 73 | U74: 120 | V74: 229 | X74: 150 | AA74: 158 | AB74: 18 | AC74: - | AD74: - | AE74: 70 | AF74: 70 | AG74: 70 | AH74: 70 | AK74: 1 | AL74: 1 | AM74: 1 | AN74: 2 | AO74: 2 | AP74: 1 | AQ74: 1 | AR74: 2 | AS74: 3 | AT74: 2 | AU74: 2 | AV74: 2 | AW74: 2 | AX74: 3 | AY74: 1 | AZ74: 2 | BA74: 2 | BB74: 1 | BC74: 2 | BE74: 2 | BH74: 229 | BI74: 163 | BJ74: 160 | BK74: 159 | BL74: 158 | BM74: 150 | BN74: 120 | BO74: 73 | BX74: - | BY74: - | BZ74: 7 | CB74: 1212 | EM74: 70 | EO74: 70 | EP74: (70)
A75: 70 (76) | B75: Christina Holmberg | C75: Tingsryd | D75: 1212 | F75: 7 | G75: 86.57142857 | K75: 119 | L75: 61 | M75: 185 | O75: 136 | V75: 276 | X75: 200 | AA75: 235 | AB75: 18 | AC75: - | AD75: - | AE75: 76 | AF75: 70 | AG75: 71 | AH75: 71 | AK75: 1 | AL75: 1 | AM75: 2 | AN75: 3 | AO75: 3 | AP75: 2 | AQ75: 2 | AR75: 2 | AS75: 1 | AT75: 1 | AU75: 1 | AV75: 1 | AW75: 1 | AX75: 2 | AY75: 1 | AZ75: 2 | BA75: 2 | BB75: 1 | BC75: 2 | BE75: 2 | BH75: 276 | BI75: 235 | BJ75: 200 | BK75: 185 | BL75: 136 | BM75: 119 | BN75: 61 | BX75: - | BY75: - | BZ75: 8 | CB75: 1212 | EM75: 71 | EO75: 70 | EP75: (76)
A76: 72 (71) | B76: Kennarth Axelsson | C76: Alvesta | D76: 1203 | F76: 4 | G76: 150.375 | O76: 151 | V76: 387 | X76: 302 | Z76: 363 | AB76: 18 | AC76: - | AD76: - | AE76: 71 | AF76: 72 | AG76: 72 | AH76: 72 | AK76: 1 | AL76: 1 | AM76: 1 | AN76: 1 | AO76: 1 | AP76: 1 | AQ76: 2 | AR76: 2 | AS76: 1 | AT76: 1 | AU76: 1 | AV76: 1 | AW76: 1 | AX76: 2 | AY76: 1 | AZ76: 2 | BA76: 2 | BB76: 2 | BC76: 2 | BE76: 2 | BH76: 387 | BI76: 363 | BJ76: 302 | BK76: 151 | BX76: - | BY76: - | BZ76: 11 | CB76: 1203 | EM76: 72 | EO76: 72 | EP76: (71)
A77: 73 (60) | B77: Bo Fransson | C77: Lessebo | D77: 1130 | F77: 5 | G77: 113 | I77: 225 | K77: 220 | L77: 238 | M77: 230 | U77: 217 | AB77: 18 | AC77: - | AD77: - | AE77: 60 | AF77: 73 | AG77: 73 | AH77: 73 | AK77: 2 | AL77: 2 | AM77: 2 | AN77: 3 | AO77: 3 | AP77: 2 | AQ77: 1 | AR77: 1 | AS77: 1 | AT77: 1 | AU77: 1 | AV77: 1 | AW77: 2 | AX77: 2 | AY77: 0 | AZ77: 1 | BA77: 1 | BB77: 1 | BC77: 1 | BE77: 2 | BH77: 238 | BI77: 230 | BJ77: 225 | BK77: 220 | BL77: 217 | BX77: - | BY77: - | BZ77: 10 | CB77: 1130 | EM77: 73 | EO77: 73 | EP77: (60)
A78: =IF(BE78>1,AF78&" ("&AE78&")",AF78&" ("&AG78&")") -> 74 (73) | B78: Bengt-Erik Holmberg | C78: Tingsryd | D78: 1122 | F78: 5 | G78: 112.2 | K78: 212 | L78: 202 | M78: 289 | O78: 203 | AA78: 216 | AB78: 18 | AC78: - | AD78: - | AE78: 73 | AF78: 74 | AG78: 74 | AH78: 74 | AK78: 1 | AL78: 1 | AM78: 2 | AN78: 3 | AO78: 3 | AP78: 2 | AQ78: 2 | AR78: 2 | AS78: 1 | AT78: 1 | AU78: 1 | AV78: 1 | AW78: 1 | AX78: 1 | AY78: 0 | AZ78: 1 | BA78: 1 | BB78: 1 | BC78: 2 | BE78: 2 | BH78: 289 | BI78: 216 | BJ78: 212 | BK78: 203 | BL78: 202 | BX78: - | BY78: - | BZ78: 10 | CB78: 1122 | EM78: 74 | EO78: 74 | EP78: (73)
A79: 75 (73) | B79: Risto Selming | C79: Korpen Nybro | D79: 1101 | F79: 8 | G79: 68.8125 | I79: 143 | J79: 116 | K79: 122 | L79: 79 | S79: 100 | V79: 169 | Z79: 192 | AA79: 180 | AB79: 18 | AC79: - | AD79: - | AE79: 73 | AF79: 75 | AG79: 75 | AH79: 75 | AK79: 2 | AL79: 3 | AM79: 3 | AN79: 3 | AO79: 2 | AP79: 1 | AQ79: 1 | AR79: 1 | AS79: 1 | AT79: 1 | AU79: 2 | AV79: 2 | AW79: 1 | AX79: 2 | AY79: 1 | AZ79: 1 | BA79: 1 | BB79: 2 | BC79: 3 | BE79: 2 | BH79: 192 | BI79: 180 | BJ79: 169 | BK79: 143 | BL79: 122 | BM79: 116 | BN79: 100 | BO79: 79 | BX79: - | BY79: - | BZ79: 7 | CB79: 1101 | EM79: 75 | EO79: 75 | EP79: (73)
A80: 76 (77) | B80: Mikael Karlsson | C80: Hsk Tingzås | D80: 1093 | F80: 8 | G80: 68.3125 | I80: 163 | J80: 124 | K80: 123 | L80: 89 | P80: 146 | Q80: 172 | T80: 93 | V80: 183 | AB80: 18 | AC80: - | AD80: - | AE80: 77 | AF80: 76 | AG80: 76 | AH80: 76 | AK80: 2 | AL80: 3 | AM80: 3 | AN80: 3 | AO80: 2 | AP80: 1 | AQ80: 1 | AR80: 2 | AS80: 3 | AT80: 2 | AU80: 1 | AV80: 2 | AW80: 2 | AX80: 2 | AY80: 1 | AZ80: 1 | BA80: 1 | BB80: 1 | BC80: 1 | BE80: 2 | BH80: 183 | BI80: 172 | BJ80: 163 | BK80: 146 | BL80: 124 | BM80: 123 | BN80: 93 | BO80: 89 | BX80: - | BY80: - | BZ80: 7 | CB80: 1093 | EM80: 76 | EO80: 76 | EP80: (77)
A81: 77 (65) | B81: Bo Andersson | C81: Hsk Tingzås | D81: 1091 | F81: 5 | G81: 109.1 | I81: 252 | K81: 206 | L81: 154 | P81: 256 | S81: 223 | AB81: 18 | AC81: - | AD81: - | AE81: 65 | AF81: 77 | AG81: 77 | AH81: 77 | AK81: 2 | AL81: 2 | AM81: 2 | AN81: 3 | AO81: 2 | AP81: 1 | AQ81: 1 | AR81: 2 | AS81: 2 | AT81: 1 | AU81: 2 | AV81: 2 | AW81: 1 | AX81: 1 | AY81: 0 | AZ81: 1 | BA81: 1 | BB81: 1 | BC81: 1 | BE81: 2 | BH81: 256 | BI81: 252 | BJ81: 223 | BK81: 206 | BL81: 154 | BX81: - | BY81: - | BZ81: 10 | CB81: 1091 | EM81: 77 | EO81: 77 | EP81: (65)
A82: 78 (68) | B82: Jörgen Holmqvist | C82: Lessebo Hsk | D82: 1078 | F82: 4 | G82: 134.75 | K82: 245 | L82: 200 | M82: 341 | U82: 292 | AB82: 18 | AC82: - | AD82: - | AE82: 68 | AF82: 78 | AG82: 78 | AH82: 78 | AK82: 1 | AL82: 1 | AM82: 2 | AN82: 3 | AO82: 3 | AP82: 2 | AQ82: 1 | AR82: 1 | AS82: 1 | AT82: 1 | AU82: 1 | AV82: 1 | AW82: 2 | AX82: 2 | AY82: 0 | AZ82: 1 | BA82: 1 | BB82: 1 | BC82: 1 | BE82: 2 | BH82: 341 | BI82: 292 | BJ82: 245 | BK82: 200 | BX82: - | BY82: - | BZ82: 11 | CB82: 1078 | EM82: 78 | EO82: 78 | EP82: (68)
A83: 79 (82) | B83: Ulrika Strandahl | C83: Växjö | D83: 1063 | F83: 9 | G83: 59.05555556 | J83: 178 | M83: 65 | N83: 152 | T83: 144 | U83: 157 | V83: 130 | X83: 88 | Z83: 56 | AA83: 93 | AB83: 18 | AC83: - | AD83: - | AE83: 82 | AF83: 79 | AG83: 79 | AH83: 79 | AK83: 1 | AL83: 2 | AM83: 2 | AN83: 1 | AO83: 2 | AP83: 3 | AQ83: 2 | AR83: 1 | AS83: 1 | AT83: 1 | AU83: 1 | AV83: 2 | AW83: 3 | AX83: 3 | AY83: 1 | AZ83: 2 | BA83: 2 | BB83: 2 | BC83: 3 | BE83: 2 | BH83: 178 | BI83: 157 | BJ83: 152 | BK83: 144 | BL83: 130 | BM83: 93 | BN83: 88 | BO83: 65 | BP83: 56 | BX83: - | BY83: - | BZ83: 6 | CB83: 1063 | EM83: 79 | EO83: 79 | EP83: (82)
A84: 80 (79) | B84: Lasse Nilsson | C84: Värends Hsk | D84: 1051 | F84: 5 | G84: 105.1 | I84: 159 | M84: 238 | X84: 172 | Z84: 290 | AA84: 192 | AB84: 18 | AC84: - | AD84: - | AE84: 79 | AF84: 80 | AG84: 80 | AH84: 80 | AK84: 2 | AL84: 2 | AM84: 1 | AN84: 1 | AO84: 2 | AP84: 2 | AQ84: 1 | AR84: 1 | AS84: 1 | AT84: 1 | AU84: 1 | AV84: 1 | AW84: 1 | AX84: 1 | AY84: 0 | AZ84: 2 | BA84: 2 | BB84: 2 | BC84: 3 | BE84: 2 | BH84: 290 | BI84: 238 | BJ84: 192 | BK84: 172 | BL84: 159 | BX84: - | BY84: - | BZ84: 10 | CB84: 1051 | EM84: 80 | EO84: 80 | EP84: (79)
A85: 81 (80) | B85: Louise Tollstam | C85: Dynapac | D85: 1039 | F85: 6 | G85: 86.58333333 | J85: 175 | K85: 129 | L85: 154 | Q85: 146 | R85: 215 | Y85: 220 | AB85: 18 | AC85: - | AD85: - | AE85: 80 | AF85: 81 | AG85: 81 | AH85: 81 | AK85: 1 | AL85: 2 | AM85: 3 | AN85: 3 | AO85: 2 | AP85: 1 | AQ85: 1 | AR85: 1 | AS85: 2 | AT85: 3 | AU85: 2 | AV85: 1 | AW85: 1 | AX85: 1 | AY85: 0 | AZ85: 1 | BA85: 2 | BB85: 2 | BC85: 1 | BE85: 2 | BH85: 220 | BI85: 215 | BJ85: 175 | BK85: 154 | BL85: 146 | BM85: 129 | BX85: - | BY85: - | BZ85: 9 | CB85: 1039 | EM85: 81 | EO85: 81 | EP85: (80)
A86: 82 (86) | B86: Åke Bergqvist | C86: Tingsryd | D86: 1023 | F86: 9 | G86: 56.83333333 | I86: 129 | K86: 93 | L86: 129 | S86: 92 | U86: 72 | V86: 58 | X86: 187 | Z86: 132 | AA86: 131 | AB86: 18 | AC86: - | AD86: - | AE86: 86 | AF86: 82 | AG86: 82 | AH86: 82 | AK86: 2 | AL86: 2 | AM86: 2 | AN86: 3 | AO86: 2 | AP86: 1 | AQ86: 1 | AR86: 1 | AS86: 1 | AT86: 1 | AU86: 2 | AV86: 2 | AW86: 2 | AX86: 3 | AY86: 1 | AZ86: 2 | BA86: 2 | BB86: 2 | BC86: 3 | BE86: 2 | BH86: 187 | BI86: 132 | BJ86: 131 | BK86: 129 | BL86: 129 | BM86: 93 | BN86: 92 | BO86: 72 | BP86: 58 | BX86: - | BY86: - | BZ86: 6 | CB86: 1023 | EM86: 82 | EO86: 82 | EP86: (86)
A87: 83 (84) | B87: Rolf Johannesson | C87: Värends Hsk | D87: 993 | F87: 6 | G87: 82.75 | K87: 109 | M87: 180 | P87: 154 | T87: 136 | Z87: 245 | AA87: 169 | AB87: 18 | AC87: - | AD87: - | AE87: 84 | AF87: 83 | AG87: 83 | AH87: 83 | AK87: 1 | AL87: 1 | AM87: 2 | AN87: 2 | AO87: 2 | AP87: 2 | AQ87: 1 | AR87: 2 | AS87: 2 | AT87: 1 | AU87: 1 | AV87: 2 | AW87: 2 | AX87: 1 | AY87: 0 | AZ87: 1 | BA87: 1 | BB87: 2 | BC87: 3 | BE87: 2 | BH87: 245 | BI87: 180 | BJ87: 169 | BK87: 154 | BL87: 136 | BM87: 109 | BX87: - | BY87: - | BZ87: 9 | CB87: 993 | EM87: 83 | EO87: 83 | EP87: (84)
A88: 84 (82) | B88: Paul Karlsson | C88: Lessebo | D88: 989 | F88: 4 | G88: 123.625 | K88: 206 | L88: 232 | M88: 295 | U88: 256 | AB88: 18 | AC88: - | AD88: - | AE88: 82 | AF88: 84 | AG88: 84 | AH88: 84 | AK88: 1 | AL88: 1 | AM88: 2 | AN88: 3 | AO88: 3 | AP88: 2 | AQ88: 1 | AR88: 1 | AS88: 1 | AT88: 1 | AU88: 1 | AV88: 1 | AW88: 2 | AX88: 2 | AY88: 0 | AZ88: 1 | BA88: 1 | BB88: 1 | BC88: 1 | BE88: 2 | BH88: 295 | BI88: 256 | BJ88: 232 | BK88: 206 | BX88: - | BY88: - | BZ88: 11 | CB88: 989 | EM88: 84 | EO88: 84 | EP88: (82)
A89: 85 (77) | B89: Gilbert Pettersson | C89: Lanternan | D89: 942 | F89: 5 | G89: 94.2 | J89: 171 | Q89: 151 | R89: 214 | Y89: 209 | Z89: 197 | AB89: 18 | AC89: - | AD89: - | AE89: 77 | AF89: 85 | AG89: 85 | AH89: 85 | AK89: 1 | AL89: 2 | AM89: 2 | AN89: 1 | AO89: 1 | AP89: 1 | AQ89: 1 | AR89: 1 | AS89: 2 | AT89: 3 | AU89: 2 | AV89: 1 | AW89: 1 | AX89: 1 | AY89: 0 | AZ89: 1 | BA89: 2 | BB89: 3 | BC89: 2 | BE89: 2 | BH89: 214 | BI89: 209 | BJ89: 197 | BK89: 171 | BL89: 151 | BX89: - | BY89: - | BZ89: 10 | CB89: 942 | EM89: 85 | EO89: 85 | EP89: (77)
A90: 86 (84) | B90: Jonas Klarström | C90: Team Småland Hsk | D90: 941 | F90: 10 | G90: 47.05 | I90: 127 | K90: 58 | L90: 58 | P90: 131 | T90: 58 | U90: 105 | V90: 93 | X90: 123 | Z90: 158 | AA90: 30 | AB90: 18 | AC90: - | AD90: - | AE90: 84 | AF90: 86 | AG90: 86 | AH90: 86 | AK90: 2 | AL90: 2 | AM90: 2 | AN90: 3 | AO90: 2 | AP90: 1 | AQ90: 1 | AR90: 2 | AS90: 2 | AT90: 1 | AU90: 1 | AV90: 2 | AW90: 3 | AX90: 3 | AY90: 1 | AZ90: 2 | BA90: 2 | BB90: 2 | BC90: 3 | BE90: 2 | BH90: 158 | BI90: 131 | BJ90: 127 | BK90: 123 | BL90: 105 | BM90: 93 | BN90: 58 | BO90: 58 | BP90: 58 | BQ90: 30 | BX90: - | BY90: - | BZ90: 5 | CB90: 941 | EM90: 86 | EO90: 86 | EP90: (84)
A91: 87 (94) | B91: Göran Mårtensson | C91: Jämjö Hsk | D91: 913 | F91: 5 | G91: 91.3 | N91: 169 | Q91: 108 | R91: 154 | Y91: 200 | AA91: 282 | AB91: 18 | AC91: - | AD91: - | AE91: 94 | AF91: 87 | AG91: 87 | AH91: 87 | AK91: 1 | AL91: 1 | AM91: 1 | AN91: 1 | AO91: 1 | AP91: 2 | AQ91: 2 | AR91: 1 | AS91: 2 | AT91: 3 | AU91: 2 | AV91: 1 | AW91: 1 | AX91: 1 | AY91: 0 | AZ91: 1 | BA91: 2 | BB91: 2 | BC91: 2 | BE91: 2 | BH91: 282 | BI91: 200 | BJ91: 169 | BK91: 154 | BL91: 108 | BX91: - | BY91: - | BZ91: 10 | CB91: 913 | EM91: 87 | EO91: 87 | EP91: (94)
A92: 88 (86) | B92: Rikard Åberg | C92: Alvesta | D92: 895 | F92: 7 | G92: 63.92857143 | J92: 96 | L92: 143 | M92: 137 | O92: 101 | P92: 134 | Q92: 142 | S92: 142 | AB92: 18 | AC92: - | AD92: - | AE92: 86 | AF92: 88 | AG92: 88 | AH92: 88 | AK92: 1 | AL92: 2 | AM92: 2 | AN92: 2 | AO92: 3 | AP92: 2 | AQ92: 2 | AR92: 3 | AS92: 3 | AT92: 2 | AU92: 2 | AV92: 2 | AW92: 1 | AX92: 1 | AY92: 0 | AZ92: 1 | BA92: 1 | BB92: 1 | BC92: 1 | BE92: 2 | BH92: 143 | BI92: 142 | BJ92: 142 | BK92: 137 | BL92: 134 | BM92: 101 | BN92: 96 | BX92: - | BY92: - | BZ92: 8 | CB92: 895 | EM92: 88 | EO92: 88 | EP92: (86)
A93: =IF(BE93>1,AF93&" ("&AE93&")",AF93&" ("&AG93&")") -> 89 (88) | B93: Lennart Karlsson | C93: Lanternan | D93: 809 | F93: 5 | G93: 80.9 | J93: 175 | K93: 116 | Q93: 176 | R93: 137 | T93: 205 | AB93: 18 | AC93: - | AD93: - | AE93: 88 | AF93: =IF(D93<D92,AH93,AF92) -> 89 | AG93: 89 | AH93: 89 | AK93: =COUNT($I$3,I93,H93) -> 1 | AL93: =COUNT($J$3,J93,I93) -> 2 | AM93: =COUNT($K$3,K93,J93) -> 3 | AN93: =COUNT($L$3,L93,K93) -> 2 | AO93: =COUNT($M$3,M93,L93) -> 1 | AP93: =COUNT($N$3,N93,M93) -> 1 | AQ93: =COUNT($O$3,O93,N93) -> 1 | AR93: =COUNT($P$3,P93,O93) -> 1 | AS93: =COUNT($Q$3,Q93,P93) -> 2 | AT93: =COUNT($R$3,R93,Q93) -> 3 | AU93: =COUNT($S$3,S93,R93) -> 2 | AV93: =COUNT($T$3,T93,S93) -> 2 | AW93: =COUNT($U$3,U93,T93) -> 2 | AX93: =COUNT($V$3,V93,U93) -> 1 | AY93: =COUNT($W$3,W93,V93) -> 0 | AZ93: =COUNT($X$3,X93,W93) -> 1 | BA93: =COUNT($Y$3,Y93,X93) -> 1 | BB93: =COUNT($Z$3,Z93,Y93) -> 1 | BC93: =COUNT($AA$3,AA93,Z93) -> 1 | BE93: =IF(H93="x",1,2) -> 2 | BH93: =IF($F93>0,LARGE($I93:$AA93,1),"") -> 205 | BI93: =IF($F93>1,LARGE($I93:$AA93,2),"") -> 176 | BJ93: =IF($F93>2,LARGE($I93:$AA93,3),"") -> 175 | BK93: =IF($F93>3,LARGE($I93:$AA93,4),"") -> 137 | BL93: =IF($F93>4,LARGE($I93:$AA93,5),"") -> 116 | BM93: =IF($F93>5,LARGE($I93:$AA93,6),"") ->  | BN93: =IF($F93>6,LARGE($I93:$AA93,7),"") ->  | BO93: =IF($F93>7,LARGE($I93:$AA93,8),"") ->  | BP93: =IF($F93>8,LARGE($I93:$AA93,9),"") ->  | BQ93: =IF($F93>9,LARGE($I93:$AA93,10),"") ->  | BR93: =IF($F93>10,LARGE($I93:$AA93,11),"") ->  | BS93: =IF($F93>11,LARGE($I93:$AA93,12),"") ->  | BT93: =IF($F93>12,LARGE($I93:$AA93,13),"") ->  | BU93: =IF($F93>13,LARGE($I93:$AA93,14),"") ->  | BV93: =IF($F93>14,LARGE($I93:$AA93,15),"") ->  | BX93: - | BY93: - | BZ93: 10 | CB93: 809 | EM93: 90 | EO93: 89 | EP93: (88)
A94: 90 (96) | B94: Susanne Andersson | C94: Team Småland Hsk | D94: 771 | F94: 6 | G94: 64.25 | P94: 145 | U94: 59 | V94: 167 | X94: 94 | Z94: 163 | AA94: 143 | AB94: 18 | AC94: - | AD94: - | AE94: 96 | AF94: 90 | AG94: 90 | AH94: 90 | AK94: 1 | AL94: 1 | AM94: 1 | AN94: 1 | AO94: 1 | AP94: 1 | AQ94: 1 | AR94: 2 | AS94: 2 | AT94: 1 | AU94: 1 | AV94: 1 | AW94: 2 | AX94: 3 | AY94: 1 | AZ94: 2 | BA94: 2 | BB94: 2 | BC94: 3 | BE94: 2 | BH94: 167 | BI94: 163 | BJ94: 145 | BK94: 143 | BL94: 94 | BM94: 59 | BX94: - | BY94: - | BZ94: 9 | CB94: 771 | EM94: 91 | EO94: 90 | EP94: (96)
A95: 91 (89) | B95: Elin Olsson | C95: Dynapac | D95: 745 | F95: 6 | G95: 62.08333333 | J95: 148 | K95: 74 | L95: 95 | N95: 152 | Q95: 137 | R95: 139 | AB95: 18 | AC95: - | AD95: - | AE95: 89 | AF95: 91 | AG95: 91 | AH95: 91 | AK95: 1 | AL95: 2 | AM95: 3 | AN95: 3 | AO95: 2 | AP95: 2 | AQ95: 2 | AR95: 1 | AS95: 2 | AT95: 3 | AU95: 2 | AV95: 1 | AW95: 1 | AX95: 1 | AY95: 0 | AZ95: 1 | BA95: 1 | BB95: 1 | BC95: 1 | BE95: 2 | BH95: 152 | BI95: 148 | BJ95: 139 | BK95: 137 | BL95: 95 | BM95: 74 | BX95: - | BY95: - | BZ95: 9 | CB95: 745 | EM95: 92 | EO95: 91 | EP95: (89)
A96: 92 (91) | B96: Lars-Åke Karlsson | C96: Jämjö Hsk | D96: 711 | F96: 4 | G96: 88.875 | J96: 163 | N96: 170 | R96: 195 | Y96: 183 | AB96: 18 | AC96: - | AD96: - | AE96: 91 | AF96: 92 | AG96: 92 | AH96: 92 | AK96: 1 | AL96: 2 | AM96: 2 | AN96: 1 | AO96: 1 | AP96: 2 | AQ96: 2 | AR96: 1 | AS96: 1 | AT96: 2 | AU96: 2 | AV96: 1 | AW96: 1 | AX96: 1 | AY96: 0 | AZ96: 1 | BA96: 2 | BB96: 2 | BC96: 1 | BE96: 2 | BH96: 195 | BI96: 183 | BJ96: 170 | BK96: 163 | BX96: - | BY96: - | BZ96: 11 | CB96: 711 | EM96: 93 | EO96: 92 | EP96: (91)
A97: 93 (97) | B97: Lars-Erik Green | C97: Team Småland Hsk | D97: 681 | F97: 7 | G97: 48.64285714 | I97: 85 | P97: 88 | U97: 57 | V97: 159 | X97: 95 | Z97: 58 | AA97: 139 | AB97: 18 | AC97: - | AD97: - | AE97: 97 | AF97: 93 | AG97: 93 | AH97: 93 | AK97: 2 | AL97: 2 | AM97: 1 | AN97: 1 | AO97: 1 | AP97: 1 | AQ97: 1 | AR97: 2 | AS97: 2 | AT97: 1 | AU97: 1 | AV97: 1 | AW97: 2 | AX97: 3 | AY97: 1 | AZ97: 2 | BA97: 2 | BB97: 2 | BC97: 3 | BE97: 2 | BH97: 159 | BI97: 139 | BJ97: 95 | BK97: 88 | BL97: 85 | BM97: 58 | BN97: 57 | BX97: - | BY97: - | BZ97: 8 | CB97: 681 | EM97: 89 | EO97: 93 | EP97: (97)
A98: 94 (101) | B98: Anders Karlsson | C98: Värends Hsk | D98: 666 | F98: 6 | G98: 55.5 | J98: 157 | Q98: 77 | U98: 92 | X98: 78 | Z98: 146 | AA98: 116 | AB98: 18 | AC98: - | AD98: - | AE98: 101 | AF98: 94 | AG98: 94 | AH98: 94 | AK98: 1 | AL98: 2 | AM98: 2 | AN98: 1 | AO98: 1 | AP98: 1 | AQ98: 1 | AR98: 1 | AS98: 2 | AT98: 2 | AU98: 1 | AV98: 1 | AW98: 2 | AX98: 2 | AY98: 0 | AZ98: 2 | BA98: 2 | BB98: 2 | BC98: 3 | BE98: 2 | BH98: 157 | BI98: 146 | BJ98: 116 | BK98: 92 | BL98: 78 | BM98: 77 | BX98: - | BY98: - | BZ98: 9 | CB98: 666 | EM98: 94 | EO98: 94 | EP98: (101)
A99: 95 (92) | B99: Armin Sisic | C99: Värends Hsk | D99: 664 | F99: 2 | G99: 166 | V99: 319 | Z99: 345 | AB99: 18 | AC99: - | AD99: - | AE99: 92 | AF99: 95 | AG99: 95 | AH99: 95 | AK99: 1 | AL99: 1 | AM99: 1 | AN99: 1 | AO99: 1 | AP99: 1 | AQ99: 1 | AR99: 1 | AS99: 1 | AT99: 1 | AU99: 1 | AV99: 1 | AW99: 1 | AX99: 2 | AY99: 1 | AZ99: 1 | BA99: 1 | BB99: 2 | BC99: 2 | BE99: 2 | BH99: 345 | BI99: 319 | BX99: - | BY99: - | BZ99: 13 | CB99: 664 | EM99: 95 | EO99: 95 | EP99: (92)
A100: 96 (93) | B100: Kjell Åkesson | C100: Lanternan | D100: 649 | F100: 4 | G100: 81.125 | J100: 196 | K100: 56 | R100: 184 | T100: 213 | AB100: 18 | AC100: - | AD100: - | AE100: 93 | AF100: 96 | AG100: 96 | AH100: 96 | AK100: 1 | AL100: 2 | AM100: 3 | AN100: 2 | AO100: 1 | AP100: 1 | AQ100: 1 | AR100: 1 | AS100: 1 | AT100: 2 | AU100: 2 | AV100: 2 | AW100: 2 | AX100: 1 | AY100: 0 | AZ100: 1 | BA100: 1 | BB100: 1 | BC100: 1 | BE100: 2 | BH100: 213 | BI100: 196 | BJ100: 184 | BK100: 56 | BX100: - | BY100: - | BZ100: 11 | CB100: 649 | EM100: 96 | EO100: 96 | EP100: (93)
A101: 97 (89) | B101: Rune Karlsson | C101: Korpen Nybro | D101: 621 | F101: 3 | G101: 103.5 | M101: 269 | S101: 168 | T101: 184 | AB101: 18 | AC101: - | AD101: - | AE101: 89 | AF101: 97 | AG101: =IF(F101>1,ROW(97:97),"-") -> 97 | AH101: 97 | AK101: 1 | AL101: 1 | AM101: 1 | AN101: 1 | AO101: 2 | AP101: 2 | AQ101: 1 | AR101: 1 | AS101: 1 | AT101: 1 | AU101: 2 | AV101: 3 | AW101: 2 | AX101: 1 | AY101: 0 | AZ101: 1 | BA101: 1 | BB101: 1 | BC101: 1 | BE101: 2 | BH101: 269 | BI101: 184 | BJ101: 168 | BX101: - | BY101: - | BZ101: 12 | CB101: 621 | EM101: 97 | EO101: =IF(BE101>=1,AF101,"") -> 97 | EP101: (89)
A102: 98 (97) | B102: Linnea Gneupel | C102: Sibbamåla | D102: 620 | F102: 5 | G102: 62 | K102: 123 | L102: 99 | P102: 82 | Q102: 137 | R102: 179 | AB102: 18 | AC102: - | AD102: - | AE102: 97 | AF102: 98 | AG102: 98 | AH102: 98 | AK102: 1 | AL102: 1 | AM102: 2 | AN102: 3 | AO102: 2 | AP102: 1 | AQ102: 1 | AR102: 2 | AS102: 3 | AT102: 3 | AU102: 2 | AV102: 1 | AW102: 1 | AX102: 1 | AY102: 0 | AZ102: 1 | BA102: 1 | BB102: 1 | BC102: 1 | BE102: 2 | BH102: 179 | BI102: 137 | BJ102: 123 | BK102: 99 | BL102: 82 | BX102: - | BY102: - | BZ102: 10 | CB102: 620 | EM102: 98 | EO102: 98 | EP102: (97)
A103: 99 (100) | B103: André Gustafsson | C103: Dynapac | D103: 595 | F103: 3 | G103: 99.16666667 | N103: 173 | Q103: 206 | R103: 216 | AB103: 18 | AC103: - | AD103: - | AE103: 100 | AF103: 99 | AG103: 99 | AH103: 99 | AK103: 1 | AL103: 1 | AM103: 1 | AN103: 1 | AO103: 1 | AP103: 2 | AQ103: 2 | AR103: 1 | AS103: 2 | AT103: 3 | AU103: 2 | AV103: 1 | AW103: 1 | AX103: 1 | AY103: 0 | AZ103: 1 | BA103: 1 | BB103: 1 | BC103: 1 | BE103: 2 | BH103: 216 | BI103: 206 | BJ103: 173 | BX103: - | BY103: - | BZ103: 12 | CB103: 595 | EM103: 99 | EO103: 99 | EP103: (100)
A104: 100 (101) | B104: Roland Andreasson | C104: Lanternan | D104: 573 | F104: 3 | G104: 95.5 | R104: 179 | S104: 177 | V104: 217 | AB104: 18 | AC104: - | AD104: - | AE104: 101 | AF104: 100 | AG104: 100 | AH104: 100 | AK104: 1 | AL104: 1 | AM104: 1 | AN104: 1 | AO104: 1 | AP104: 1 | AQ104: 1 | AR104: 1 | AS104: 1 | AT104: 2 | AU104: 3 | AV104: 2 | AW104: 1 | AX104: 2 | AY104: 1 | AZ104: 1 | BA104: 1 | BB104: 1 | BC104: 1 | BE104: 2 | BH104: 217 | BI104: 179 | BJ104: 177 | BX104: - | BY104: - | BZ104: 12 | CB104: 573 | EM104: 100 | EO104: 100 | EP104: (101)
A105: 101 (94) | B105: Rickard Holgersson | C105: Sketnabäck | D105: 504 | F105: 3 | G105: 84 | J105: 181 | K105: 217 | L105: 106 | AB105: 18 | AC105: - | AD105: - | AE105: 94 | AF105: 101 | AG105: 101 | AH105: 101 | AK105: 1 | AL105: 2 | AM105: 3 | AN105: 3 | AO105: 2 | AP105: 1 | AQ105: 1 | AR105: 1 | AS105: 1 | AT105: 1 | AU105: 1 | AV105: 1 | AW105: 1 | AX105: 1 | AY105: 0 | AZ105: 1 | BA105: 1 | BB105: 1 | BC105: 1 | BE105: 2 | BH105: 217 | BI105: 181 | BJ105: 106 | BX105: - | BY105: - | BZ105: 12 | CB105: 504 | EM105: 101 | EO105: 101 | EP105: (94)
A106: 102 (103) | B106: Håkan Larsson | C106: Tingsryd | D106: 474 | F106: 3 | G106: 79 | K106: 169 | L106: 151 | U106: 154 | AB106: 18 | AC106: - | AD106: - | AE106: 103 | AF106: 102 | AG106: 102 | AH106: 102 | AK106: 1 | AL106: 1 | AM106: 2 | AN106: 3 | AO106: 2 | AP106: 1 | AQ106: 1 | AR106: 1 | AS106: 1 | AT106: 1 | AU106: 1 | AV106: 1 | AW106: 2 | AX106: 2 | AY106: 0 | AZ106: 1 | BA106: 1 | BB106: 1 | BC106: 1 | BE106: 2 | BH106: 169 | BI106: 154 | BJ106: 151 | BX106: - | BY106: - | BZ106: 12 | CB106: 474 | EM106: 103 | EO106: 102 | EP106: (103)
A107: 103 (104) | B107: Solveig Brincner | C107: Värends Hsk | D107: 462 | F107: 7 | G107: 33 | J107: 101 | L107: 48 | P107: 77 | Q107: 52 | S107: 63 | V107: 67 | X107: 54 | AB107: 18 | AC107: - | AD107: - | AE107: 104 | AF107: 103 | AG107: 103 | AH107: 103 | AK107: 1 | AL107: 2 | AM107: 2 | AN107: 2 | AO107: 2 | AP107: 1 | AQ107: 1 | AR107: 2 | AS107: 3 | AT107: 2 | AU107: 2 | AV107: 2 | AW107: 1 | AX107: 2 | AY107: 1 | AZ107: 2 | BA107: 2 | BB107: 1 | BC107: 1 | BE107: 2 | BH107: 101 | BI107: 77 | BJ107: 67 | BK107: 63 | BL107: 54 | BM107: 52 | BN107: 48 | BX107: - | BY107: - | BZ107: 8 | CB107: 462 | EM107: 104 | EO107: 103 | EP107: (104)
A108: 104 (97) | B108: Kasper Sjöberg | C108: Sketnabäck | D108: 439 | F108: 3 | G108: 73.16666667 | J108: 153 | K108: 154 | L108: 132 | AB108: 18 | AC108: - | AD108: - | AE108: 97 | AF108: 104 | AG108: 104 | AH108: 104 | AK108: 1 | AL108: 2 | AM108: 3 | AN108: 3 | AO108: 2 | AP108: 1 | AQ108: 1 | AR108: 1 | AS108: 1 | AT108: 1 | AU108: 1 | AV108: 1 | AW108: 1 | AX108: 1 | AY108: 0 | AZ108: 1 | BA108: 1 | BB108: 1 | BC108: 1 | BE108: 2 | BH108: 154 | BI108: 153 | BJ108: 132 | BX108: - | BY108: - | BZ108: 12 | CB108: 439 | EM108: 105 | EO108: 104 | EP108: (97)
A109: 105 (105) | B109: Stefan Olofsson | C109: Korpen Nybro | D109: 432 | F109: 2 | G109: 108 | T109: 190 | X109: 242 | AB109: 18 | AC109: - | AD109: - | AE109: 105 | AF109: 105 | AG109: 105 | AH109: 105 | AK109: 1 | AL109: 1 | AM109: 1 | AN109: 1 | AO109: 1 | AP109: 1 | AQ109: 1 | AR109: 1 | AS109: 1 | AT109: 1 | AU109: 1 | AV109: 2 | AW109: 2 | AX109: 1 | AY109: 0 | AZ109: 2 | BA109: 2 | BB109: 1 | BC109: 1 | BE109: 2 | BH109: 242 | BI109: 190 | BX109: - | BY109: - | BZ109: 13 | CB109: 432 | EM109: 106 | EO109: 105 | EP109: (105)
A110: 106 (107) | B110: Marianne Karlsson | C110: Jämjö Hsk | D110: 412 | F110: 3 | G110: 68.66666667 | J110: 156 | R110: 126 | Y110: 130 | AB110: 18 | AC110: - | AD110: - | AE110: 107 | AF110: 106 | AG110: 106 | AH110: 106 | AK110: 1 | AL110: 2 | AM110: 2 | AN110: 1 | AO110: 1 | AP110: 1 | AQ110: 1 | AR110: 1 | AS110: 1 | AT110: 2 | AU110: 2 | AV110: 1 | AW110: 1 | AX110: 1 | AY110: 0 | AZ110: 1 | BA110: 2 | BB110: 2 | BC110: 1 | BE110: 2 | BH110: 156 | BI110: 130 | BJ110: 126 | BX110: - | BY110: - | BZ110: 12 | CB110: 412 | EM110: 107 | EO110: 106 | EP110: (107)
A111: 107 (108) | B111: Kerstin Petersen | C111: Växjö | D111: 406 | F111: 3 | G111: 67.66666667 | P111: 127 | U111: 169 | X111: 110 | AB111: 18 | AC111: - | AD111: - | AE111: 108 | AF111: 107 | AG111: 107 | AH111: 107 | AK111: 1 | AL111: 1 | AM111: 1 | AN111: 1 | AO111: 1 | AP111: 1 | AQ111: 1 | AR111: 2 | AS111: 2 | AT111: 1 | AU111: 1 | AV111: 1 | AW111: 2 | AX111: 2 | AY111: 0 | AZ111: 2 | BA111: 2 | BB111: 1 | BC111: 1 | BE111: 2 | BH111: 169 | BI111: 127 | BJ111: 110 | BX111: - | BY111: - | BZ111: 12 | CB111: 406 | EM111: 108 | EO111: 107 | EP111: (108)
A112: 108 (109) | B112: Bertil Olsson | C112: Jämjö Hsk | D112: 368 | F112: 3 | G112: 61.33333333 | Q112: 84 | R112: 126 | Y112: 158 | AB112: 18 | AC112: - | AD112: - | AE112: 109 | AF112: 108 | AG112: 108 | AH112: 108 | AK112: 1 | AL112: 1 | AM112: 1 | AN112: 1 | AO112: 1 | AP112: 1 | AQ112: 1 | AR112: 1 | AS112: 2 | AT112: 3 | AU112: 2 | AV112: 1 | AW112: 1 | AX112: 1 | AY112: 0 | AZ112: 1 | BA112: 2 | BB112: 2 | BC112: 1 | BE112: 2 | BH112: 158 | BI112: 126 | BJ112: 84 | BX112: - | BY112: - | BZ112: 12 | CB112: 368 | EM112: 102 | EO112: 108 | EP112: (109)
A113: 109 (110) | B113: Morgan Atle | C113: Dynapac | D113: 361 | F113: 3 | G113: 60.16666667 | J113: 101 | K113: 148 | L113: 112 | AB113: 18 | AC113: - | AD113: - | AE113: 110 | AF113: 109 | AG113: 109 | AH113: 109 | AK113: 1 | AL113: 2 | AM113: 3 | AN113: 3 | AO113: 2 | AP113: 1 | AQ113: 1 | AR113: 1 | AS113: 1 | AT113: 1 | AU113: 1 | AV113: 1 | AW113: 1 | AX113: 1 | AY113: 0 | AZ113: 1 | BA113: 1 | BB113: 1 | BC113: 1 | BE113: 2 | BH113: 148 | BI113: 112 | BJ113: 101 | BX113: - | BY113: - | BZ113: 12 | CB113: 361 | EM113: 109 | EO113: 109 | EP113: (110)
A114: 110 (111) | B114: Tobias Vikström | C114: Växjö Hsk | D114: 359 | F114: 1 | G114: 179.5 | V114: 359 | AB114: 18 | AC114: - | AD114: - | AE114: 111 | AF114: 110 | AG114: - | AH114: 110 | AK114: 1 | AL114: 1 | AM114: 1 | AN114: 1 | AO114: 1 | AP114: 1 | AQ114: 1 | AR114: 1 | AS114: 1 | AT114: 1 | AU114: 1 | AV114: 1 | AW114: 1 | AX114: 2 | AY114: 1 | AZ114: 1 | BA114: 1 | BB114: 1 | BC114: 1 | BE114: 2 | BH114: 359 | BX114: - | BY114: - | BZ114: 14 | CB114: 359 | EM114: 110 | EO114: 110 | EP114: (111)
A115: 111 (112) | B115: Leif Ahlex | C115: Lessebo | D115: 348 | F115: 1 | G115: 174 | I115: 348 | AB115: 18 | AC115: - | AD115: - | AE115: 112 | AF115: 111 | AG115: - | AH115: 111 | AK115: 2 | AL115: 2 | AM115: 1 | AN115: 1 | AO115: 1 | AP115: 1 | AQ115: 1 | AR115: 1 | AS115: 1 | AT115: 1 | AU115: 1 | AV115: 1 | AW115: 1 | AX115: 1 | AY115: 0 | AZ115: 1 | BA115: 1 | BB115: 1 | BC115: 1 | BE115: 2 | BH115: 348 | BX115: - | BY115: - | BZ115: 14 | CB115: 348 | EM115: 116 | EO115: 111 | EP115: (112)
A116: 112 (113) | B116: Ronjah Pettersson | C116: Växjö Hsk | D116: 340 | F116: 2 | G116: 85 | X116: 174 | Z116: 166 | AB116: 18 | AC116: - | AD116: - | AE116: 113 | AF116: 112 | AG116: 112 | AH116: 112 | AK116: 1 | AL116: 1 | AM116: 1 | AN116: 1 | AO116: 1 | AP116: 1 | AQ116: 1 | AR116: 1 | AS116: 1 | AT116: 1 | AU116: 1 | AV116: 1 | AW116: 1 | AX116: 1 | AY116: 0 | AZ116: 2 | BA116: 2 | BB116: 2 | BC116: 2 | BE116: 2 | BH116: 174 | BI116: 166 | BX116: - | BY116: - | BZ116: 13 | CB116: 340 | EM116: 111 | EO116: 112 | EP116: (113)
A117: 113 (114) | B117: Mimmi Hansson | C117: Korpen Nybro | D117: 331 | F117: 3 | G117: 55.16666667 | U117: 126 | V117: 104 | Z117: 101 | AB117: 18 | AC117: - | AD117: - | AE117: 114 | AF117: 113 | AG117: 113 | AH117: 113 | AK117: 1 | AL117: 1 | AM117: 1 | AN117: 1 | AO117: 1 | AP117: 1 | AQ117: 1 | AR117: 1 | AS117: 1 | AT117: 1 | AU117: 1 | AV117: 1 | AW117: 2 | AX117: 3 | AY117: 1 | AZ117: 1 | BA117: 1 | BB117: 2 | BC117: 2 | BE117: 2 | BH117: 126 | BI117: 104 | BJ117: 101 | BX117: - | BY117: - | BZ117: 12 | CB117: 331 | EM117: 112 | EO117: 113 | EP117: (114)
A118: 114 (117) | B118: Arne Blihd | C118: Lanternan | D118: 319 | F118: 3 | G118: 53.16666667 | J118: 107 | R118: 146 | T118: 66 | AB118: 18 | AC118: - | AD118: - | AE118: 117 | AF118: 114 | AG118: 114 | AH118: 114 | AK118: 1 | AL118: 2 | AM118: 2 | AN118: 1 | AO118: 1 | AP118: 1 | AQ118: 1 | AR118: 1 | AS118: 1 | AT118: 2 | AU118: 2 | AV118: 2 | AW118: 2 | AX118: 1 | AY118: 0 | AZ118: 1 | BA118: 1 | BB118: 1 | BC118: 1 | BE118: 2 | BH118: 146 | BI118: 107 | BJ118: 66 | BX118: - | BY118: - | BZ118: 12 | CB118: 319 | EM118: 114 | EO118: 114 | EP118: (117)
A119: 115 (115) | B119: Allan Persson | C119: Tingsryd | D119: 312 | F119: 3 | G119: 52 | U119: 115 | X119: 113 | AA119: 84 | AB119: 18 | AC119: - | AD119: - | AE119: 115 | AF119: 115 | AG119: 115 | AH119: 115 | AK119: 1 | AL119: 1 | AM119: 1 | AN119: 1 | AO119: 1 | AP119: 1 | AQ119: 1 | AR119: 1 | AS119: 1 | AT119: 1 | AU119: 1 | AV119: 1 | AW119: 2 | AX119: 2 | AY119: 0 | AZ119: 2 | BA119: 2 | BB119: 1 | BC119: 2 | BE119: 2 | BH119: 115 | BI119: 113 | BJ119: 84 | BX119: - | BY119: - | BZ119: 12 | CB119: 312 | EM119: 115 | EO119: 115 | EP119: (115)
A120: 116 (119) | B120: Kent Vikström | C120: Växjö | D120: 304 | F120: 2 | G120: 76 | K120: 146 | V120: 158 | AB120: 18 | AC120: - | AD120: - | AE120: 119 | AF120: 116 | AG120: 116 | AH120: 116 | AK120: 1 | AL120: 1 | AM120: 2 | AN120: 2 | AO120: 1 | AP120: 1 | AQ120: 1 | AR120: 1 | AS120: 1 | AT120: 1 | AU120: 1 | AV120: 1 | AW120: 1 | AX120: 2 | AY120: 1 | AZ120: 1 | BA120: 1 | BB120: 1 | BC120: 1 | BE120: 2 | BH120: 158 | BI120: 146 | BX120: - | BY120: - | BZ120: 13 | CB120: 304 | EM120: 117 | EO120: 116 | EP120: (119)
A121: 117 (105) | B121: Robert Sjöberg | C121: Sketnabäck | D121: 302 | F121: 3 | G121: 50.33333333 | J121: 85 | K121: 96 | L121: 121 | AB121: 18 | AC121: - | AD121: - | AE121: 105 | AF121: 117 | AG121: 117 | AH121: 117 | AK121: 1 | AL121: 2 | AM121: 3 | AN121: 3 | AO121: 2 | AP121: 1 | AQ121: 1 | AR121: 1 | AS121: 1 | AT121: 1 | AU121: 1 | AV121: 1 | AW121: 1 | AX121: 1 | AY121: 0 | AZ121: 1 | BA121: 1 | BB121: 1 | BC121: 1 | BE121: 2 | BH121: 121 | BI121: 96 | BJ121: 85 | BX121: - | BY121: - | BZ121: 12 | CB121: 302 | EM121: 118 | EO121: 117 | EP121: (105)
A122: 118 (120) | B122: Niklas Berglund | C122: Växjö Hsk | D122: 300 | F122: 2 | G122: 75 | I122: 148 | U122: 152 | AB122: 18 | AC122: - | AD122: - | AE122: 120 | AF122: 118 | AG122: 118 | AH122: 118 | AK122: 2 | AL122: 2 | AM122: 1 | AN122: 1 | AO122: 1 | AP122: 1 | AQ122: 1 | AR122: 1 | AS122: 1 | AT122: 1 | AU122: 1 | AV122: 1 | AW122: 2 | AX122: 2 | AY122: 0 | AZ122: 1 | BA122: 1 | BB122: 1 | BC122: 1 | BE122: 2 | BH122: 152 | BI122: 148 | BX122: - | BY122: - | BZ122: 13 | CB122: 300 | EM122: 119 | EO122: 118 | EP122: (120)
A123: 119 (122) | B123: Ingegärd Holmqvist | C123: Lanternan | D123: 299 | F123: 3 | G123: 49.83333333 | J123: 73 | Q123: 99 | R123: 127 | AB123: 18 | AC123: - | AD123: - | AE123: 122 | AF123: 119 | AG123: 119 | AH123: 119 | AK123: 1 | AL123: 2 | AM123: 2 | AN123: 1 | AO123: 1 | AP123: 1 | AQ123: 1 | AR123: 1 | AS123: 2 | AT123: 3 | AU123: 2 | AV123: 1 | AW123: 1 | AX123: 1 | AY123: 0 | AZ123: 1 | BA123: 1 | BB123: 1 | BC123: 1 | BE123: 2 | BH123: 127 | BI123: 99 | BJ123: 73 | BX123: - | BY123: - | BZ123: 12 | CB123: 299 | EM123: 120 | EO123: 119 | EP123: (122)
A124: 120 (123) | B124: Kenneth Andersson | C124: Dynapac | D124: 285 | F124: 2 | G124: 71.25 | N124: 194 | Q124: 91 | AB124: 18 | AC124: - | AD124: - | AE124: 123 | AF124: 120 | AG124: 120 | AH124: 120 | AK124: 1 | AL124: 1 | AM124: 1 | AN124: 1 | AO124: 1 | AP124: 2 | AQ124: 2 | AR124: 1 | AS124: 2 | AT124: 2 | AU124: 1 | AV124: 1 | AW124: 1 | AX124: 1 | AY124: 0 | AZ124: 1 | BA124: 1 | BB124: 1 | BC124: 1 | BE124: 2 | BH124: 194 | BI124: 91 | BX124: - | BY124: - | BZ124: 13 | CB124: 285 | EM124: 121 | EO124: 120 | EP124: (123)
A125: =IF(BE125>1,AF125&" ("&AE125&")",AF125&" ("&AG125&")") -> 121 (124) | B125: Susanne Simonsson | C125: Lanternan | D125: 278 | F125: 2 | G125: 69.5 | R125: 120 | V125: 158 | AB125: 18 | AC125: - | AD125: - | AE125: 124 | AF125: =IF(D125<D124,AH125,AF124) -> 121 | AG125: 121 | AH125: 121 | AK125: =COUNT($I$3,I125,H125) -> 1 | AL125: =COUNT($J$3,J125,I125) -> 1 | AM125: =COUNT($K$3,K125,J125) -> 1 | AN125: =COUNT($L$3,L125,K125) -> 1 | AO125: =COUNT($M$3,M125,L125) -> 1 | AP125: =COUNT($N$3,N125,M125) -> 1 | AQ125: =COUNT($O$3,O125,N125) -> 1 | AR125: =COUNT($P$3,P125,O125) -> 1 | AS125: =COUNT($Q$3,Q125,P125) -> 1 | AT125: =COUNT($R$3,R125,Q125) -> 2 | AU125: =COUNT($S$3,S125,R125) -> 2 | AV125: =COUNT($T$3,T125,S125) -> 1 | AW125: =COUNT($U$3,U125,T125) -> 1 | AX125: =COUNT($V$3,V125,U125) -> 2 | AY125: =COUNT($W$3,W125,V125) -> 1 | AZ125: =COUNT($X$3,X125,W125) -> 1 | BA125: =COUNT($Y$3,Y125,X125) -> 1 | BB125: =COUNT($Z$3,Z125,Y125) -> 1 | BC125: =COUNT($AA$3,AA125,Z125) -> 1 | BE125: =IF(H125="x",1,2) -> 2 | BH125: =IF($F125>0,LARGE($I125:$AA125,1),"") -> 158 | BI125: =IF($F125>1,LARGE($I125:$AA125,2),"") -> 120 | BJ125: =IF($F125>2,LARGE($I125:$AA125,3),"") ->  | BK125: =IF($F125>3,LARGE($I125:$AA125,4),"") ->  | BL125: =IF($F125>4,LARGE($I125:$AA125,5),"") ->  | BM125: =IF($F125>5,LARGE($I125:$AA125,6),"") ->  | BN125: =IF($F125>6,LARGE($I125:$AA125,7),"") ->  | BO125: =IF($F125>7,LARGE($I125:$AA125,8),"") ->  | BP125: =IF($F125>8,LARGE($I125:$AA125,9),"") ->  | BQ125: =IF($F125>9,LARGE($I125:$AA125,10),"") ->  | BR125: =IF($F125>10,LARGE($I125:$AA125,11),"") ->  | BS125: =IF($F125>11,LARGE($I125:$AA125,12),"") ->  | BT125: =IF($F125>12,LARGE($I125:$AA125,13),"") ->  | BU125: =IF($F125>13,LARGE($I125:$AA125,14),"") ->  | BV125: =IF($F125>14,LARGE($I125:$AA125,15),"") ->  | BX125: - | BY125: - | BZ125: 13 | CB125: 278 | EM125: 127 | EO125: 121 | EP125: (124)
A126: 122 (125) | B126: Roger Johansson | C126: Dynapac | D126: 271 | F126: 2 | G126: 67.75 | Q126: 154 | R126: 117 | AB126: 18 | AC126: - | AD126: - | AE126: 125 | AF126: 122 | AG126: 122 | AH126: 122 | AK126: 1 | AL126: 1 | AM126: 1 | AN126: 1 | AO126: 1 | AP126: 1 | AQ126: 1 | AR126: 1 | AS126: 2 | AT126: 3 | AU126: 2 | AV126: 1 | AW126: 1 | AX126: 1 | AY126: 0 | AZ126: 1 | BA126: 1 | BB126: 1 | BC126: 1 | BE126: 2 | BH126: 154 | BI126: 117 | BX126: - | BY126: - | BZ126: 13 | CB126: 271 | EM126: 122 | EO126: 122 | EP126: (125)
A127: 123 (127) | B127: Krister Nygren | C127: Korpen Åseda | D127: 265 | F127: 1 | G127: 132.5 | I127: 265 | AB127: 18 | AC127: - | AD127: - | AE127: 127 | AF127: 123 | AG127: - | AH127: 123 | AK127: 2 | AL127: 2 | AM127: 1 | AN127: 1 | AO127: 1 | AP127: 1 | AQ127: 1 | AR127: 1 | AS127: 1 | AT127: 1 | AU127: 1 | AV127: 1 | AW127: 1 | AX127: 1 | AY127: 0 | AZ127: 1 | BA127: 1 | BB127: 1 | BC127: 1 | BE127: 2 | BH127: 265 | BX127: - | BY127: - | BZ127: 14 | CB127: 265 | EM127: 123 | EO127: 123 | EP127: (127)
A128: 124 (116) | B128: Ulf Seyer | C128: Alvesta | D128: 262 | F128: 2 | G128: 65.5 | I128: 155 | O128: 107 | AB128: 18 | AC128: - | AD128: - | AE128: 116 | AF128: 124 | AG128: 124 | AH128: 124 | AK128: 2 | AL128: 2 | AM128: 1 | AN128: 1 | AO128: 1 | AP128: 1 | AQ128: 2 | AR128: 2 | AS128: 1 | AT128: 1 | AU128: 1 | AV128: 1 | AW128: 1 | AX128: 1 | AY128: 0 | AZ128: 1 | BA128: 1 | BB128: 1 | BC128: 1 | BE128: 2 | BH128: 155 | BI128: 107 | BX128: - | BY128: - | BZ128: 13 | CB128: 262 | EM128: 124 | EO128: 124 | EP128: (116)
A129: 125 (128) | B129: Lisbeth Blihd | C129: Lanternan | D129: 248 | F129: 2 | G129: 62 | J129: 102 | R129: 146 | AB129: 18 | AC129: - | AD129: - | AE129: 128 | AF129: 125 | AG129: 125 | AH129: 125 | AK129: 1 | AL129: 2 | AM129: 2 | AN129: 1 | AO129: 1 | AP129: 1 | AQ129: 1 | AR129: 1 | AS129: 1 | AT129: 2 | AU129: 2 | AV129: 1 | AW129: 1 | AX129: 1 | AY129: 0 | AZ129: 1 | BA129: 1 | BB129: 1 | BC129: 1 | BE129: 2 | BH129: 146 | BI129: 102 | BX129: - | BY129: - | BZ129: 13 | CB129: 248 | EM129: 125 | EO129: 125 | EP129: (128)
A130: 126 (129) | B130: Jerry Viksten | C130: Korpen Åseda | D130: 246 | F130: 2 | G130: 61.5 | I130: 122 | S130: 124 | AB130: 18 | AC130: - | AD130: - | AE130: 129 | AF130: 126 | AG130: 126 | AH130: 126 | AK130: 2 | AL130: 2 | AM130: 1 | AN130: 1 | AO130: 1 | AP130: 1 | AQ130: 1 | AR130: 1 | AS130: 1 | AT130: 1 | AU130: 2 | AV130: 2 | AW130: 1 | AX130: 1 | AY130: 0 | AZ130: 1 | BA130: 1 | BB130: 1 | BC130: 1 | BE130: 2 | BH130: 124 | BI130: 122 | BX130: - | BY130: - | BZ130: 13 | CB130: 246 | EM130: 126 | EO130: 126 | EP130: (129)
A131: 127 (130) | B131: Karin Gullbrand | C131: Tingsryd | D131: 232 | F131: 4 | G131: 29 | K131: 55 | M131: 53 | O131: 17 | P131: 107 | AB131: 18 | AC131: - | AD131: - | AE131: 130 | AF131: 127 | AG131: 127 | AH131: 127 | AK131: 1 | AL131: 1 | AM131: 2 | AN131: 2 | AO131: 2 | AP131: 2 | AQ131: 2 | AR131: 3 | AS131: 2 | AT131: 1 | AU131: 1 | AV131: 1 | AW131: 1 | AX131: 1 | AY131: 0 | AZ131: 1 | BA131: 1 | BB131: 1 | BC131: 1 | BE131: 2 | BH131: 107 | BI131: 55 | BJ131: 53 | BK131: 17 | BX131: - | BY131: - | BZ131: 11 | CB131: 232 | EM131: 113 | EO131: 127 | EP131: (130)
A132: 128 (131) | B132: Arne Nygren | C132: Korpen Åseda | D132: 231 | F132: 2 | G132: 57.75 | I132: 94 | S132: 137 | AB132: 18 | AC132: - | AD132: - | AE132: 131 | AF132: 128 | AG132: 128 | AH132: 128 | AK132: 2 | AL132: 2 | AM132: 1 | AN132: 1 | AO132: 1 | AP132: 1 | AQ132: 1 | AR132: 1 | AS132: 1 | AT132: 1 | AU132: 2 | AV132: 2 | AW132: 1 | AX132: 1 | AY132: 0 | AZ132: 1 | BA132: 1 | BB132: 1 | BC132: 1 | BE132: 2 | BH132: 137 | BI132: 94 | BX132: - | BY132: - | BZ132: 13 | CB132: 231 | EM132: 128 | EO132: 128 | EP132: (131)
A133: 129 (132) | B133: Towe Danielsson | C133: Korpen Nybro | D133: =SUM(BH133:BT133) -> 215 | F133: =COUNT(I133:AA133) -> 1 | G133: =SUM((CB133)/(F133*2)) -> 107.5 | T133: 215 | AB133: =SUM($I$3:$AA$3) -> 18 | AC133: =BX133 -> - | AD133: =BY133 -> - | AE133: 132 | AF133: 129 | AG133: =IF(F133>1,ROW(129:129),"-") -> - | AH133: 129 | AK133: 1 | AL133: 1 | AM133: 1 | AN133: 1 | AO133: 1 | AP133: 1 | AQ133: 1 | AR133: 1 | AS133: 1 | AT133: 1 | AU133: 1 | AV133: 2 | AW133: 2 | AX133: 1 | AY133: 0 | AZ133: 1 | BA133: 1 | BB133: 1 | BC133: 1 | BE133: 2 | BH133: 215 | BX133: - | BY133: - | BZ133: =SUM(AB133-F133)-3 -> 14 | CB133: =SUM(BH133:BW133) -> 215 | EM133: 129 | EO133: =IF(BE133>=1,AF133,"") -> 129 | EP133: =IF(BE133>1,"("&AE133&")","("&AG133&")") -> (132)
A134: 130 (117) | B134: Viktor Holgersson | C134: Sketnabäck | D134: 210 | F134: 2 | G134: 52.5 | K134: 97 | L134: 113 | AB134: 18 | AC134: - | AD134: - | AE134: 117 | AF134: 130 | AG134: 130 | AH134: 130 | AK134: 1 | AL134: 1 | AM134: 2 | AN134: 3 | AO134: 2 | AP134: 1 | AQ134: 1 | AR134: 1 | AS134: 1 | AT134: 1 | AU134: 1 | AV134: 1 | AW134: 1 | AX134: 1 | AY134: 0 | AZ134: 1 | BA134: 1 | BB134: 1 | BC134: 1 | BE134: 2 | BH134: 113 | BI134: 97 | BW134: =IF($F134>15,LARGE($I134:$AA134,16),"") ->  | BX134: =IF($F134>14,LARGE($I134:$AA134,15),"-") -> - | BY134: =IF($F134>15,LARGE($I134:$AA134,16),"-") -> - | BZ134: 13 | CB134: 210 | EM134: 130 | EO134: 130 | EP134: (117)
A135: 130 (134) | B135: Carina Andersson | C135: Dynapac | D135: 210 | F135: 2 | G135: 52.5 | K135: 150 | L135: 60 | AB135: 18 | AC135: - | AD135: - | AE135: 134 | AF135: 130 | AG135: 131 | AH135: 131 | AK135: 1 | AL135: 1 | AM135: 2 | AN135: 3 | AO135: 2 | AP135: 1 | AQ135: 1 | AR135: 1 | AS135: 1 | AT135: 1 | AU135: 1 | AV135: 1 | AW135: 1 | AX135: 1 | AY135: 0 | AZ135: 1 | BA135: 1 | BB135: 1 | BC135: 1 | BE135: 2 | BH135: 150 | BI135: 60 | BX135: - | BY135: - | BZ135: 13 | CB135: 210 | EM135: 131 | EO135: 130 | EP135: (134)
A136: 132 (136) | B136: Elin Edlund | C136: Dynapac | D136: 203 | F136: 2 | G136: 50.75 | J136: 155 | Q136: 48 | AB136: 18 | AC136: - | AD136: - | AE136: 136 | AF136: 132 | AG136: 132 | AH136: 132 | AK136: 1 | AL136: 2 | AM136: 2 | AN136: 1 | AO136: 1 | AP136: 1 | AQ136: 1 | AR136: 1 | AS136: 2 | AT136: 2 | AU136: 1 | AV136: 1 | AW136: 1 | AX136: 1 | AY136: 0 | AZ136: 1 | BA136: 1 | BB136: 1 | BC136: 1 | BE136: 2 | BH136: 155 | BI136: 48 | BX136: - | BY136: - | BZ136: 13 | CB136: 203 | EM136: 132 | EO136: 132 | EP136: (136)
A137: 133 (137) | B137: Irené Pettersson | C137: Lanternan | D137: 197 | F137: 2 | G137: 49.25 | J137: 72 | R137: 125 | AB137: 18 | AC137: - | AD137: - | AE137: 137 | AF137: 133 | AG137: 133 | AH137: 133 | AK137: 1 | AL137: 2 | AM137: 2 | AN137: 1 | AO137: 1 | AP137: 1 | AQ137: 1 | AR137: 1 | AS137: 1 | AT137: 2 | AU137: 2 | AV137: 1 | AW137: 1 | AX137: 1 | AY137: 0 | AZ137: 1 | BA137: 1 | BB137: 1 | BC137: 1 | BE137: 2 | BH137: 125 | BI137: 72 | BX137: - | BY137: - | BZ137: 13 | CB137: 197 | EM137: 133 | EO137: 133 | EP137: (137)
A138: 134 (138) | B138: Kristoffer Israelsson | C138: Sibbamåla | D138: 193 | F138: 1 | G138: 96.5 | N138: 193 | AB138: 18 | AC138: - | AD138: - | AE138: 138 | AF138: 134 | AG138: - | AH138: 134 | AK138: 1 | AL138: 1 | AM138: 1 | AN138: 1 | AO138: 1 | AP138: 2 | AQ138: 2 | AR138: 1 | AS138: 1 | AT138: 1 | AU138: 1 | AV138: 1 | AW138: 1 | AX138: 1 | AY138: 0 | AZ138: 1 | BA138: 1 | BB138: 1 | BC138: 1 | BE138: 2 | BH138: 193 | BX138: - | BY138: - | BZ138: 14 | CB138: 193 | EM138: 135 | EO138: 134 | EP138: (138)
A139: 135 (139) | B139: Kjell Rydh | C139: Korpen Nybro | D139: 187 | F139: 1 | G139: 93.5 | T139: 187 | AB139: 18 | AC139: - | AD139: - | AE139: 139 | AF139: 135 | AG139: - | AH139: 135 | AK139: 1 | AL139: 1 | AM139: 1 | AN139: 1 | AO139: 1 | AP139: 1 | AQ139: 1 | AR139: 1 | AS139: 1 | AT139: 1 | AU139: 1 | AV139: 2 | AW139: 2 | AX139: 1 | AY139: 0 | AZ139: 1 | BA139: 1 | BB139: 1 | BC139: 1 | BE139: 2 | BH139: 187 | BX139: - | BY139: - | BZ139: 14 | CB139: 187 | EM139: 136 | EO139: 135 | EP139: (139)
A140: 135 (139) | B140: Lena Johansson | C140: Tingsryd | D140: 187 | F140: 1 | G140: 93.5 | X140: 187 | AB140: 18 | AC140: - | AD140: - | AE140: 139 | AF140: 135 | AG140: - | AH140: 136 | AK140: 1 | AL140: 1 | AM140: 1 | AN140: 1 | AO140: 1 | AP140: 1 | AQ140: 1 | AR140: 1 | AS140: 1 | AT140: 1 | AU140: 1 | AV140: 1 | AW140: 1 | AX140: 1 | AY140: 0 | AZ140: 2 | BA140: 2 | BB140: 1 | BC140: 1 | BE140: 2 | BH140: 187 | BX140: - | BY140: - | BZ140: 14 | CB140: 187 | EM140: 137 | EO140: 135 | EP140: (139)
A141: 137 (141) | B141: Judith Karlsson | C141: Växjö Hsk | D141: 183 | F141: 2 | G141: 45.75 | P141: 129 | U141: 54 | AB141: 18 | AC141: - | AD141: - | AE141: 141 | AF141: 137 | AG141: 137 | AH141: 137 | AK141: 1 | AL141: 1 | AM141: 1 | AN141: 1 | AO141: 1 | AP141: 1 | AQ141: 1 | AR141: 2 | AS141: 2 | AT141: 1 | AU141: 1 | AV141: 1 | AW141: 2 | AX141: 2 | AY141: 0 | AZ141: 1 | BA141: 1 | BB141: 1 | BC141: 1 | BE141: 2 | BH141: 129 | BI141: 54 | BX141: - | BY141: - | BZ141: 13 | CB141: 183 | EM141: 138 | EO141: 137 | EP141: (141)
A142: 138 (142) | B142: Patrick Axelsson | C142: Alvesta | D142: 178 | F142: 1 | G142: 89 | O142: 178 | AB142: 18 | AC142: - | AD142: - | AE142: 142 | AF142: 138 | AG142: - | AH142: 138 | AK142: 1 | AL142: 1 | AM142: 1 | AN142: 1 | AO142: 1 | AP142: 1 | AQ142: 2 | AR142: 2 | AS142: 1 | AT142: 1 | AU142: 1 | AV142: 1 | AW142: 1 | AX142: 1 | AY142: 0 | AZ142: 1 | BA142: 1 | BB142: 1 | BC142: 1 | BE142: 2 | BH142: 178 | BX142: - | BY142: - | BZ142: 14 | CB142: 178 | EM142: 167 | EO142: 167 | EP142: (142)
A143: 139 (144) | B143: Börje Carlsson | C143: Korpen Åseda | D143: 172 | F143: 1 | G143: 86 | S143: 172 | AB143: 18 | AC143: - | AD143: - | AE143: 144 | AF143: 139 | AG143: - | AH143: 139 | AK143: 1 | AL143: 1 | AM143: 1 | AN143: 1 | AO143: 1 | AP143: 1 | AQ143: 1 | AR143: 1 | AS143: 1 | AT143: 1 | AU143: 2 | AV143: 2 | AW143: 1 | AX143: 1 | AY143: 0 | AZ143: 1 | BA143: 1 | BB143: 1 | BC143: 1 | BE143: 2 | BH143: 172 | BX143: - | BY143: - | BZ143: 14 | CB143: 172 | EM143: 139 | EO143: =IF(BE143>=1,AF143,"") -> 139 | EP143: (144)
A144: 140 (145) | B144: Bill Bergman | C144: Bergmans | D144: 169 | F144: 1 | G144: 84.5 | O144: 169 | AB144: 18 | AC144: - | AD144: - | AE144: 145 | AF144: 140 | AG144: - | AH144: 140 | AK144: 1 | AL144: 1 | AM144: 1 | AN144: 1 | AO144: 1 | AP144: 1 | AQ144: 2 | AR144: 2 | AS144: 1 | AT144: 1 | AU144: 1 | AV144: 1 | AW144: 1 | AX144: 1 | AY144: 0 | AZ144: 1 | BA144: 1 | BB144: 1 | BC144: 1 | BE144: 2 | BH144: 169 | BX144: - | BY144: - | BZ144: 14 | CB144: 169 | EM144: 140 | EO144: =IF(BE144>1,AF144,"") -> 140 | EP144: (145)
A145: 141 (146) | B145: Ola Frost | C145: Sibbamåla | D145: 163 | F145: 1 | G145: 81.5 | V145: 163 | AB145: 18 | AC145: - | AD145: - | AE145: 146 | AF145: 141 | AG145: - | AH145: 141 | AK145: 1 | AL145: 1 | AM145: 1 | AN145: 1 | AO145: 1 | AP145: 1 | AQ145: 1 | AR145: 1 | AS145: 1 | AT145: 1 | AU145: 1 | AV145: 1 | AW145: 1 | AX145: 2 | AY145: 1 | AZ145: 1 | BA145: 1 | BB145: 1 | BC145: 1 | BE145: 2 | BH145: 163 | BX145: - | BY145: - | BZ145: 14 | CB145: 163 | EM145: 141 | EO145: =IF(BE145>=1,AF145,"") -> 141 | EP145: (146)
A146: 142 (148) | B146: Ulrich Hofer | C146: Lanternan | D146: 162 | F146: 1 | G146: 81 | R146: 162 | AB146: 18 | AC146: - | AD146: - | AE146: 148 | AF146: 142 | AG146: - | AH146: 142 | AK146: 1 | AL146: 1 | AM146: 1 | AN146: 1 | AO146: 1 | AP146: 1 | AQ146: 1 | AR146: 1 | AS146: 1 | AT146: 2 | AU146: 2 | AV146: 1 | AW146: 1 | AX146: 1 | AY146: 0 | AZ146: 1 | BA146: 1 | BB146: 1 | BC146: 1 | BE146: 2 | BH146: 162 | BX146: - | BY146: - | BZ146: 14 | CB146: 162 | EM146: 142 | EO146: =IF(BE146>=1,AF146,"") -> 142 | EP146: (148)
A147: 143 (120) | B147: Magnus Stenberg | C147: Hsk Tingzås | D147: 157 | F147: 1 | G147: 78.5 | O147: 157 | AB147: 18 | AC147: - | AD147: - | AE147: 120 | AF147: 143 | AG147: - | AH147: 143 | AK147: 1 | AL147: 1 | AM147: 1 | AN147: 1 | AO147: 1 | AP147: 1 | AQ147: 2 | AR147: 2 | AS147: 1 | AT147: 1 | AU147: 1 | AV147: 1 | AW147: 1 | AX147: 1 | AY147: 0 | AZ147: 1 | BA147: 1 | BB147: 1 | BC147: 1 | BE147: 2 | BH147: 157 | BX147: - | BY147: - | BZ147: 14 | CB147: 157 | EM147: 143 | EO147: =IF(BE147>=1,AF147,"") -> 143 | EP147: (120)
A148: 144 (149) | B148: Nathalie Jonasson | C148: Team Småland Hsk | D148: 153 | F148: 1 | G148: 76.5 | V148: 153 | AB148: 18 | AC148: - | AD148: - | AE148: 149 | AF148: 144 | AG148: - | AH148: 144 | AK148: 1 | AL148: 1 | AM148: 1 | AN148: 1 | AO148: 1 | AP148: 1 | AQ148: 1 | AR148: 1 | AS148: 1 | AT148: 1 | AU148: 1 | AV148: 1 | AW148: 1 | AX148: 2 | AY148: 1 | AZ148: 1 | BA148: 1 | BB148: 1 | BC148: 1 | BE148: 2 | BH148: 153 | BX148: - | BY148: - | BZ148: 14 | CB148: 153 | EM148: 144 | EO148: =IF(BE148>=1,AF148,"") -> 144 | EP148: (149)
A149: 145 (150) | B149: Per-Åke Södergren | C149: Cementa IF | D149: 151 | F149: 1 | G149: 75.5 | O149: 151 | AB149: 18 | AC149: - | AD149: - | AE149: 150 | AF149: 145 | AG149: - | AH149: 145 | AK149: 1 | AL149: 1 | AM149: 1 | AN149: 1 | AO149: 1 | AP149: 1 | AQ149: 2 | AR149: 2 | AS149: 1 | AT149: 1 | AU149: 1 | AV149: 1 | AW149: 1 | AX149: 1 | AY149: 0 | AZ149: 1 | BA149: 1 | BB149: 1 | BC149: 1 | BE149: 2 | BH149: 151 | BX149: - | BY149: - | BZ149: 14 | CB149: 151 | EM149: 145 | EO149: =IF(BE149>=1,AF149,"") -> 145 | EP149: (150)
A150: 146 (152) | B150: Peter Karlsson | C150: Sibbamåla | D150: 143 | F150: 1 | G150: 71.5 | J150: 143 | AB150: 18 | AC150: - | AD150: - | AE150: 152 | AF150: 146 | AG150: - | AH150: 146 | AK150: 1 | AL150: 2 | AM150: 2 | AN150: 1 | AO150: 1 | AP150: 1 | AQ150: 1 | AR150: 1 | AS150: 1 | AT150: 1 | AU150: 1 | AV150: 1 | AW150: 1 | AX150: 1 | AY150: 0 | AZ150: 1 | BA150: 1 | BB150: 1 | BC150: 1 | BE150: 2 | BH150: 143 | BX150: - | BY150: - | BZ150: 14 | CB150: 143 | EM150: 175 | EO150: =IF(BE150>1,AF150,"") -> 146 | EP150: (152)
A151: 147 (154) | B151: Linda Belsing | C151: Sibbamåla | D151: 139 | F151: 1 | G151: 69.5 | J151: 139 | AB151: 18 | AC151: - | AD151: - | AE151: 154 | AF151: 147 | AG151: - | AH151: 147 | AK151: 1 | AL151: 2 | AM151: 2 | AN151: 1 | AO151: 1 | AP151: 1 | AQ151: 1 | AR151: 1 | AS151: 1 | AT151: 1 | AU151: 1 | AV151: 1 | AW151: 1 | AX151: 1 | AY151: 0 | AZ151: 1 | BA151: 1 | BB151: 1 | BC151: 1 | BE151: 2 | BH151: 139 | BX151: - | BY151: - | BZ151: 14 | CB151: 139 | EM151: 146 | EO151: =IF(BE151>=1,AF151,"") -> 147 | EP151: (154)
A152: 148 (155) | B152: Kent-Åke Alriksson | C152: Sibbamåla | D152: 135 | F152: 1 | G152: 67.5 | Q152: 135 | AB152: 18 | AC152: - | AD152: - | AE152: 155 | AF152: 148 | AG152: - | AH152: 148 | AK152: 1 | AL152: 1 | AM152: 1 | AN152: 1 | AO152: 1 | AP152: 1 | AQ152: 1 | AR152: 1 | AS152: 2 | AT152: 2 | AU152: 1 | AV152: 1 | AW152: 1 | AX152: 1 | AY152: 0 | AZ152: 1 | BA152: 1 | BB152: 1 | BC152: 1 | BE152: 2 | BH152: 135 | BX152: - | BY152: - | BZ152: 14 | CB152: 135 | EM152: 147 | EO152: 148 | EP152: (155)
A153: 148 (155) | B153: Emma Svensson | C153: Dynapac | D153: 135 | F153: 1 | G153: 67.5 | J153: 135 | AB153: 18 | AC153: - | AD153: - | AE153: 155 | AF153: 148 | AG153: - | AH153: 149 | AK153: 1 | AL153: 2 | AM153: 2 | AN153: 1 | AO153: 1 | AP153: 1 | AQ153: 1 | AR153: 1 | AS153: 1 | AT153: 1 | AU153: 1 | AV153: 1 | AW153: 1 | AX153: 1 | AY153: 0 | AZ153: 1 | BA153: 1 | BB153: 1 | BC153: 1 | BE153: 2 | BH153: 135 | BX153: - | BY153: - | BZ153: 14 | CB153: 135 | EM153: 148 | EO153: 148 | EP153: (155)
A154: 150 (157) | B154: Bo Trulsson | C154: Korpen Åseda | D154: 133 | F154: 1 | G154: 66.5 | I154: 133 | AB154: 18 | AC154: - | AD154: - | AE154: 157 | AF154: 150 | AG154: - | AH154: 150 | AK154: 2 | AL154: 2 | AM154: 1 | AN154: 1 | AO154: 1 | AP154: 1 | AQ154: 1 | AR154: 1 | AS154: 1 | AT154: 1 | AU154: 1 | AV154: 1 | AW154: 1 | AX154: 1 | AY154: 0 | AZ154: 1 | BA154: 1 | BB154: 1 | BC154: 1 | BE154: 2 | BH154: 133 | BX154: - | BY154: - | BZ154: 14 | CB154: 133 | EM154: 149 | EO154: 150 | EP154: (157)
A155: 151 (125) | B155: Patrik Glimfalk | C155: Cementa IF | D155: 131 | F155: 1 | G155: 65.5 | O155: 131 | AB155: 18 | AC155: - | AD155: - | AE155: 125 | AF155: 151 | AG155: - | AH155: 151 | AK155: 1 | AL155: 1 | AM155: 1 | AN155: 1 | AO155: 1 | AP155: 1 | AQ155: 2 | AR155: 2 | AS155: 1 | AT155: 1 | AU155: 1 | AV155: 1 | AW155: 1 | AX155: 1 | AY155: 0 | AZ155: 1 | BA155: 1 | BB155: 1 | BC155: 1 | BE155: 2 | BH155: 131 | BX155: - | BY155: - | BZ155: 14 | CB155: 131 | EM155: 150 | EO155: 151 | EP155: (125)
A156: 152 (158) | B156: André Andersson | C156: Cementa IF | D156: 129 | F156: 1 | G156: 64.5 | O156: 129 | AB156: 18 | AC156: - | AD156: - | AE156: 158 | AF156: 152 | AG156: - | AH156: 152 | AK156: 1 | AL156: 1 | AM156: 1 | AN156: 1 | AO156: 1 | AP156: 1 | AQ156: 2 | AR156: 2 | AS156: 1 | AT156: 1 | AU156: 1 | AV156: 1 | AW156: 1 | AX156: 1 | AY156: 0 | AZ156: 1 | BA156: 1 | BB156: 1 | BC156: 1 | BE156: 2 | BH156: 129 | BX156: - | BY156: - | BZ156: 14 | CB156: 129 | EM156: 151 | EO156: 152 | EP156: (158)
A157: =IF(BE157>1,AF157&" ("&AE157&")",AF157&" ("&AG157&")") -> 153 (159) | B157: Lars-Olof Pettersson | C157: Dynapac | D157: 128 | F157: 1 | G157: 64 | Q157: 128 | AB157: 18 | AC157: - | AD157: - | AE157: 159 | AF157: =IF(D157<D156,AH157,AF156) -> 153 | AG157: - | AH157: 153 | AK157: =COUNT($I$3,I157,H157) -> 1 | AL157: =COUNT($J$3,J157,I157) -> 1 | AM157: =COUNT($K$3,K157,J157) -> 1 | AN157: =COUNT($L$3,L157,K157) -> 1 | AO157: =COUNT($M$3,M157,L157) -> 1 | AP157: =COUNT($N$3,N157,M157) -> 1 | AQ157: =COUNT($O$3,O157,N157) -> 1 | AR157: =COUNT($P$3,P157,O157) -> 1 | AS157: =COUNT($Q$3,Q157,P157) -> 2 | AT157: =COUNT($R$3,R157,Q157) -> 2 | AU157: =COUNT($S$3,S157,R157) -> 1 | AV157: =COUNT($T$3,T157,S157) -> 1 | AW157: =COUNT($U$3,U157,T157) -> 1 | AX157: =COUNT($V$3,V157,U157) -> 1 | AY157: =COUNT($W$3,W157,V157) -> 0 | AZ157: =COUNT($X$3,X157,W157) -> 1 | BA157: =COUNT($Y$3,Y157,X157) -> 1 | BB157: =COUNT($Z$3,Z157,Y157) -> 1 | BC157: =COUNT($AA$3,AA157,Z157) -> 1 | BE157: =IF(H157="x",1,2) -> 2 | BH157: =IF($F157>0,LARGE($I157:$AA157,1),"") -> 128 | BI157: =IF($F157>1,LARGE($I157:$AA157,2),"") ->  | BJ157: =IF($F157>2,LARGE($I157:$AA157,3),"") ->  | BK157: =IF($F157>3,LARGE($I157:$AA157,4),"") ->  | BL157: =IF($F157>4,LARGE($I157:$AA157,5),"") ->  | BM157: =IF($F157>5,LARGE($I157:$AA157,6),"") ->  | BN157: =IF($F157>6,LARGE($I157:$AA157,7),"") ->  | BO157: =IF($F157>7,LARGE($I157:$AA157,8),"") ->  | BP157: =IF($F157>8,LARGE($I157:$AA157,9),"") ->  | BQ157: =IF($F157>9,LARGE($I157:$AA157,10),"") ->  | BR157: =IF($F157>10,LARGE($I157:$AA157,11),"") ->  | BS157: =IF($F157>11,LARGE($I157:$AA157,12),"") ->  | BT157: =IF($F157>12,LARGE($I157:$AA157,13),"") ->  | BU157: =IF($F157>13,LARGE($I157:$AA157,14),"") ->  | BV157: =IF($F157>14,LARGE($I157:$AA157,15),"") ->  | BX157: - | BY157: - | BZ157: 14 | CB157: 128 | EM157: 184 | EO157: =IF(BE157>1,AF157,"") -> 153 | EP157: (159)
A158: 154 (160) | B158: Anton Wetterstrand | C158: Cementa IF | D158: 123 | F158: 1 | G158: 61.5 | O158: 123 | AB158: 18 | AC158: - | AD158: - | AE158: 160 | AF158: 154 | AG158: - | AH158: 154 | AK158: 1 | AL158: 1 | AM158: 1 | AN158: 1 | AO158: 1 | AP158: 1 | AQ158: 2 | AR158: 2 | AS158: 1 | AT158: 1 | AU158: 1 | AV158: 1 | AW158: 1 | AX158: 1 | AY158: 0 | AZ158: 1 | BA158: 1 | BB158: 1 | BC158: 1 | BE158: 2 | BH158: 123 | BX158: - | BY158: - | BZ158: 14 | CB158: 123 | EM158: 152 | EO158: =IF(BE158>=1,AF158,"") -> 154 | EP158: (160)
A159: 155 (161) | B159: Robin Alriksson | C159: Sibbamåla | D159: 119 | F159: 1 | G159: 59.5 | Q159: 119 | AB159: 18 | AC159: - | AD159: - | AE159: 161 | AF159: 155 | AG159: - | AH159: 155 | AK159: 1 | AL159: 1 | AM159: 1 | AN159: 1 | AO159: 1 | AP159: 1 | AQ159: 1 | AR159: 1 | AS159: 2 | AT159: 2 | AU159: 1 | AV159: 1 | AW159: 1 | AX159: 1 | AY159: 0 | AZ159: 1 | BA159: 1 | BB159: 1 | BC159: 1 | BE159: 2 | BH159: 119 | BX159: - | BY159: - | BZ159: 14 | CB159: 119 | EM159: 153 | EO159: 155 | EP159: (161)
A160: 156 (132) | B160: Bengt-Arne Andersson | C160: Mulde VK | D160: 116 | F160: 1 | G160: 58 | O160: 116 | AB160: 18 | AC160: - | AD160: - | AE160: 132 | AF160: 156 | AG160: - | AH160: 156 | AK160: 1 | AL160: 1 | AM160: 1 | AN160: 1 | AO160: 1 | AP160: 1 | AQ160: 2 | AR160: 2 | AS160: 1 | AT160: 1 | AU160: 1 | AV160: 1 | AW160: 1 | AX160: 1 | AY160: 0 | AZ160: 1 | BA160: 1 | BB160: 1 | BC160: 1 | BE160: 2 | BH160: 116 | BX160: - | BY160: - | BZ160: 14 | CB160: 116 | EM160: 154 | EO160: 156 | EP160: (132)
A161: 157 (162) | B161: Klas-Åke Lindström | C161: Mulde VK | D161: 112 | F161: 1 | G161: 56 | O161: 112 | AB161: 18 | AC161: - | AD161: - | AE161: 162 | AF161: 157 | AG161: - | AH161: 157 | AK161: 1 | AL161: 1 | AM161: 1 | AN161: 1 | AO161: 1 | AP161: 1 | AQ161: 2 | AR161: 2 | AS161: 1 | AT161: 1 | AU161: 1 | AV161: 1 | AW161: 1 | AX161: 1 | AY161: 0 | AZ161: 1 | BA161: 1 | BB161: 1 | BC161: 1 | BE161: 2 | BH161: 112 | BX161: - | BY161: - | BZ161: 14 | CB161: 112 | EM161: 156 | EO161: 157 | EP161: (162)
A162: 158 (164) | B162: Alexander Storme | C162: Hsk Tingzås | D162: 107 | F162: 1 | G162: 53.5 | I162: 107 | AB162: 18 | AC162: - | AD162: - | AE162: 164 | AF162: 158 | AG162: - | AH162: 158 | AK162: 2 | AL162: 2 | AM162: 1 | AN162: 1 | AO162: 1 | AP162: 1 | AQ162: 1 | AR162: 1 | AS162: 1 | AT162: 1 | AU162: 1 | AV162: 1 | AW162: 1 | AX162: 1 | AY162: 0 | AZ162: 1 | BA162: 1 | BB162: 1 | BC162: 1 | BE162: 2 | BH162: 107 | BX162: - | BY162: - | BZ162: 14 | CB162: 107 | EM162: 157 | EO162: 158 | EP162: (164)
A163: 159 (165) | B163: Therese Frost | C163: Sibbamåla | D163: 98 | F163: 1 | G163: 49 | V163: 98 | AB163: 18 | AC163: - | AD163: - | AE163: 165 | AF163: 159 | AG163: - | AH163: 159 | AK163: 1 | AL163: 1 | AM163: 1 | AN163: 1 | AO163: 1 | AP163: 1 | AQ163: 1 | AR163: 1 | AS163: 1 | AT163: 1 | AU163: 1 | AV163: 1 | AW163: 1 | AX163: 2 | AY163: 1 | AZ163: 1 | BA163: 1 | BB163: 1 | BC163: 1 | BE163: 2 | BH163: 98 | BX163: - | BY163: - | BZ163: 14 | CB163: 98 | EM163: 158 | EO163: 159 | EP163: (165)
A164: 160 (166) | B164: Niclas Gunnarsson | C164: Sibbamåla | D164: 94 | F164: 1 | G164: 47 | V164: 94 | AB164: 18 | AC164: - | AD164: - | AE164: 166 | AF164: 160 | AG164: 159 | AH164: 160 | AK164: 1 | AL164: 1 | AM164: 1 | AN164: 1 | AO164: 1 | AP164: 1 | AQ164: 1 | AR164: 1 | AS164: 1 | AT164: 1 | AU164: 1 | AV164: 1 | AW164: 1 | AX164: 2 | AY164: 1 | AZ164: 1 | BA164: 1 | BB164: 1 | BC164: 1 | BE164: 2 | BH164: 94 | BX164: - | BY164: - | BZ164: 14 | CB164: 94 | EM164: 159 | EO164: 160 | EP164: (166)
A165: 161 (167) | B165: Göran Brincner | C165: Värends Hsk | D165: 91 | F165: 1 | G165: 45.5 | T165: 91 | AB165: 18 | AC165: - | AD165: - | AE165: 167 | AF165: 161 | AG165: =IF(F165>1,ROW(161:161),"-") -> - | AH165: 161 | AK165: 1 | AL165: 1 | AM165: 1 | AN165: 1 | AO165: 1 | AP165: 1 | AQ165: 1 | AR165: 1 | AS165: 1 | AT165: 1 | AU165: 1 | AV165: 2 | AW165: 2 | AX165: 1 | AY165: 0 | AZ165: 1 | BA165: 1 | BB165: 1 | BC165: 1 | BE165: 2 | BH165: 91 | BX165: - | BY165: - | BZ165: 14 | CB165: 91 | EM165: 206 | EO165: =IF(BE165>1,AF165,"") -> 161 | EP165: (167)
A166: 162 (169) | B166: Margareta Lundqvist | C166: Växjö Bs | D166: 86 | F166: 1 | G166: 43 | Z166: 86 | AB166: 18 | AC166: - | AD166: - | AE166: 169 | AF166: 162 | AG166: - | AH166: 162 | AK166: 1 | AL166: 1 | AM166: 1 | AN166: 1 | AO166: 1 | AP166: 1 | AQ166: 1 | AR166: 1 | AS166: 1 | AT166: 1 | AU166: 1 | AV166: 1 | AW166: 1 | AX166: 1 | AY166: 0 | AZ166: 1 | BA166: 1 | BB166: 2 | BC166: 2 | BE166: 2 | BH166: 86 | BX166: - | BY166: - | BZ166: 14 | CB166: 86 | EM166: 160 | EO166: =IF(BE166>=1,AF166,"") -> 162 | EP166: (169)
A167: 162 (169) | B167: Anna Stenberg | C167: Hsk Tingzås | D167: 86 | F167: 1 | G167: 43 | O167: 86 | AB167: 18 | AC167: - | AD167: - | AE167: 169 | AF167: 162 | AG167: - | AH167: 163 | AK167: 1 | AL167: 1 | AM167: 1 | AN167: 1 | AO167: 1 | AP167: 1 | AQ167: 2 | AR167: 2 | AS167: 1 | AT167: 1 | AU167: 1 | AV167: 1 | AW167: 1 | AX167: 1 | AY167: 0 | AZ167: 1 | BA167: 1 | BB167: 1 | BC167: 1 | BE167: 2 | BH167: 86 | BX167: - | BY167: - | BZ167: 14 | CB167: 86 | EM167: 161 | EO167: 161 | EP167: (169)
A168: 164 (146) | B168: Rasmus Johansson | C168: Cementa IF | D168: 85 | F168: 1 | G168: 42.5 | O168: 85 | AB168: 18 | AC168: - | AD168: - | AE168: 146 | AF168: 164 | AG168: - | AH168: 164 | AK168: 1 | AL168: 1 | AM168: 1 | AN168: 1 | AO168: 1 | AP168: 1 | AQ168: 2 | AR168: 2 | AS168: 1 | AT168: 1 | AU168: 1 | AV168: 1 | AW168: 1 | AX168: 1 | AY168: 0 | AZ168: 1 | BA168: 1 | BB168: 1 | BC168: 1 | BE168: 2 | BH168: 85 | BX168: - | BY168: - | BZ168: 14 | CB168: 85 | EM168: 162 | EO168: =IF(BE168>1,AF168,"") -> 164 | EP168: (146)
A169: 164 (171) | B169: Roger Frost | C169: Sibbamåla | D169: 85 | F169: 1 | G169: 42.5 | V169: 85 | AB169: 18 | AC169: - | AD169: - | AE169: 171 | AF169: 164 | AG169: - | AH169: 165 | AK169: 1 | AL169: 1 | AM169: 1 | AN169: 1 | AO169: 1 | AP169: 1 | AQ169: 1 | AR169: 1 | AS169: 1 | AT169: 1 | AU169: 1 | AV169: 1 | AW169: 1 | AX169: 2 | AY169: 1 | AZ169: 1 | BA169: 1 | BB169: 1 | BC169: 1 | BE169: 2 | BH169: 85 | BX169: - | BY169: - | BZ169: 14 | CB169: 85 | EM169: 163 | EO169: =IF(BE169>1,AF169,"") -> 164 | EP169: (171)
A170: 166 (172) | B170: Ella Johansson | C170: Dynapac | D170: 80 | F170: 1 | G170: 40 | Q170: 80 | AB170: 18 | AC170: - | AD170: - | AE170: 172 | AF170: 166 | AG170: - | AH170: 166 | AK170: 1 | AL170: 1 | AM170: 1 | AN170: 1 | AO170: 1 | AP170: 1 | AQ170: 1 | AR170: 1 | AS170: 2 | AT170: 2 | AU170: 1 | AV170: 1 | AW170: 1 | AX170: 1 | AY170: 0 | AZ170: 1 | BA170: 1 | BB170: 1 | BC170: 1 | BE170: 2 | BH170: 80 | BX170: - | BY170: - | BZ170: 14 | CB170: 80 | EM170: 164 | EO170: =IF(BE170>1,AF170,"") -> 166 | EP170: (172)
A171: 167 (174) | B171: Nellie Persson | C171: Tingsryd | D171: 75 | F171: 2 | G171: 18.75 | K171: 45 | L171: 30 | AB171: 18 | AC171: - | AD171: - | AE171: 174 | AF171: 167 | AG171: 167 | AH171: 167 | AK171: 1 | AL171: 1 | AM171: 2 | AN171: 3 | AO171: 2 | AP171: 1 | AQ171: 1 | AR171: 1 | AS171: 1 | AT171: 1 | AU171: 1 | AV171: 1 | AW171: 1 | AX171: 1 | AY171: 0 | AZ171: 1 | BA171: 1 | BB171: 1 | BC171: 1 | BE171: 2 | BH171: 45 | BI171: 30 | BX171: - | BY171: - | BZ171: 13 | CB171: 75 | EM171: 165 | EO171: =IF(BE171>1,AF171,"") -> 167 | EP171: (174)
A172: 168 (176) | B172: Birgitta Westerlund | C172: Växjö Bs | D172: 74 | F172: 1 | G172: 37 | Z172: 74 | AB172: 18 | AC172: - | AD172: - | AE172: 176 | AF172: 168 | AG172: - | AH172: 168 | AK172: 1 | AL172: 1 | AM172: 1 | AN172: 1 | AO172: 1 | AP172: 1 | AQ172: 1 | AR172: 1 | AS172: 1 | AT172: 1 | AU172: 1 | AV172: 1 | AW172: 1 | AX172: 1 | AY172: 0 | AZ172: 1 | BA172: 1 | BB172: 2 | BC172: 2 | BE172: 2 | BH172: 74 | BX172: - | BY172: - | BZ172: 14 | CB172: 74 | EM172: 195 | EO172: =IF(BE172>1,AF172,"") -> 168 | EP172: (176)
A173: 168 (176) | B173: Göte Rosberg | C173: Korpen Åseda | D173: 74 | F173: 1 | G173: 37 | S173: 74 | AB173: 18 | AC173: - | AD173: - | AE173: 176 | AF173: 168 | AG173: - | AH173: 169 | AK173: 1 | AL173: 1 | AM173: 1 | AN173: 1 | AO173: 1 | AP173: 1 | AQ173: 1 | AR173: 1 | AS173: 1 | AT173: 1 | AU173: 2 | AV173: 2 | AW173: 1 | AX173: 1 | AY173: 0 | AZ173: 1 | BA173: 1 | BB173: 1 | BC173: 1 | BE173: 2 | BH173: 74 | BX173: - | BY173: - | BZ173: 14 | CB173: 74 | EM173: 134 | EO173: =IF(BE173>=1,AF173,"") -> 168 | EP173: (176)
A174: 170 (178) | B174: Gustav Södergren | C174: Cementa IF | D174: 72 | F174: 1 | G174: 36 | O174: 72 | AB174: 18 | AC174: - | AD174: - | AE174: 178 | AF174: 170 | AG174: - | AH174: 170 | AK174: 1 | AL174: 1 | AM174: 1 | AN174: 1 | AO174: 1 | AP174: 1 | AQ174: 2 | AR174: 2 | AS174: 1 | AT174: 1 | AU174: 1 | AV174: 1 | AW174: 1 | AX174: 1 | AY174: 0 | AZ174: 1 | BA174: 1 | BB174: 1 | BC174: 1 | BE174: 2 | BH174: 72 | BX174: - | BY174: - | BZ174: 14 | CB174: 72 | EM174: 166 | EO174: =IF(BE174>1,AF174,"") -> 170 | EP174: (178)
A175: 171 (179) | B175: Thorgny Björkqvist | C175: Tingsryd | D175: 71 | F175: 1 | G175: 35.5 | O175: 71 | AB175: 18 | AC175: - | AD175: - | AE175: 179 | AF175: 171 | AG175: - | AH175: 171 | AK175: 1 | AL175: 1 | AM175: 1 | AN175: 1 | AO175: 1 | AP175: 1 | AQ175: 2 | AR175: 2 | AS175: 1 | AT175: 1 | AU175: 1 | AV175: 1 | AW175: 1 | AX175: 1 | AY175: 0 | AZ175: 1 | BA175: 1 | BB175: 1 | BC175: 1 | BE175: 2 | BH175: 71 | BX175: - | BY175: - | BZ175: 14 | CB175: 71 | EM175: 168 | EO175: 168 | EP175: (179)
A176: 171 (179) | B176: Åke Lönnqvist | C176: Växjö Bs | D176: 71 | F176: 1 | G176: 35.5 | Z176: 71 | AB176: 18 | AC176: - | AD176: - | AE176: 179 | AF176: 171 | AG176: - | AH176: 172 | AK176: 1 | AL176: 1 | AM176: 1 | AN176: 1 | AO176: 1 | AP176: 1 | AQ176: 1 | AR176: 1 | AS176: 1 | AT176: 1 | AU176: 1 | AV176: 1 | AW176: 1 | AX176: 1 | AY176: 0 | AZ176: 1 | BA176: 1 | BB176: 2 | BC176: 2 | BE176: 2 | BH176: 71 | BX176: - | BY176: - | BZ176: 14 | CB176: 71 | EM176: 215 | EO176: =IF(BE176>1,AF176,"") -> 171 | EP176: (179)
A177: 173 (181) | B177: Ingegerd Sjöstrand | C177: Hsk Tingzås | D177: 67 | F177: 1 | G177: 33.5 | I177: 67 | AB177: 18 | AC177: - | AD177: - | AE177: 181 | AF177: 173 | AG177: - | AH177: 173 | AK177: 2 | AL177: 2 | AM177: 1 | AN177: 1 | AO177: 1 | AP177: 1 | AQ177: 1 | AR177: 1 | AS177: 1 | AT177: 1 | AU177: 1 | AV177: 1 | AW177: 1 | AX177: 1 | AY177: 0 | AZ177: 1 | BA177: 1 | BB177: 1 | BC177: 1 | BE177: 2 | BH177: 67 | BI177: =IF($F177>1,LARGE($I177:$AA177,2),"") ->  | BJ177: =IF($F177>2,LARGE($I177:$AA177,3),"") ->  | BK177: =IF($F177>3,LARGE($I177:$AA177,4),"") ->  | BL177: =IF($F177>4,LARGE($I177:$AA177,5),"") ->  | BM177: =IF($F177>5,LARGE($I177:$AA177,6),"") ->  | BN177: =IF($F177>6,LARGE($I177:$AA177,7),"") ->  | BO177: =IF($F177>7,LARGE($I177:$AA177,8),"") ->  | BP177: =IF($F177>8,LARGE($I177:$AA177,9),"") ->  | BQ177: =IF($F177>9,LARGE($I177:$AA177,10),"") ->  | BR177: =IF($F177>10,LARGE($I177:$AA177,11),"") ->  | BS177: =IF($F177>11,LARGE($I177:$AA177,12),"") ->  | BT177: =IF($F177>12,LARGE($I177:$AA177,13),"") ->  | BU177: =IF($F177>13,LARGE($I177:$AA177,14),"") ->  | BV177: =IF($F177>14,LARGE($I177:$AA177,15),"") ->  | BX177: - | BY177: - | BZ177: 14 | CB177: 67 | EM177: 188 | EO177: 188 | EP177: (181)
A178: 174 (182) | B178: Ronald Bergman | C178: Bergmans | D178: 66 | F178: 1 | G178: 33 | O178: 66 | AB178: 18 | AC178: - | AD178: - | AE178: 182 | AF178: 174 | AG178: - | AH178: 174 | AK178: 1 | AL178: 1 | AM178: 1 | AN178: 1 | AO178: 1 | AP178: 1 | AQ178: 2 | AR178: 2 | AS178: 1 | AT178: 1 | AU178: 1 | AV178: 1 | AW178: 1 | AX178: 1 | AY178: 0 | AZ178: 1 | BA178: 1 | BB178: 1 | BC178: 1 | BE178: 2 | BH178: 66 | BX178: - | BY178: - | BZ178: 14 | CB178: 66 | EM178: 170 | EO178: =IF(BE178>1,AF178,"") -> 174 | EP178: (182)
A179: 175 (152) | B179: Ulf Stenberg | C179: Mulde VK | D179: 65 | F179: 1 | G179: 32.5 | O179: 65 | AB179: 18 | AC179: - | AD179: - | AE179: 152 | AF179: 175 | AG179: - | AH179: 175 | AK179: 1 | AL179: 1 | AM179: 1 | AN179: 1 | AO179: 1 | AP179: 1 | AQ179: 2 | AR179: 2 | AS179: 1 | AT179: 1 | AU179: 1 | AV179: 1 | AW179: 1 | AX179: 1 | AY179: 0 | AZ179: 1 | BA179: 1 | BB179: 1 | BC179: 1 | BE179: 2 | BH179: 65 | BX179: - | BY179: - | BZ179: 14 | CB179: 65 | EM179: 171 | EO179: 175 | EP179: (152)
A180: 176 (184) | B180: Carl-Axel Moberg | C180: Växjö Bs | D180: 51 | F180: 1 | G180: 25.5 | Z180: 51 | AB180: 18 | AC180: - | AD180: - | AE180: 184 | AF180: 176 | AG180: - | AH180: 176 | AK180: 1 | AL180: 1 | AM180: 1 | AN180: 1 | AO180: 1 | AP180: 1 | AQ180: 1 | AR180: 1 | AS180: 1 | AT180: 1 | AU180: 1 | AV180: 1 | AW180: 1 | AX180: 1 | AY180: 0 | AZ180: 1 | BA180: 1 | BB180: 2 | BC180: 2 | BE180: 2 | BH180: 51 | BX180: - | BY180: - | BZ180: 14 | CB180: 51 | EM180: 172 | EO180: 176 | EP180: (184)
A181: 177 (186) | B181: Birgitta Lagerström | C181: Lanternan | D181: 41 | F181: 1 | G181: 20.5 | R181: 41 | AB181: 18 | AC181: - | AD181: - | AE181: 186 | AF181: 177 | AG181: - | AH181: 177 | AK181: 1 | AL181: 1 | AM181: 1 | AN181: 1 | AO181: 1 | AP181: 1 | AQ181: 1 | AR181: 1 | AS181: 1 | AT181: 2 | AU181: 2 | AV181: 1 | AW181: 1 | AX181: 1 | AY181: 0 | AZ181: 1 | BA181: 1 | BB181: 1 | BC181: 1 | BE181: 2 | BH181: 41 | BX181: - | BY181: - | BZ181: 14 | CB181: 41 | EM181: 173 | EO181: 177 | EP181: (186)
A182: 178 (187) | B182: Lisbetha Andersson | C182: Lanternan | D182: 27 | F182: 1 | G182: 13.5 | R182: 27 | AB182: 18 | AC182: - | AD182: - | AE182: 187 | AF182: 178 | AG182: - | AH182: 178 | AK182: 1 | AL182: 1 | AM182: 1 | AN182: 1 | AO182: 1 | AP182: 1 | AQ182: 1 | AR182: 1 | AS182: 1 | AT182: 2 | AU182: 2 | AV182: 1 | AW182: 1 | AX182: 1 | AY182: 0 | AZ182: 1 | BA182: 1 | BB182: 1 | BC182: 1 | BE182: 2 | BH182: 27 | BX182: - | BY182: - | BZ182: 14 | CB182: 27 | EM182: 174 | EO182: 178 | EP182: (187)
A183: 179 (188) | B183: Susanne Bergman | C183: Bergmans | D183: 20 | F183: 1 | G183: 10 | O183: 20 | AB183: 18 | AC183: - | AD183: - | AE183: 188 | AF183: 179 | AG183: - | AH183: 179 | AK183: 1 | AL183: 1 | AM183: 1 | AN183: 1 | AO183: 1 | AP183: 1 | AQ183: 2 | AR183: 2 | AS183: 1 | AT183: 1 | AU183: 1 | AV183: 1 | AW183: 1 | AX183: 1 | AY183: 0 | AZ183: 1 | BA183: 1 | BB183: 1 | BC183: 1 | BE183: 2 | BH183: 20 | BX183: - | BY183: - | BZ183: 14 | CB183: 20 | EM183: 182 | EO183: 179 | EP183: (188)
A184: 180 (189) | B184: Cathy Seventer | C184: Bergmans | D184: 6 | F184: 1 | G184: 3 | O184: 6 | AB184: 18 | AC184: - | AD184: - | AE184: 189 | AF184: 180 | AG184: - | AH184: 180 | AK184: 1 | AL184: 1 | AM184: 1 | AN184: 1 | AO184: 1 | AP184: 1 | AQ184: 2 | AR184: 2 | AS184: 1 | AT184: 1 | AU184: 1 | AV184: 1 | AW184: 1 | AX184: 1 | AY184: 0 | AZ184: 1 | BA184: 1 | BB184: 1 | BC184: 1 | BE184: 2 | BH184: 6 | BX184: - | BY184: - | BZ184: 14 | CB184: 6 | EM184: 176 | EO184: 180 | EP184: (189)
A185: 181 (134) | D185: 0 | F185: 0 | AB185: 18 | AC185: - | AD185: - | AE185: 134 | AF185: 181 | AG185: - | AH185: 181 | AK185: 1 | AL185: 1 | AM185: 1 | AN185: 1 | AO185: 1 | AP185: 1 | AQ185: 1 | AR185: 1 | AS185: 1 | AT185: 1 | AU185: 1 | AV185: 1 | AW185: 1 | AX185: 1 | AY185: 0 | AZ185: 1 | BA185: 1 | BB185: 1 | BC185: 1 | BE185: 2 | BX185: - | BY185: - | BZ185: 15 | CB185: 0 | EM185: 202 | EO185: 181 | EP185: (134)
A186: 181 (142) | D186: 0 | F186: 0 | AB186: 18 | AC186: - | AD186: - | AE186: 142 | AF186: 181 | AG186: - | AH186: 182 | AK186: 1 | AL186: 1 | AM186: 1 | AN186: 1 | AO186: 1 | AP186: 1 | AQ186: 1 | AR186: 1 | AS186: 1 | AT186: 1 | AU186: 1 | AV186: 1 | AW186: 1 | AX186: 1 | AY186: 0 | AZ186: 1 | BA186: 1 | BB186: 1 | BC186: 1 | BE186: 2 | BX186: - | BY186: - | BZ186: 15 | CB186: 0 | EM186: 177 | EO186: 177 | EP186: (142)
A187: 181 (150) | D187: 0 | F187: 0 | AB187: 18 | AC187: - | AD187: - | AE187: 150 | AF187: 181 | AG187: - | AH187: 183 | AK187: 1 | AL187: 1 | AM187: 1 | AN187: 1 | AO187: 1 | AP187: 1 | AQ187: 1 | AR187: 1 | AS187: 1 | AT187: 1 | AU187: 1 | AV187: 1 | AW187: 1 | AX187: 1 | AY187: 0 | AZ187: 1 | BA187: 1 | BB187: 1 | BC187: 1 | BE187: 2 | BX187: - | BY187: - | BZ187: 15 | CB187: 0 | EM187: 178 | EO187: =IF(BE187>1,AF187,"") -> 181 | EP187: (150)
A188: 181 (162) | D188: 0 | F188: 0 | AB188: 18 | AC188: - | AD188: - | AE188: 162 | AF188: 181 | AG188: - | AH188: 184 | AK188: 1 | AL188: 1 | AM188: 1 | AN188: 1 | AO188: 1 | AP188: 1 | AQ188: 1 | AR188: 1 | AS188: 1 | AT188: 1 | AU188: 1 | AV188: 1 | AW188: 1 | AX188: 1 | AY188: 0 | AZ188: 1 | BA188: 1 | BB188: 1 | BC188: 1 | BE188: 2 | BX188: - | BY188: - | BZ188: 15 | CB188: 0 | EM188: 179 | EO188: 179 | EP188: (162)
A189: =IF(BE189>1,AF189&" ("&AE189&")",AF189&" ("&AG189&")") -> 181 (167) | D189: 0 | F189: 0 | AB189: 18 | AC189: - | AD189: - | AE189: 167 | AF189: 181 | AG189: - | AH189: 185 | AK189: 1 | AL189: 1 | AM189: 1 | AN189: 1 | AO189: 1 | AP189: 1 | AQ189: 1 | AR189: 1 | AS189: 1 | AT189: 1 | AU189: 1 | AV189: 1 | AW189: 1 | AX189: 1 | AY189: 0 | AZ189: 1 | BA189: 1 | BB189: 1 | BC189: 1 | BE189: 2 | BX189: - | BY189: - | BZ189: 15 | CB189: 0 | EM189: 180 | EO189: =IF(BE189>1,AF189,"") -> 181 | EP189: (167)
A190: 181 (172) | D190: 0 | F190: 0 | AB190: 18 | AC190: - | AD190: - | AE190: 172 | AF190: 181 | AG190: - | AH190: 186 | AK190: 1 | AL190: 1 | AM190: 1 | AN190: 1 | AO190: 1 | AP190: 1 | AQ190: 1 | AR190: 1 | AS190: 1 | AT190: 1 | AU190: 1 | AV190: 1 | AW190: 1 | AX190: 1 | AY190: 0 | AZ190: 1 | BA190: 1 | BB190: 1 | BC190: 1 | BE190: 2 | BX190: - | BY190: - | BZ190: 15 | CB190: 0 | EM190: 181 | EO190: =IF(BE190>1,AF190,"") -> 181 | EP190: (172)
A191: 181 (174) | D191: 0 | F191: 0 | AB191: 18 | AC191: - | AD191: - | AE191: 174 | AF191: 181 | AG191: - | AH191: 187 | AK191: 1 | AL191: 1 | AM191: 1 | AN191: 1 | AO191: 1 | AP191: 1 | AQ191: 1 | AR191: 1 | AS191: 1 | AT191: 1 | AU191: 1 | AV191: 1 | AW191: 1 | AX191: 1 | AY191: 0 | AZ191: 1 | BA191: 1 | BB191: 1 | BC191: 1 | BE191: 2 | BX191: - | BY191: - | BZ191: 15 | CB191: 0 | EM191: 155 | EO191: =IF(BE191>=1,AF191,"") -> 181 | EP191: (174)
A192: 181 (182) | D192: 0 | F192: 0 | AB192: 18 | AC192: - | AD192: - | AE192: 182 | AF192: 181 | AG192: - | AH192: 188 | AK192: 1 | AL192: 1 | AM192: 1 | AN192: 1 | AO192: 1 | AP192: 1 | AQ192: 1 | AR192: 1 | AS192: 1 | AT192: 1 | AU192: 1 | AV192: 1 | AW192: 1 | AX192: 1 | AY192: 0 | AZ192: 1 | BA192: 1 | BB192: 1 | BC192: 1 | BE192: 2 | BX192: - | BY192: - | BZ192: 15 | CB192: 0 | EM192: 183 | EO192: =IF(BE192>1,AF192,"") -> 181 | EP192: (182)
A193: 181 (184) | D193: 0 | F193: 0 | AB193: 18 | AC193: - | AD193: - | AE193: 184 | AF193: 181 | AG193: - | AH193: 189 | AK193: 1 | AL193: 1 | AM193: 1 | AN193: 1 | AO193: 1 | AP193: 1 | AQ193: 1 | AR193: 1 | AS193: 1 | AT193: 1 | AU193: 1 | AV193: 1 | AW193: 1 | AX193: 1 | AY193: 0 | AZ193: 1 | BA193: 1 | BB193: 1 | BC193: 1 | BE193: 2 | BX193: - | BY193: - | BZ193: 15 | CB193: 0 | EM193: 185 | EO193: 181 | EP193: (184)
A194: 181 (190) | D194: 0 | F194: 0 | AB194: 18 | AC194: - | AD194: - | AE194: 190 | AF194: 181 | AG194: - | AH194: 190 | AK194: 1 | AL194: 1 | AM194: 1 | AN194: 1 | AO194: 1 | AP194: 1 | AQ194: 1 | AR194: 1 | AS194: 1 | AT194: 1 | AU194: 1 | AV194: 1 | AW194: 1 | AX194: 1 | AY194: 0 | AZ194: 1 | BA194: 1 | BB194: 1 | BC194: 1 | BE194: 2 | BX194: - | BY194: - | BZ194: 15 | CB194: 0 | EM194: 186 | EO194: 181 | EP194: (190)
A195: 181 (190) | D195: 0 | F195: 0 | AB195: 18 | AC195: - | AD195: - | AE195: 190 | AF195: 181 | AG195: - | AH195: 191 | AK195: 1 | AL195: 1 | AM195: 1 | AN195: 1 | AO195: 1 | AP195: 1 | AQ195: 1 | AR195: 1 | AS195: 1 | AT195: 1 | AU195: 1 | AV195: 1 | AW195: 1 | AX195: 1 | AY195: 0 | AZ195: 1 | BA195: 1 | BB195: 1 | BC195: 1 | BE195: 2 | BX195: - | BY195: - | BZ195: 15 | CB195: 0 | EM195: 187 | EO195: 181 | EP195: (190)
A196: 181 (190) | D196: 0 | F196: 0 | AB196: 18 | AC196: - | AD196: - | AE196: 190 | AF196: 181 | AG196: - | AH196: 192 | AK196: 1 | AL196: 1 | AM196: 1 | AN196: 1 | AO196: 1 | AP196: 1 | AQ196: 1 | AR196: 1 | AS196: 1 | AT196: 1 | AU196: 1 | AV196: 1 | AW196: 1 | AX196: 1 | AY196: 0 | AZ196: 1 | BA196: 1 | BB196: 1 | BC196: 1 | BE196: 2 | BX196: - | BY196: - | BZ196: 15 | CB196: 0 | EM196: 205 | EO196: 181 | EP196: (190)
A197: 181 (190) | D197: =SUM(BH197:BT197) -> 0 | F197: =COUNT(I197:AA197) -> 0 | G197: =SUM((CB197)/(F197*2)) ->  | AB197: =SUM($I$3:$AA$3) -> 18 | AC197: =BX197 -> - | AD197: =BY197 -> - | AE197: 190 | AF197: 181 | AG197: =IF(F197>1,ROW(193:193),"-") -> - | AH197: 193 | AK197: 1 | AL197: 1 | AM197: 1 | AN197: 1 | AO197: 1 | AP197: 1 | AQ197: 1 | AR197: 1 | AS197: 1 | AT197: 1 | AU197: 1 | AV197: 1 | AW197: 1 | AX197: 1 | AY197: 0 | AZ197: 1 | BA197: 1 | BB197: 1 | BC197: 1 | BE197: 2 | BX197: - | BY197: - | BZ197: =SUM(AB197-F197)-3 -> 15 | CB197: =SUM(BH197:BW197) -> 0 | EM197: 216 | EO197: 181 | EP197: =IF(BE197>1,"("&AE197&")","("&AG197&")") -> (190)
A198: 181 (190) | D198: 0 | F198: 0 | AB198: 18 | AC198: - | AD198: - | AE198: 190 | AF198: 181 | AG198: - | AH198: 194 | AK198: 1 | AL198: 1 | AM198: 1 | AN198: 1 | AO198: 1 | AP198: 1 | AQ198: 1 | AR198: 1 | AS198: 1 | AT198: 1 | AU198: 1 | AV198: 1 | AW198: 1 | AX198: 1 | AY198: 0 | AZ198: 1 | BA198: 1 | BB198: 1 | BC198: 1 | BE198: 2 | BI198: =IF($F198>1,LARGE($I198:$AA198,2),"") ->  | BJ198: =IF($F198>2,LARGE($I198:$AA198,3),"") ->  | BK198: =IF($F198>3,LARGE($I198:$AA198,4),"") ->  | BL198: =IF($F198>4,LARGE($I198:$AA198,5),"") ->  | BM198: =IF($F198>5,LARGE($I198:$AA198,6),"") ->  | BN198: =IF($F198>6,LARGE($I198:$AA198,7),"") ->  | BO198: =IF($F198>7,LARGE($I198:$AA198,8),"") ->  | BP198: =IF($F198>8,LARGE($I198:$AA198,9),"") ->  | BQ198: =IF($F198>9,LARGE($I198:$AA198,10),"") ->  | BR198: =IF($F198>10,LARGE($I198:$AA198,11),"") ->  | BS198: =IF($F198>11,LARGE($I198:$AA198,12),"") ->  | BT198: =IF($F198>12,LARGE($I198:$AA198,13),"") ->  | BU198: =IF($F198>13,LARGE($I198:$AA198,14),"") ->  | BV198: =IF($F198>14,LARGE($I198:$AA198,15),"") ->  | BW198: =IF($F198>15,LARGE($I198:$AA198,16),"") ->  | BX198: =IF($F198>14,LARGE($I198:$AA198,15),"-") -> - | BY198: =IF($F198>15,LARGE($I198:$AA198,16),"-") -> - | BZ198: 15 | CB198: 0 | EM198: 189 | EO198: 181 | EP198: (190)
A199: 181 (190) | D199: 0 | F199: 0 | AB199: 18 | AC199: - | AD199: - | AE199: 190 | AF199: 181 | AG199: - | AH199: 195 | AK199: 1 | AL199: 1 | AM199: 1 | AN199: 1 | AO199: 1 | AP199: 1 | AQ199: 1 | AR199: 1 | AS199: 1 | AT199: 1 | AU199: 1 | AV199: 1 | AW199: 1 | AX199: 1 | AY199: 0 | AZ199: 1 | BA199: 1 | BB199: 1 | BC199: 1 | BE199: 2 | BX199: - | BY199: - | BZ199: 15 | CB199: 0 | EM199: 190 | EO199: 181 | EP199: (190)
A200: 181 (190) | D200: 0 | F200: 0 | AB200: 18 | AC200: - | AD200: - | AE200: 190 | AF200: 181 | AG200: - | AH200: 196 | AK200: 1 | AL200: 1 | AM200: 1 | AN200: 1 | AO200: 1 | AP200: 1 | AQ200: 1 | AR200: 1 | AS200: 1 | AT200: 1 | AU200: 1 | AV200: 1 | AW200: 1 | AX200: 1 | AY200: 0 | AZ200: 1 | BA200: 1 | BB200: 1 | BC200: 1 | BE200: 2 | BX200: - | BY200: - | BZ200: 15 | CB200: 0 | EM200: 191 | EO200: 181 | EP200: (190)
A201: 181 (190) | D201: 0 | F201: 0 | AB201: 18 | AC201: - | AD201: - | AE201: 190 | AF201: 181 | AG201: - | AH201: 197 | AK201: 1 | AL201: 1 | AM201: 1 | AN201: 1 | AO201: 1 | AP201: 1 | AQ201: 1 | AR201: 1 | AS201: 1 | AT201: 1 | AU201: 1 | AV201: 1 | AW201: 1 | AX201: 1 | AY201: 0 | AZ201: 1 | BA201: 1 | BB201: 1 | BC201: 1 | BE201: 2 | BX201: - | BY201: - | BZ201: 15 | CB201: 0 | EM201: 192 | EO201: 181 | EP201: (190)
... 19 more rows

Sheet Regler
A1: Regler för Sverige-,Junior- o Miniorranking
A3: Rankingpoäng utgör den totala poängen från rankingtävlingar under säsongen
A4: som varje enskild kastare har fått ihop.
A5: Max från 13 tävlingar kan medräknas, och då räknas de 13 med högst resultat.
A7: Den som har högst poäng när säsongen är över vinner.
A9: Skulle det vara kastare som hamnar på samma poäng när säsongen är över, och är bland de
A10: tre bästa så gäller detta för att skilja dem åt.
A12: 1. Högst snitt per serie
A13: 2. Högst poäng på en tävling, sedan näst högst osv.
A14: 3. Högsta poängen på senaste tävlingen, sedan den dessför innan osv.(DM-tävlingar ej inräknade)
A15: 4. Skulle det fortfarande inte gå att skilja dem åt, så blir de på samma plats.
A18: Seriespelsranking
A20: Alla individuella seriespelsresultaten under säsongen räknas in.
A21: Den som har högst snitt när säsongen är över vinner.
A23: För att kunna vara bland de tre pristagarna, måste man spelat minst 7 serier.
A25: Skulle det vara kastare som hamnar på samma snitt när säsongen är över, och är bland de
A26: tre bästa så gäller detta för att skilja dem åt.
A28: 1. Det högsta serieresultatet, sedan näst högsta osv.
A29: 2. Skulle det fortfarande inte gå att skilja dem åt, så blir de på samma plats.

Sheet Miniorranking
B1: Svenska Hästskokastarförbundets Sverigeranking
C2: MINIOR
C3: SLUTSTÄLLNING 2016/2017 | I3: =IF(SUM(I5:I407)>100,1,"") -> 1 | J3: 1 | K3: 1 | L3: 1 | M3: 1 | N3: 1 | O3: 1 | P3: 1 | Q3: 1 | R3: 1 | S3: 1 | T3: 1 | U3: 1 | V3: 1 | X3: 1 | Y3: 1 | Z3: 1 | AA3: 1
A4: Plac. | B4: Kastare | C4: Klubb | D4: Ranking-poäng | F4: Antal täv-lingar | G4: Snitt per serie | I4: Växjö Open | J4: Björkenäs Open | K4: Utomhus-SM Dag 1 | L4: Utomhus-SM Dag 2 | M4: Utomhus Smålandsmästaren | N4: Carlskrona Cup | O4: Gotland Open | P4: Septemberskon | Q4: Dynapac Open | R4: Blekinge-DM Ute | S4: Åseda Open | T4: Höstskon Nybro | U4: Novemberkampen | V4: Inomhus-SM | W4: Gotlands-DM inne | X4: Inomhus Smålandsmästaren | Y4: Blekinge DM Inne | Z4: Värendspokalen | AA4: Tingsryds Open
A5: =EJ5&EK5 -> 1(1) | B5: Alexander Lundqvist | C5: Alvesta Hsk | D5: =SUM(I5:AA5) -> 4068 | F5: =COUNT(I5:AA5) -> 15 | G5: =SUM((D5)/(F5*2)) -> 135.6 | I5: 263 | J5: 256 | K5: 204 | L5: 271 | M5: 366 | O5: 178 | P5: 256 | Q5: 318 | S5: 172 | T5: 400 | U5: 234 | V5: 325 | X5: 248 | Z5: 347 | AA5: 230 | AD5: 1 | AE5: =IF(D5>1,ROW(1:1),"-") -> 1 | AF5: =IF(F5>1,ROW(1:1),"-") -> 1 | AJ5: =COUNT($I$3,I5,H5) -> 2 | AK5: =COUNT($J$3,J5,I5) -> 3 | AL5: =COUNT($K$3,K5,J5) -> 3 | AM5: =COUNT($L$3,L5,K5) -> 3 | AN5: =COUNT($M$3,M5,L5) -> 3 | AO5: =COUNT($N$3,N5,M5) -> 2 | AP5: =COUNT($O$3,O5,N5) -> 2 | AQ5: =COUNT($P$3,P5,O5) -> 3 | AR5: =COUNT($Q$3,Q5,P5) -> 3 | AS5: =COUNT($R$3,R5,Q5) -> 2 | AT5: =COUNT($S$3,S5,R5) -> 2 | AU5: =COUNT($T$3,T5,S5) -> 3 | AV5: =COUNT($U$3,U5,T5) -> 3 | AW5: =COUNT($V$3,V5,U5) -> 3 | AX5: =COUNT($W$3,W5,V5) -> 1 | AY5: =COUNT($X$3,X5,W5) -> 2 | AZ5: =COUNT($Y$3,Y5,X5) -> 2 | BA5: =COUNT($Z$3,Z5,Y5) -> 2 | BB5: =COUNT($AA$3,AA5,Z5) -> 3 | BD5: =COUNTIF(AI5:BC5,">1") -> 18 | BE5: =IF(H5="x",1,2) -> 2 | EH5: 1 | EJ5: =IF(BD5>=1,AE5,"") -> 1 | EK5: =IF(BE5>1,"("&AD5&")","("&AF5&")") -> (1)
A6: =EJ6&EK6 -> 2(2) | B6: Natalie Sundahl | C6: Carlskrona Hsc | D6: 2081 | F6: 14 | G6: 74.32142857 | I6: 152 | J6: 71 | L6: 159 | N6: 166 | P6: 192 | Q6: 146 | R6: 168 | S6: 190 | T6: 120 | U6: 89 | V6: 229 | Y6: 165 | Z6: 130 | AA6: 104 | AD6: 2 | AE6: =IF(D6=D5,ROW(1:1),IF(D6>1,ROW(2:2),"-")) -> 2 | AF6: 2 | AJ6: =COUNT($I$3,I6,H6) -> 2 | AK6: =COUNT($J$3,J6,I6) -> 3 | AL6: =COUNT($K$3,K6,J6) -> 2 | AM6: =COUNT($L$3,L6,K6) -> 2 | AN6: =COUNT($M$3,M6,L6) -> 2 | AO6: =COUNT($N$3,N6,M6) -> 2 | AP6: =COUNT($O$3,O6,N6) -> 2 | AQ6: =COUNT($P$3,P6,O6) -> 2 | AR6: =COUNT($Q$3,Q6,P6) -> 3 | AS6: =COUNT($R$3,R6,Q6) -> 3 | AT6: =COUNT($S$3,S6,R6) -> 3 | AU6: =COUNT($T$3,T6,S6) -> 3 | AV6: =COUNT($U$3,U6,T6) -> 3 | AW6: =COUNT($V$3,V6,U6) -> 3 | AX6: =COUNT($W$3,W6,V6) -> 1 | AY6: =COUNT($X$3,X6,W6) -> 1 | AZ6: =COUNT($Y$3,Y6,X6) -> 2 | BA6: =COUNT($Z$3,Z6,Y6) -> 3 | BB6: =COUNT($AA$3,AA6,Z6) -> 3 | BD6: =COUNTIF(AI6:BC6,">1") -> 17 | BE6: =IF(H6="x",1,2) -> 2 | EH6: 2 | EJ6: =IF(BD6>=1,AE6,"") -> 2 | EK6: =IF(BE6>1,"("&AD6&")","("&AF6&")") -> (2)
A7: 3(3) | B7: Oscar Stener | C7: Alvesta Hsk | D7: 1347 | F7: 9 | G7: 74.83333333 | O7: 178 | Q7: 120 | S7: 138 | T7: 194 | U7: 98 | V7: 175 | X7: 88 | Z7: 285 | AA7: 71 | AD7: 3 | AE7: =IF(AND(D7=D6,D7=D5),ROW(1:1),IF(D7=D6,ROW(2:2),IF(D7>1,ROW(3:3),"-"))) -> 3 | AF7: 3 | AJ7: 1 | AK7: 1 | AL7: 1 | AM7: 1 | AN7: 1 | AO7: 1 | AP7: 2 | AQ7: 2 | AR7: 2 | AS7: 2 | AT7: 2 | AU7: 3 | AV7: 3 | AW7: 3 | AX7: 1 | AY7: 2 | AZ7: 2 | BA7: 2 | BB7: 3 | BD7: 12 | BE7: 2 | EH7: 3 | EJ7: 3 | EK7: (3)
A8: 4(4) | B8: Johannes Engkvist | C8: Alvesta Hsk | D8: 1061 | F8: 11 | G8: 48.22727273 | I8: 118 | J8: 89 | L8: 57 | M8: 99 | O8: 101 | Q8: 75 | T8: 118 | U8: 61 | V8: 158 | X8: 138 | Z8: 47 | AD8: 4 | AE8: =IF(AND(D8=D7,D8=D6,D8=D5),ROW(1:1),IF(AND(D8=D7,D8=D6),ROW(2:2),IF(D8=D7,ROW(3:3),IF(D8>1,ROW(4:4),"-")))) -> 4 | AF8: 4 | AJ8: 2 | AK8: 3 | AL8: 2 | AM8: 2 | AN8: 3 | AO8: 2 | AP8: 2 | AQ8: 2 | AR8: 2 | AS8: 2 | AT8: 1 | AU8: 2 | AV8: 3 | AW8: 3 | AX8: 1 | AY8: 2 | AZ8: 2 | BA8: 2 | BB8: 2 | BD8: 17 | BE8: 2 | EH8: 4 | EJ8: 4 | EK8: (4)
A9: 5(5) | B9: Lukas Gunnarsson | C9: Tingsryd Hsc | D9: 601 | F9: 4 | G9: 75.125 | I9: 203 | K9: 85 | L9: 90 | V9: 223 | AD9: 5 | AE9: =IF(AND(D9=D8,D9=D7,D9=D6,D9=D5),ROW(1:1),IF(AND(D9=D8,D9=D7,D9=D6),ROW(2:2),IF(AND(D9=D8,D9=D7),ROW(3:3),IF(D9=D8,ROW(4:4),IF(D9>1,ROW(5:5),"-"))))) -> 5 | AF9: 5 | AJ9: 2 | AK9: 2 | AL9: 2 | AM9: 3 | AN9: 2 | AO9: 1 | AP9: 1 | AQ9: 1 | AR9: 1 | AS9: 1 | AT9: 1 | AU9: 1 | AV9: 1 | AW9: 2 | AX9: 1 | AY9: 1 | AZ9: 1 | BA9: 1 | BB9: 1 | BD9: 6 | BE9: 2 | EH9: 5 | EJ9: 5 | EK9: (5)
A10: 6(6) | B10: Julius Gneupel | C10: Sibbamåla | D10: 502 | F10: 4 | G10: 62.75 | K10: 116 | L10: 137 | Q10: 103 | Y10: 146 | AD10: 6 | AE10: 6 | AF10: 6 | AJ10: 1 | AK10: 1 | AL10: 2 | AM10: 3 | AN10: 2 | AO10: 1 | AP10: 1 | AQ10: 1 | AR10: 2 | AS10: 2 | AT10: 1 | AU10: 1 | AV10: 1 | AW10: 1 | AX10: 0 | AY10: 1 | AZ10: 2 | BA10: 2 | BB10: 1 | BD10: 7 | BE10: 2 | EH10: 6 | EJ10: 6 | EK10: (6)
A11: 7(7) | B11: Evelina Olsson | C11: Dynapac | D11: 299 | F11: 3 | G11: 49.83333333 | I11: 137 | J11: 101 | L11: 61 | AD11: 7 | AE11: 7 | AF11: 7 | AJ11: 2 | AK11: 3 | AL11: 2 | AM11: 2 | AN11: 2 | AO11: 1 | AP11: 1 | AQ11: 1 | AR11: 1 | AS11: 1 | AT11: 1 | AU11: 1 | AV11: 1 | AW11: 1 | AX11: 0 | AY11: 1 | AZ11: 1 | BA11: 1 | BB11: 1 | BD11: 5 | BE11: 2 | EH11: 7 | EJ11: 7 | EK11: (7)
A12: 8(8) | B12: Linus Israelsson | C12: Sibbamåla | D12: 189 | F12: 2 | G12: 47.25 | L12: 107 | Y12: 82 | AD12: 8 | AE12: =IF(AND(D12=D11,D12=D10,D12=D9,D12=D8),ROW(4:4),IF(AND(D12=D11,D12=D10,D12=D9),ROW(5:5),IF(AND(D12=D11,D12=D10),ROW(6:6),IF(D12=D11,ROW(7:7),IF(D12>1,ROW(8:8),"-"))))) -> 8 | AF12: =IF(F12>1,ROW(8:8),"-") -> 8 | AJ12: =COUNT($I$3,I12,H12) -> 1 | AK12: =COUNT($J$3,J12,I12) -> 1 | AL12: =COUNT($K$3,K12,J12) -> 1 | AM12: =COUNT($L$3,L12,K12) -> 2 | AN12: =COUNT($M$3,M12,L12) -> 2 | AO12: =COUNT($N$3,N12,M12) -> 1 | AP12: =COUNT($O$3,O12,N12) -> 1 | AQ12: =COUNT($P$3,P12,O12) -> 1 | AR12: =COUNT($Q$3,Q12,P12) -> 1 | AS12: =COUNT($R$3,R12,Q12) -> 1 | AT12: =COUNT($S$3,S12,R12) -> 1 | AU12: =COUNT($T$3,T12,S12) -> 1 | AV12: =COUNT($U$3,U12,T12) -> 1 | AW12: =COUNT($V$3,V12,U12) -> 1 | AX12: =COUNT($W$3,W12,V12) -> 0 | AY12: =COUNT($X$3,X12,W12) -> 1 | AZ12: =COUNT($Y$3,Y12,X12) -> 2 | BA12: =COUNT($Z$3,Z12,Y12) -> 2 | BB12: =COUNT($AA$3,AA12,Z12) -> 1 | BD12: =COUNTIF(AI12:BC12,">1") -> 4 | BE12: =IF(H12="x",1,2) -> 2 | EH12: 8 | EJ12: 8 | EK12: (8)
A13: 9(9) | B13: Abbe Johansson | C13: Dynapac | D13: 118 | F13: 2 | G13: 29.5 | Q13: 54 | R13: 64 | AD13: 9 | AE13: =IF(AND(D13=D12,D13=D11,D13=D10,D13=D9),ROW(5:5),IF(AND(D13=D12,D13=D11,D13=D10),ROW(6:6),IF(AND(D13=D12,D13=D11),ROW(7:7),IF(D13=D12,ROW(8:8),IF(D13>1,ROW(9:9),"-"))))) -> 9 | AF13: =IF(F13>1,ROW(9:9),"-") -> 9 | AJ13: =COUNT($I$3,I13,H13) -> 1 | AK13: =COUNT($J$3,J13,I13) -> 1 | AL13: =COUNT($K$3,K13,J13) -> 1 | AM13: =COUNT($L$3,L13,K13) -> 1 | AN13: =COUNT($M$3,M13,L13) -> 1 | AO13: =COUNT($N$3,N13,M13) -> 1 | AP13: =COUNT($O$3,O13,N13) -> 1 | AQ13: =COUNT($P$3,P13,O13) -> 1 | AR13: =COUNT($Q$3,Q13,P13) -> 2 | AS13: =COUNT($R$3,R13,Q13) -> 3 | AT13: =COUNT($S$3,S13,R13) -> 2 | AU13: =COUNT($T$3,T13,S13) -> 1 | AV13: =COUNT($U$3,U13,T13) -> 1 | AW13: =COUNT($V$3,V13,U13) -> 1 | AX13: =COUNT($W$3,W13,V13) -> 0 | AY13: =COUNT($X$3,X13,W13) -> 1 | AZ13: =COUNT($Y$3,Y13,X13) -> 1 | BA13: =COUNT($Z$3,Z13,Y13) -> 1 | BB13: =COUNT($AA$3,AA13,Z13) -> 1 | BD13: =COUNTIF(AI13:BC13,">1") -> 3 | BE13: =IF(H13="x",1,2) -> 2 | EH13: 9 | EJ13: 9 | EK13: (9)
A14: (-) | D14: 0 | F14: 0 | AD14: - | AE14: - | AF14: - | AJ14: 1 | AK14: 1 | AL14: 1 | AM14: 1 | AN14: 1 | AO14: 1 | AP14: 1 | AQ14: 1 | AR14: 1 | AS14: 1 | AT14: 1 | AU14: 1 | AV14: 1 | AW14: 1 | AX14: 0 | AY14: 1 | AZ14: 1 | BA14: 1 | BB14: 1 | BD14: 0 | BE14: 2 | EH14: 10 | EK14: (-)
A15: (10) | D15: 0 | F15: 0 | AD15: 10 | AE15: 10 | AF15: - | AJ15: 1 | AK15: 1 | AL15: 1 | AM15: 1 | AN15: 1 | AO15: 1 | AP15: 1 | AQ15: 1 | AR15: 1 | AS15: 1 | AT15: 1 | AU15: 1 | AV15: 1 | AW15: 1 | AX15: 0 | AY15: 1 | AZ15: 1 | BA15: 1 | BB15: 1 | BD15: 0 | BE15: 2 | EH15: 11 | EK15: (10)
A16: (10) | D16: 0 | F16: 0 | AD16: 10 | AE16: 10 | AF16: - | AJ16: 1 | AK16: 1 | AL16: 1 | AM16: 1 | AN16: 1 | AO16: 1 | AP16: 1 | AQ16: 1 | AR16: 1 | AS16: 1 | AT16: 1 | AU16: 1 | AV16: 1 | AW16: 1 | AX16: 0 | AY16: 1 | AZ16: 1 | BA16: 1 | BB16: 1 | BD16: 0 | BE16: 2 | EH16: 12 | EK16: (10)
A17: (10) | D17: 0 | F17: 0 | AD17: 10 | AE17: 10 | AF17: - | AJ17: 1 | AK17: 1 | AL17: 1 | AM17: 1 | AN17: 1 | AO17: 1 | AP17: 1 | AQ17: 1 | AR17: 1 | AS17: 1 | AT17: 1 | AU17: 1 | AV17: 1 | AW17: 1 | AX17: 0 | AY17: 1 | AZ17: 1 | BA17: 1 | BB17: 1 | BD17: 0 | BE17: 2 | EH17: 13 | EK17: (10)
A18: (10) | D18: 0 | F18: 0 | AD18: 10 | AE18: 10 | AF18: - | AJ18: 1 | AK18: 1 | AL18: 1 | AM18: 1 | AN18: 1 | AO18: 1 | AP18: 1 | AQ18: 1 | AR18: 1 | AS18: 1 | AT18: 1 | AU18: 1 | AV18: 1 | AW18: 1 | AX18: 0 | AY18: 1 | AZ18: 1 | BA18: 1 | BB18: 1 | BD18: 0 | BE18: 2 | EH18: 14 | EJ18: =IF(BD18>=1,AE18,"") ->  | EK18: (10)
A19: (11) | D19: 0 | F19: 0 | AD19: 11 | AE19: 11 | AF19: - | AJ19: 1 | AK19: 1 | AL19: 1 | AM19: 1 | AN19: 1 | AO19: 1 | AP19: 1 | AQ19: 1 | AR19: 1 | AS19: 1 | AT19: 1 | AU19: 1 | AV19: 1 | AW19: 1 | AX19: 0 | AY19: 1 | AZ19: 1 | BA19: 1 | BB19: 1 | BD19: 0 | BE19: 2 | EH19: 15 | EK19: (11)
A20: (12) | D20: 0 | F20: 0 | AD20: 12 | AE20: 12 | AF20: - | AJ20: 1 | AK20: 1 | AL20: 1 | AM20: 1 | AN20: 1 | AO20: 1 | AP20: 1 | AQ20: 1 | AR20: 1 | AS20: 1 | AT20: 1 | AU20: 1 | AV20: 1 | AW20: 1 | AX20: 0 | AY20: 1 | AZ20: 1 | BA20: 1 | BB20: 1 | BD20: 0 | BE20: 2 | EH20: 16 | EJ20: =IF(BD20>=1,AE20,"") ->  | EK20: (12)
A21: (13) | D21: 0 | F21: 0 | AD21: 13 | AE21: 13 | AF21: - | AJ21: 1 | AK21: 1 | AL21: 1 | AM21: 1 | AN21: 1 | AO21: 1 | AP21: 1 | AQ21: 1 | AR21: 1 | AS21: 1 | AT21: 1 | AU21: 1 | AV21: 1 | AW21: 1 | AX21: 0 | AY21: 1 | AZ21: 1 | BA21: 1 | BB21: 1 | BD21: 0 | BE21: 2 | EH21: 17 | EK21: (13)
A22: =EJ22&EK22 -> (14) | D22: 0 | F22: 0 | AD22: 14 | AE22: 14 | AF22: - | AJ22: 1 | AK22: 1 | AL22: 1 | AM22: 1 | AN22: 1 | AO22: 1 | AP22: 1 | AQ22: 1 | AR22: 1 | AS22: 1 | AT22: 1 | AU22: 1 | AV22: 1 | AW22: 1 | AX22: 0 | AY22: 1 | AZ22: 1 | BA22: 1 | BB22: 1 | BD22: 0 | BE22: 2 | EH22: 18 | EK22: (14)
A23: =EJ23&EK23 -> (15) | D23: 0 | F23: 0 | AD23: 15 | AE23: =IF(AND(D23=D22,D23=D21,D23=D20,D23=D19),ROW(15:15),IF(AND(D23=D22,D23=D21,D23=D20),ROW(16:16),IF(AND(D23=D22,D23=D21),ROW(17:17),IF(D23=D22,ROW(18:18),IF(D23>1,ROW(19:19),"-"))))) -> 15 | AF23: =IF(F23>1,ROW(19:19),"-") -> - | AJ23: =COUNT($I$3,I23,H23) -> 1 | AK23: =COUNT($J$3,J23,I23) -> 1 | AL23: =COUNT($K$3,K23,J23) -> 1 | AM23: =COUNT($L$3,L23,K23) -> 1 | AN23: =COUNT($M$3,M23,L23) -> 1 | AO23: =COUNT($N$3,N23,M23) -> 1 | AP23: =COUNT($O$3,O23,N23) -> 1 | AQ23: =COUNT($P$3,P23,O23) -> 1 | AR23: =COUNT($Q$3,Q23,P23) -> 1 | AS23: =COUNT($R$3,R23,Q23) -> 1 | AT23: =COUNT($S$3,S23,R23) -> 1 | AU23: =COUNT($T$3,T23,S23) -> 1 | AV23: =COUNT($U$3,U23,T23) -> 1 | AW23: =COUNT($V$3,V23,U23) -> 1 | AX23: =COUNT($W$3,W23,V23) -> 0 | AY23: =COUNT($X$3,X23,W23) -> 1 | AZ23: =COUNT($Y$3,Y23,X23) -> 1 | BA23: =COUNT($Z$3,Z23,Y23) -> 1 | BB23: =COUNT($AA$3,AA23,Z23) -> 1 | BD23: =COUNTIF(AI23:BC23,">1") -> 0 | BE23: =IF(H23="x",1,2) -> 2 | EH23: 19 | EK23: =IF(BE23>1,"("&AD23&")","("&AF23&")") -> (15)
A24: (16) | D24: 0 | F24: 0 | AD24: 16 | AE24: 16 | AF24: - | AJ24: 1 | AK24: 1 | AL24: 1 | AM24: 1 | AN24: 1 | AO24: 1 | AP24: 1 | AQ24: 1 | AR24: 1 | AS24: 1 | AT24: 1 | AU24: 1 | AV24: 1 | AW24: 1 | AX24: 0 | AY24: 1 | AZ24: 1 | BA24: 1 | BB24: 1 | BD24: 0 | BE24: 2 | EH24: 20 | EK24: (16)
A25: =EJ25&EK25 -> (17) | D25: 0 | F25: 0 | AD25: 17 | AE25: =IF(AND(D25=D24,D25=D23,D25=D22,D25=D21),ROW(17:17),IF(AND(D25=D24,D25=D23,D25=D22),ROW(18:18),IF(AND(D25=D24,D25=D23),ROW(19:19),IF(D25=D24,ROW(20:20),IF(D25>1,ROW(21:21),"-"))))) -> 17 | AF25: =IF(F25>1,ROW(21:21),"-") -> - | AJ25: =COUNT($I$3,I25,H25) -> 1 | AK25: =COUNT($J$3,J25,I25) -> 1 | AL25: =COUNT($K$3,K25,J25) -> 1 | AM25: =COUNT($L$3,L25,K25) -> 1 | AN25: =COUNT($M$3,M25,L25) -> 1 | AO25: =COUNT($N$3,N25,M25) -> 1 | AP25: =COUNT($O$3,O25,N25) -> 1 | AQ25: =COUNT($P$3,P25,O25) -> 1 | AR25: =COUNT($Q$3,Q25,P25) -> 1 | AS25: =COUNT($R$3,R25,Q25) -> 1 | AT25: =COUNT($S$3,S25,R25) -> 1 | AU25: =COUNT($T$3,T25,S25) -> 1 | AV25: =COUNT($U$3,U25,T25) -> 1 | AW25: =COUNT($V$3,V25,U25) -> 1 | AX25: =COUNT($W$3,W25,V25) -> 0 | AY25: =COUNT($X$3,X25,W25) -> 1 | AZ25: =COUNT($Y$3,Y25,X25) -> 1 | BA25: =COUNT($Z$3,Z25,Y25) -> 1 | BB25: =COUNT($AA$3,AA25,Z25) -> 1 | BD25: =COUNTIF(AI25:BC25,">1") -> 0 | BE25: =IF(H25="x",1,2) -> 2 | EH25: 21 | EK25: =IF(BE25>1,"("&AD25&")","("&AF25&")") -> (17)
EH28: 1 | EJ28: =IF(BD28>=1,AE28,"") ->  | EK28: =IF(BD28>1,"("&AD28&")","("&AF28&")") -> ()
EH29: 3 | EK29: ()
EH30: 4 | EK30: ()
EH31: 5 | EK31: ()
EH32: 6 | EK32: ()
EH33: 7 | EK33: ()
EH34: 8 | EK34: ()
EH35: 9 | EK35: ()
EH36: 10 | EK36: ()
EH37: 11 | EK37: ()
EH38: 12 | EK38: ()
EH39: 13 | EK39: ()
EH40: 14 | EJ40: =IF(BD40>=1,AE40,14) -> 14 | EK40: ()
EH41: 15 | EJ41: =IF(BD41>=1,AE41,"") ->  | EK41: ()
EH42: 16 | EJ42: =IF(BD42>=1,AE42,"") ->  | EK42: ()
EH43: 2 | EJ43: =IF(BD43>=1,AE43,"") ->  | EK43: ()
EH44: 17 | EJ44: =IF(BD44>=1,AE44,"") ->  | EK44: =IF(BD44>2,"("&AD44&")","("&AF44&")") -> ()
EH45: 18 | EJ45: 18 | EK45: =IF(BD45>1,"("&AD45&")","("&AF45&")") -> ()
EH46: 19 | EJ46: 19 | EK46: =IF(BD46>1,"("&AD46&")","("&AF46&")") -> ()
EH47: 20 | EJ47: 20 | EK47: =IF(BD47>1,"("&AD47&")","("&AF47&")") -> ()

Sheet Seriespelsranking
B1: Svenska Hästskokastarförbundets Seriespelsranking
B2: 2016_2017
B3: SLUTSTÄLLNING
A4: Plac. | B4: Kastare | C4: Klubb | D4: Ranking-snitt | F4: Antal serie-resultat | G4: Total-poäng serie-resultat | I4: Antal vunna dubblar | J4: Antal förlorade dubblar | K4: Antal vunna singlar | L4: Antal förlorade singlar | M4: Antal vunna matcher i % | N4: Inskrivning resultat | BQ4: Uträkning för | BR4: statistik vunna resp. | BS4: förlorade | BT4: dubblar och singlar.
A5: =DU5&EE5 -> 1(1) | B5: Sandor Bodi | C5: Växjö | D5: =IF(F5>0.5,(G5/F5),0) -> 223.6923077 | F5: =COUNT(N5:BO5) -> 39 | G5: =SUM(N5:BO5) -> 8724 | I5: =COUNTIF(BQ5:DR5,2) -> 0 | J5: =COUNTIF(BQ5:DR5,-2) -> 0 | K5: =COUNTIF(BQ5:DR5,1) -> 0 | L5: =COUNTIF(BQ5:DR5,-1) -> 0 | M5: =IF(F5>0,(I5+K5)/(F5),0) -> 0 | N5: 236 | O5: 211 | P5: 190 | Q5: 233 | R5: 138 | S5: 249 | T5: 258 | U5: 239 | V5: 254 | W5: 139 | X5: 229 | Y5: 139 | Z5: 175 | AA5: 234 | AB5: 231 | AC5: 240 | AD5: 214 | AE5: 229 | AF5: 244 | AG5: 263 | AH5: 263 | AI5: 182 | AJ5: 253 | AK5: 229 | AL5: 194 | AM5: 281 | AN5: 207 | AO5: 221 | AP5: 285 | AQ5: 219 | AR5: 217 | AS5: 218 | AT5: 262 | AU5: 251 | AV5: 260 | AW5: 174 | AX5: 247 | AY5: 217 | AZ5: 199 | DT5: 1 | DU5: =IF(AND(D5=D4,D5=D3,D5=D2,D5=D1),ROW(1:1),IF(AND(D5=D4,D5=D3,D5=D2),ROW(1:1),IF(AND(D5=D4,D5=D3),ROW(1:1),IF(D5=D4,ROW(1:1),IF(D5>1,ROW(1:1),"-"))))) -> 1 | DV5: =IF(DX5=1,ROW(1:1),"-") -> 1 | DX5: 1 | EB5: 11 | ED5: =IF(DX5=1,DU5,IF(DX5="",DU5,"")) -> 1 | EE5: =IF(DX5=1,"("&DT5&")","("&DV5&")") -> (1)
A6: 2(2) | B6: Tobias Gneupel | C6: Sibbamåla | D6: 219.525 | F6: 40 | G6: 8781 | I6: 0 | J6: 0 | K6: 0 | L6: 0 | M6: 0 | N6: 217 | O6: 162 | P6: 224 | Q6: 169 | R6: 245 | S6: 266 | T6: 195 | U6: 220 | V6: 222 | W6: 245 | X6: 296 | Y6: 228 | Z6: 180 | AA6: 228 | AB6: 170 | AC6: 248 | AD6: 155 | AE6: 284 | AF6: 228 | AG6: 222 | AH6: 230 | AI6: 230 | AJ6: 223 | AK6: 209 | AL6: 195 | AM6: 211 | AN6: 284 | AO6: 242 | AP6: 289 | AQ6: 244 | AR6: 176 | AS6: 280 | AT6: 174 | AU6: 226 | AV6: 239 | AW6: 175 | AX6: 152 | AY6: 189 | AZ6: 191 | BA6: 218 | DT6: 2 | DU6: =IF(AND(D6=D5,D6=D4,D6=D3,D6=D2),ROW(1:1),IF(AND(D6=D5,D6=D4,D6=D3),ROW(1:1),IF(AND(D6=D5,D6=D4),ROW(1:1),IF(D6=D5,ROW(1:1),IF(D6>1,ROW(2:2),"-"))))) -> 2 | DV6: 2 | DX6: 1 | EB6: 16 | ED6: 2 | EE6: (2)
A7: 3(3) | B7: Kent Sundahl | C7: Carlskrona | D7: 210.7692308 | F7: 39 | G7: 8220 | I7: 0 | J7: 0 | K7: 0 | L7: 0 | M7: 0 | N7: 153 | O7: 157 | P7: 184 | Q7: 114 | R7: 161 | S7: 238 | T7: 311 | U7: 226 | V7: 268 | W7: 250 | X7: 173 | Y7: 201 | Z7: 256 | AA7: 194 | AB7: 186 | AC7: 242 | AD7: 239 | AE7: 208 | AF7: 230 | AG7: 187 | AH7: 193 | AI7: 204 | AJ7: 238 | AK7: 258 | AL7: 172 | AM7: 235 | AN7: 190 | AO7: 234 | AP7: 273 | AQ7: 182 | AR7: 235 | AS7: 184 | AT7: 162 | AU7: 212 | AV7: 235 | AW7: 206 | AX7: 202 | AY7: 241 | AZ7: 186 | DT7: 3 | DU7: =IF(AND(D7=D6,D7=D5,D7=D4,D7=D3),ROW(1:1),IF(AND(D7=D6,D7=D5,D7=D4),ROW(1:1),IF(AND(D7=D6,D7=D5),ROW(1:1),IF(D7=D6,ROW(2:2),IF(D7>1,ROW(3:3),"-"))))) -> 3 | DV7: 3 | DX7: 1 | EB7: 20 | ED7: 3 | EE7: (3)
A8: 4(4) | B8: Olle Ottosson | C8: Dynapac Södra | D8: 196.3809524 | F8: 42 | G8: 8248 | I8: 0 | J8: 0 | K8: 0 | L8: 0 | M8: 0 | N8: 159 | O8: 164 | P8: 205 | Q8: 189 | R8: 202 | S8: 118 | T8: 174 | U8: 255 | V8: 213 | W8: 199 | X8: 237 | Y8: 249 | Z8: 151 | AA8: 208 | AB8: 169 | AC8: 240 | AD8: 228 | AE8: 194 | AF8: 207 | AG8: 272 | AH8: 172 | AI8: 199 | AJ8: 237 | AK8: 197 | AL8: 179 | AM8: 242 | AN8: 198 | AO8: 213 | AP8: 217 | AQ8: 186 | AR8: 189 | AS8: 163 | AT8: 147 | AU8: 176 | AV8: 197 | AW8: 204 | AX8: 211 | AY8: 219 | AZ8: 146 | BA8: 174 | BB8: 162 | BC8: 187 | DT8: 4 | DU8: =IF(AND(D8=D7,D8=D6,D8=D5),ROW(1:1),IF(AND(D8=D7,D8=D6),ROW(2:2),IF(D8=D7,ROW(3:3),IF(D8>1,ROW(4:4),"-")))) -> 4 | DV8: 4 | DX8: 1 | EB8: 4 | ED8: 4 | EE8: (4)
A9: 5(5) | B9: Armin Sisic | C9: Värends Hsk | D9: 176.9 | F9: 20 | G9: 3538 | I9: 0 | J9: 0 | K9: 0 | L9: 0 | M9: 0 | N9: 104 | O9: 163 | P9: 164 | Q9: 189 | R9: 147 | S9: 198 | T9: 160 | U9: 208 | V9: 191 | W9: 262 | X9: 211 | Y9: 238 | Z9: 163 | AA9: 174 | AB9: 142 | AC9: 157 | AD9: 179 | AE9: 194 | AF9: 137 | AG9: 157 | DT9: 5 | DU9: =IF(D9>1,ROW(5:5),"-") -> 5 | DV9: 5 | DX9: 1 | EB9: 1 | ED9: 5 | EE9: (5)
A10: 6(6) | B10: Ingvar Eriksson | C10: Carlskrona | D10: 176.7948718 | F10: 39 | G10: 6895 | I10: 0 | J10: 0 | K10: 0 | L10: 0 | M10: 0 | N10: 191 | O10: 136 | P10: 191 | Q10: 148 | R10: 148 | S10: 178 | T10: 212 | U10: 245 | V10: 229 | W10: 182 | X10: 167 | Y10: 194 | Z10: 264 | AA10: 215 | AB10: 163 | AC10: 169 | AD10: 179 | AE10: 195 | AF10: 205 | AG10: 218 | AH10: 132 | AI10: 132 | AJ10: 111 | AK10: 188 | AL10: 189 | AM10: 171 | AN10: 111 | AO10: 174 | AP10: 185 | AQ10: 145 | AR10: 235 | AS10: 161 | AT10: 217 | AU10: 225 | AV10: 184 | AW10: 88 | AX10: 142 | AY10: 138 | AZ10: 138 | DT10: 6 | DU10: =IF(D10=D9,ROW(5:5),IF(D10>1,ROW(6:6),"-")) -> 6 | DV10: 6 | DX10: 1 | EB10: 2 | ED10: 6 | EE10: (6)
A11: 7(7) | B11: Gert Karlsson | C11: Korpen Åseda | D11: 171.7741935 | F11: 31 | G11: 5325 | I11: 0 | J11: 0 | K11: 0 | L11: 0 | M11: 0 | N11: 198 | O11: 215 | P11: 178 | Q11: 132 | R11: 142 | S11: 157 | T11: 117 | U11: 220 | V11: 136 | W11: 110 | X11: 191 | Y11: 181 | Z11: 157 | AA11: 149 | AB11: 276 | AC11: 286 | AD11: 153 | AE11: 210 | AF11: 192 | AG11: 225 | AH11: 141 | AI11: 161 | AJ11: 126 | AK11: 118 | AL11: 171 | AM11: 159 | AN11: 98 | AO11: 162 | AP11: 207 | AQ11: 171 | AR11: 186 | DT11: 7 | DU11: =IF(AND(D11=D10,D11=D9,D11=D8,D11=D7),ROW(3:3),IF(AND(D11=D10,D11=D9,D11=D8),ROW(4:4),IF(AND(D11=D10,D11=D9),ROW(5:5),IF(D11=D10,ROW(6:6),IF(D11>1,ROW(7:7),"-"))))) -> 7 | DV11: 7 | DX11: 1 | EB11: 5 | ED11: 7 | EE11: (7)
A12: 8(8) | B12: Johan Johansson | C12: Tingsryd | D12: 170.8684211 | F12: 38 | G12: 6493 | I12: 0 | J12: 0 | K12: 0 | L12: 0 | M12: 0 | N12: 172 | O12: 166 | P12: 185 | Q12: 117 | R12: 173 | S12: 161 | T12: 255 | U12: 141 | V12: 151 | W12: 113 | X12: 135 | Y12: 141 | Z12: 199 | AA12: 162 | AB12: 130 | AC12: 160 | AD12: 165 | AE12: 199 | AF12: 162 | AG12: 239 | AH12: 175 | AI12: 162 | AJ12: 181 | AK12: 221 | AL12: 181 | AM12: 169 | AN12: 198 | AO12: 164 | AP12: 180 | AQ12: 223 | AR12: 117 | AS12: 154 | AT12: 178 | AU12: 145 | AV12: 145 | AW12: 206 | AX12: 214 | AY12: 154 | DT12: 8 | DU12: 8 | DV12: 8 | DX12: 1 | EB12: 6 | ED12: 8 | EE12: (8)
A13: 9(9) | B13: Matz Karlsson | C13: Korpen Åseda | D13: 167.4358974 | F13: 39 | G13: 6530 | I13: 0 | J13: 0 | K13: 0 | L13: 0 | M13: 0 | N13: 196 | O13: 172 | P13: 174 | Q13: 210 | R13: 100 | S13: 182 | T13: 204 | U13: 193 | V13: 162 | W13: 175 | X13: 134 | Y13: 196 | Z13: 128 | AA13: 131 | AB13: 190 | AC13: 168 | AD13: 180 | AE13: 174 | AF13: 123 | AG13: 126 | AH13: 163 | AI13: 57 | AJ13: 147 | AK13: 159 | AL13: 265 | AM13: 189 | AN13: 219 | AO13: 126 | AP13: 231 | AQ13: 191 | AR13: 118 | AS13: 126 | AT13: 127 | AU13: 195 | AV13: 181 | AW13: 225 | AX13: 225 | AY13: 123 | AZ13: 145 | DT13: 9 | DU13: 9 | DV13: 9 | DX13: 1 | EB13: 8 | ED13: 9 | EE13: (9)
A14: 10(10) | B14: Magnus Israelsson | C14: Sibbamåla | D14: 165.6285714 | F14: 35 | G14: 5797 | I14: 0 | J14: 0 | K14: 0 | L14: 0 | M14: 0 | N14: 134 | O14: 174 | P14: 129 | Q14: 189 | R14: 134 | S14: 186 | T14: 209 | U14: 150 | V14: 118 | W14: 210 | X14: 125 | Y14: 119 | Z14: 112 | AA14: 156 | AB14: 201 | AC14: 139 | AD14: 153 | AE14: 111 | AF14: 192 | AG14: 176 | AH14: 170 | AI14: 203 | AJ14: 221 | AK14: 138 | AL14: 153 | AM14: 206 | AN14: 121 | AO14: 167 | AP14: 85 | AQ14: 172 | AR14: 247 | AS14: 179 | AT14: 196 | AU14: 190 | AV14: 232 | DT14: 10 | DU14: 10 | DV14: 10 | DX14: 1 | EB14: 12 | ED14: 10 | EE14: (10)
A15: 11(11) | B15: Anders Johansson | C15: Dynapac Södra | D15: 160.8333333 | F15: 24 | G15: 3860 | I15: 0 | J15: 0 | K15: 0 | L15: 0 | M15: 0 | N15: 180 | O15: 200 | P15: 171 | Q15: 179 | R15: 118 | S15: 134 | T15: 128 | U15: 166 | V15: 124 | W15: 135 | X15: 113 | Y15: 161 | Z15: 109 | AA15: 136 | AB15: 185 | AC15: 200 | AD15: 158 | AE15: 136 | AF15: 115 | AG15: 225 | AH15: 193 | AI15: 200 | AJ15: 232 | AK15: 162 | DT15: 11 | DU15: 11 | DV15: 11 | DX15: 1 | EB15: 15 | ED15: 11 | EE15: (11)
A16: 12(12) | B16: Lisbeth Nygaard-Karlsson | C16: Tingsryd | D16: 159.25 | F16: 40 | G16: 6370 | I16: 0 | J16: 0 | K16: 0 | L16: 0 | M16: 0 | N16: 95 | O16: 151 | P16: 162 | Q16: 130 | R16: 183 | S16: 162 | T16: 183 | U16: 151 | V16: 122 | W16: 128 | X16: 160 | Y16: 128 | Z16: 185 | AA16: 205 | AB16: 151 | AC16: 142 | AD16: 200 | AE16: 147 | AF16: 185 | AG16: 165 | AH16: 144 | AI16: 230 | AJ16: 132 | AK16: 116 | AL16: 110 | AM16: 183 | AN16: 189 | AO16: 180 | AP16: 152 | AQ16: 120 | AR16: 191 | AS16: 165 | AT16: 198 | AU16: 183 | AV16: 154 | AW16: 104 | AX16: 216 | AY16: 143 | AZ16: 120 | BA16: 205 | DT16: 12 | DU16: 12 | DV16: 12 | DX16: 1 | EB16: 21 | ED16: 12 | EE16: (12)
A17: 13(13) | B17: Fredrik Lundin | C17: Lanternan | D17: 158.4 | F17: 10 | G17: 1584 | I17: 0 | J17: 0 | K17: 0 | L17: 0 | M17: 0 | N17: 207 | O17: 245 | P17: 127 | Q17: 181 | R17: 144 | S17: 180 | T17: 152 | U17: 145 | V17: 77 | W17: 126 | DT17: 13 | DU17: 13 | DV17: 13 | DX17: 1 | EB17: 3 | ED17: 13 | EE17: (13)
A18: 14(14) | B18: Gebriela Kostantinos | C18: Korpen Åseda | D18: 156.5769231 | F18: 26 | G18: 4071 | I18: 0 | J18: 0 | K18: 0 | L18: 0 | M18: 0 | N18: 136 | O18: 151 | P18: 189 | Q18: 172 | R18: 131 | S18: 137 | T18: 171 | U18: 122 | V18: 133 | W18: 232 | X18: 202 | Y18: 172 | Z18: 174 | AA18: 165 | AB18: 169 | AC18: 188 | AD18: 128 | AE18: 167 | AF18: 98 | AG18: 132 | AH18: 115 | AI18: 91 | AJ18: 136 | AK18: 169 | AL18: 190 | AM18: 201 | DT18: 14 | DU18: 14 | DV18: 14 | DX18: 1 | EB18: 7 | ED18: 14 | EE18: (14)
A19: 15(15) | B19: Lasse Brincner | C19: Värends Hsk | D19: 152.5555556 | F19: 27 | G19: 4119 | I19: 0 | J19: 0 | K19: 0 | L19: 0 | M19: 0 | N19: 193 | O19: 134 | P19: 209 | Q19: 138 | R19: 204 | S19: 80 | T19: 132 | U19: 115 | V19: 102 | W19: 150 | X19: 216 | Y19: 179 | Z19: 102 | AA19: 207 | AB19: 147 | AC19: 146 | AD19: 197 | AE19: 102 | AF19: 122 | AG19: 193 | AH19: 113 | AI19: 153 | AJ19: 192 | AK19: 149 | AL19: 138 | AM19: 169 | AN19: 137 | DT19: 15 | DU19: 15 | DV19: 15 | DX19: 1 | EB19: 17 | ED19: 15 | EE19: (15)
A20: 16(16) | B20: Bo Petersson | C20: Korpen Nybro | D20: 151.5217391 | F20: 23 | G20: 3485 | I20: 0 | J20: 0 | K20: 0 | L20: 0 | M20: 0 | N20: 166 | O20: 169 | P20: 228 | Q20: 179 | R20: 162 | S20: 128 | T20: 161 | U20: 171 | V20: 128 | W20: 108 | X20: 138 | Y20: 166 | Z20: 115 | AA20: 180 | AB20: 227 | AC20: 124 | AD20: 128 | AE20: 182 | AF20: 92 | AG20: 123 | AH20: 133 | AI20: 191 | AJ20: 86 | DT20: 16 | DU20: 16 | DV20: 16 | DX20: 1 | EB20: 18 | ED20: 16 | EE20: (16)
A21: 17(17) | B21: Tomas Lindahl | C21: Korpen Åseda | D21: 151.3888889 | F21: 36 | G21: 5450 | I21: 0 | J21: 0 | K21: 0 | L21: 0 | M21: 0 | N21: 177 | O21: 144 | P21: 91 | Q21: 178 | R21: 207 | S21: 177 | T21: 119 | U21: 93 | V21: 91 | W21: 224 | X21: 171 | Y21: 164 | Z21: 178 | AA21: 90 | AB21: 185 | AC21: 101 | AD21: 184 | AE21: 155 | AF21: 179 | AG21: 189 | AH21: 113 | AI21: 185 | AJ21: 153 | AK21: 163 | AL21: 101 | AM21: 158 | AN21: 177 | AO21: 131 | AP21: 162 | AQ21: 121 | AR21: 134 | AS21: 117 | AT21: 203 | AU21: 129 | AV21: 155 | AW21: 151 | DT21: 17 | DU21: 17 | DV21: 17 | DX21: 1 | EB21: 24 | ED21: 17 | EE21: (17)
A22: 18(18) | B22: Maj-Britt Jarl | C22: Växjö | D22: 149.7142857 | F22: 35 | G22: 5240 | I22: 0 | J22: 0 | K22: 0 | L22: 0 | M22: 0 | N22: 146 | O22: 149 | P22: 138 | Q22: 131 | R22: 112 | S22: 113 | T22: 162 | U22: 153 | V22: 142 | W22: 128 | X22: 178 | Y22: 187 | Z22: 154 | AA22: 95 | AB22: 154 | AC22: 205 | AD22: 133 | AE22: 74 | AF22: 105 | AG22: 208 | AH22: 195 | AI22: 171 | AJ22: 145 | AK22: 162 | AL22: 115 | AM22: 138 | AN22: 130 | AO22: 130 | AP22: 82 | AQ22: 192 | AR22: 108 | AS22: 216 | AT22: 230 | AU22: 166 | AV22: 193 | DT22: 18 | DU22: 18 | DV22: 18 | DX22: 1 | EB22: 9 | ED22: 18 | EE22: (18)
A23: 19(19) | B23: Roy Dahlén | C23: Dynapac Södra | D23: 146.7777778 | F23: 18 | G23: 2642 | I23: 0 | J23: 0 | K23: 0 | L23: 0 | M23: 0 | N23: 142 | O23: 136 | P23: 192 | Q23: 108 | R23: 130 | S23: 86 | T23: 112 | U23: 175 | V23: 136 | W23: 168 | X23: 54 | Y23: 148 | Z23: 169 | AA23: 184 | AB23: 207 | AC23: 154 | AD23: 140 | AE23: 201 | DT23: 19 | DU23: 19 | DV23: 19 | DX23: 1 | EB23: 10 | ED23: 19 | EE23: (19)
A24: 20(20) | B24: Mattias Gneupel | C24: Sibbamåla | D24: 142.1351351 | F24: 37 | G24: 5259 | I24: 0 | J24: 0 | K24: 0 | L24: 0 | M24: 0 | N24: 82 | O24: 191 | P24: 165 | Q24: 148 | R24: 135 | S24: 151 | T24: 158 | U24: 82 | V24: 129 | W24: 219 | X24: 107 | Y24: 193 | Z24: 142 | AA24: 195 | AB24: 123 | AC24: 198 | AD24: 144 | AE24: 125 | AF24: 151 | AG24: 88 | AH24: 166 | AI24: 86 | AJ24: 106 | AK24: 162 | AL24: 174 | AM24: 159 | AN24: 119 | AO24: 164 | AP24: 120 | AQ24: 188 | AR24: 136 | AS24: 101 | AT24: 135 | AU24: 135 | AV24: 106 | AW24: 138 | AX24: 138 | DT24: 20 | DU24: 20 | DV24: 20 | DX24: 1 | EB24: 22 | ED24: 20 | EE24: (20)
A25: 21(21) | B25: Christian Balsiger | C25: Värends Hsk | D25: 134.44 | F25: 25 | G25: 3361 | I25: 0 | J25: 0 | K25: 0 | L25: 0 | M25: 0 | N25: 107 | O25: 93 | P25: 111 | Q25: 100 | R25: 141 | S25: 125 | T25: 141 | U25: 90 | V25: 93 | W25: 131 | X25: 175 | Y25: 124 | Z25: 114 | AA25: 115 | AB25: 186 | AC25: 98 | AD25: 111 | AE25: 144 | AF25: 175 | AG25: 113 | AH25: 256 | AI25: 192 | AJ25: 175 | AK25: 100 | AL25: 151 | DT25: 21 | DU25: 21 | DV25: 21 | DX25: 1 | EB25: 14 | ED25: 21 | EE25: (21)
A26: 22(22) | B26: Joel Sundahl | C26: Carlskrona | D26: 133.0294118 | F26: 34 | G26: 4523 | I26: 0 | J26: 0 | K26: 0 | L26: 0 | M26: 0 | N26: 119 | O26: 102 | P26: 180 | Q26: 162 | R26: 78 | S26: 117 | T26: 128 | U26: 179 | V26: 135 | W26: 93 | X26: 150 | Y26: 115 | Z26: 143 | AA26: 80 | AB26: 95 | AC26: 172 | AD26: 146 | AE26: 100 | AF26: 122 | AG26: 126 | AH26: 89 | AI26: 149 | AJ26: 163 | AK26: 110 | AL26: 123 | AM26: 68 | AN26: 161 | AO26: 98 | AP26: 179 | AQ26: 215 | AR26: 163 | AS26: 183 | AT26: 84 | AU26: 196 | DT26: 22 | DU26: 22 | DV26: 22 | DX26: 1 | EB26: 13 | ED26: 22 | EE26: (22)
A27: 23(23) | B27: Ewa Malmqvist | C27: Jämjö Hsc | D27: 132.5769231 | F27: 26 | G27: 3447 | I27: 0 | J27: 0 | K27: 0 | L27: 0 | M27: 0 | N27: 94 | O27: 115 | P27: 153 | Q27: 171 | R27: 150 | S27: 133 | T27: 54 | U27: 104 | V27: 109 | W27: 170 | X27: 159 | Y27: 140 | Z27: 135 | AA27: 148 | AB27: 145 | AC27: 161 | AD27: 74 | AE27: 132 | AF27: 86 | AG27: 141 | AH27: 154 | AI27: 222 | AJ27: 172 | AK27: 111 | AL27: 72 | AM27: 142 | DT27: 23 | DU27: 23 | DV27: 23 | DX27: 1 | EB27: 19 | ED27: 23 | EE27: (23)
A28: =DU28&EE28 -> 24(24) | B28: Göran Mårtensson | C28: Jämjö Hsc | D28: 131.3 | F28: 10 | G28: 1313 | I28: 0 | J28: 0 | K28: 0 | L28: 0 | M28: 0 | N28: 98 | O28: 116 | P28: 131 | Q28: 97 | R28: 122 | S28: 175 | T28: 166 | U28: 151 | V28: 130 | W28: 127 | DT28: 24 | DU28: =IF(AND(D28=D27,D28=D26,D28=D25,D28=D24),ROW(20:20),IF(AND(D28=D27,D28=D26,D28=D25),ROW(21:21),IF(AND(D28=D27,D28=D26),ROW(22:22),IF(D28=D27,ROW(23:23),IF(D28>1,ROW(24:24),"-"))))) -> 24 | DV28: =IF(DX28=1,ROW(24:24),"-") -> 24 | DX28: 1 | EB28: 28 | ED28: =IF(DX28=1,DU28,IF(DX28="",DU28,"")) -> 24 | EE28: =IF(DX28=1,"("&DT28&")","("&DV28&")") -> (24)
A29: =DU29&EE29 -> 25(25) | B29: Stefan Olofsson | C29: Korpen Nybro | D29: 129.5454545 | F29: 11 | G29: 1425 | I29: 0 | J29: 0 | K29: 0 | L29: 0 | M29: 0 | N29: 135 | O29: 108 | P29: 107 | Q29: 126 | R29: 153 | S29: 182 | T29: 118 | U29: 141 | V29: 139 | W29: 124 | X29: 92 | DT29: 25 | DU29: =IF(AND(D29=D28,D29=D27,D29=D26,D29=D25),ROW(21:21),IF(AND(D29=D28,D29=D27,D29=D26),ROW(22:22),IF(AND(D29=D28,D29=D27),ROW(23:23),IF(D29=D28,ROW(24:24),IF(D29>1,ROW(25:25),"-"))))) -> 25 | DV29: =IF(DX29=1,ROW(25:25),"-") -> 25 | DX29: 1 | EB29: 23 | ED29: =IF(DX29=1,DU29,IF(DX29="",DU29,"")) -> 25 | EE29: =IF(DX29=1,"("&DT29&")","("&DV29&")") -> (25)
A30: =DU30&EE30 -> 26(26) | B30: Leif Sundahl | C30: Carlskrona | D30: 129.4571429 | F30: 35 | G30: 4531 | I30: 0 | J30: 0 | K30: 0 | L30: 0 | M30: 0 | N30: 108 | O30: 125 | P30: 112 | Q30: 100 | R30: 124 | S30: 100 | T30: 95 | U30: 137 | V30: 135 | W30: 161 | X30: 89 | Y30: 120 | Z30: 131 | AA30: 132 | AB30: 134 | AC30: 104 | AD30: 140 | AE30: 98 | AF30: 121 | AG30: 115 | AH30: 149 | AI30: 95 | AJ30: 167 | AK30: 151 | AL30: 132 | AM30: 142 | AN30: 126 | AO30: 180 | AP30: 127 | AQ30: 152 | AR30: 146 | AS30: 149 | AT30: 121 | AU30: 161 | AV30: 152 | DT30: 26 | DU30: =IF(AND(D30=D29,D30=D28,D30=D27,D30=D26),ROW(22:22),IF(AND(D30=D29,D30=D28,D30=D27),ROW(23:23),IF(AND(D30=D29,D30=D28),ROW(24:24),IF(D30=D29,ROW(25:25),IF(D30>1,ROW(26:26),"-"))))) -> 26 | DV30: =IF(DX30=1,ROW(26:26),"-") -> 26 | DX30: 1 | EB30: 25 | ED30: =IF(DX30=1,DU30,IF(DX30="",DU30,"")) -> 26 | EE30: =IF(DX30=1,"("&DT30&")","("&DV30&")") -> (26)
A31: =DU31&EE31 -> 27(27) | B31: Stefan Tollstam | C31: Dynapac Södra | D31: 129.2222222 | F31: 9 | G31: 1163 | I31: 0 | J31: 0 | K31: 0 | L31: 0 | M31: 0 | N31: 173 | O31: 138 | P31: 155 | Q31: 96 | R31: 94 | S31: 123 | T31: 97 | U31: 118 | V31: 169 | DT31: 27 | DU31: =IF(AND(D31=D30,D31=D29,D31=D28,D31=D27),ROW(23:23),IF(AND(D31=D30,D31=D29,D31=D28),ROW(24:24),IF(AND(D31=D30,D31=D29),ROW(25:25),IF(D31=D30,ROW(26:26),IF(D31>1,ROW(27:27),"-"))))) -> 27 | DV31: =IF(DX31=1,ROW(27:27),"-") -> 27 | DX31: 1 | EB31: 26 | ED31: =IF(DX31=1,DU31,IF(DX31="",DU31,"")) -> 27 | EE31: =IF(DX31=1,"("&DT31&")","("&DV31&")") -> (27)
A32: =DU32&EE32 -> 28(28) | B32: Lukas Bern | C32: Dynapac Södra | D32: 127.4117647 | F32: 17 | G32: 2166 | I32: 0 | J32: 0 | K32: 0 | L32: 0 | M32: 0 | N32: 128 | O32: 127 | P32: 148 | Q32: 223 | R32: 118 | S32: 84 | T32: 145 | U32: 111 | V32: 117 | W32: 107 | X32: 65 | Y32: 97 | Z32: 85 | AA32: 150 | AB32: 147 | AC32: 150 | AD32: 164 | DT32: 28 | DU32: =IF(AND(D32=D31,D32=D30,D32=D29,D32=D28),ROW(24:24),IF(AND(D32=D31,D32=D30,D32=D29),ROW(25:25),IF(AND(D32=D31,D32=D30),ROW(26:26),IF(D32=D31,ROW(27:27),IF(D32>1,ROW(28:28),"-"))))) -> 28 | DV32: =IF(DX32=1,ROW(28:28),"-") -> 28 | DX32: 1 | EB32: 27 | ED32: =IF(DX32=1,DU32,IF(DX32="",DU32,"")) -> 28 | EE32: =IF(DX32=1,"("&DT32&")","("&DV32&")") -> (28)
A33: 29(29) | B33: Anita Fabbeke | C33: Dynapac Södra | D33: 127.1578947 | F33: 38 | G33: 4832 | I33: 0 | J33: 0 | K33: 0 | L33: 0 | M33: 0 | N33: 122 | O33: 92 | P33: 73 | Q33: 88 | R33: 119 | S33: 128 | T33: 155 | U33: 102 | V33: 132 | W33: 126 | X33: 135 | Y33: 120 | Z33: 99 | AA33: 99 | AB33: 151 | AC33: 124 | AD33: 122 | AE33: 186 | AF33: 178 | AG33: 125 | AH33: 132 | AI33: 146 | AJ33: 159 | AK33: 152 | AL33: 105 | AM33: 137 | AN33: 77 | AO33: 191 | AP33: 116 | AQ33: 116 | AR33: 134 | AS33: 104 | AT33: 134 | AU33: 110 | AV33: 148 | AW33: 143 | AX33: 125 | AY33: 127 | DT33: 29 | DU33: 29 | DV33: 29 | DX33: 1 | EB33: 29 | ED33: 29 | EE33: (29)
A34: 30(30) | B34: Bernt Olsson | C34: Jämjö Hsc | D34: 126.5454545 | F34: 22 | G34: 2784 | I34: 0 | J34: 0 | K34: 0 | L34: 0 | M34: 0 | N34: 114 | O34: 101 | P34: 131 | Q34: 81 | R34: 135 | S34: 140 | T34: 115 | U34: 97 | V34: 144 | W34: 164 | X34: 155 | Y34: 98 | Z34: 105 | AA34: 92 | AB34: 172 | AC34: 108 | AD34: 108 | AE34: 179 | AF34: 167 | AG34: 139 | AH34: 106 | AI34: 133 | DT34: 30 | DU34: 30 | DV34: 30 | DX34: 1 | EB34: 30 | ED34: 30 | EE34: (30)
A35: 31(31) | B35: Peter Olsson | C35: Dynapac Södra | D35: 125.7619048 | F35: 21 | G35: 2641 | I35: 0 | J35: 0 | K35: 0 | L35: 0 | M35: 0 | N35: 104 | O35: 168 | P35: 152 | Q35: 70 | R35: 130 | S35: 149 | T35: 123 | U35: 147 | V35: 138 | W35: 106 | X35: 213 | Y35: 134 | Z35: 108 | AA35: 128 | AB35: 88 | AC35: 50 | AD35: 70 | AE35: 200 | AF35: 103 | AG35: 134 | AH35: 126 | DT35: 31 | DU35: 31 | DV35: 31 | DX35: 1 | EB35: 31 | ED35: 31 | EE35: (31)
A36: 32(32) | B36: Maire Johansson | C36: Växjö | D36: 125.76 | F36: 25 | G36: 3144 | I36: 0 | J36: 0 | K36: 0 | L36: 0 | M36: 0 | N36: 85 | O36: 84 | P36: 118 | Q36: 121 | R36: 41 | S36: 162 | T36: 187 | U36: 156 | V36: 182 | W36: 108 | X36: 116 | Y36: 144 | Z36: 182 | AA36: 72 | AB36: 162 | AC36: 73 | AD36: 101 | AE36: 126 | AF36: 116 | AG36: 90 | AH36: 139 | AI36: 168 | AJ36: 137 | AK36: 110 | AL36: 164 | DT36: 32 | DU36: 32 | DV36: 32 | DX36: 1 | EB36: 32 | ED36: 32 | EE36: (32)
A37: =DU37&EE37 -> 33(33) | B37: Carina Gneupel | C37: Sibbamåla | D37: =IF(F37>0.5,(G37/F37),0) -> 125.7142857 | F37: =COUNT(N37:BO37) -> 21 | G37: =SUM(N37:BO37) -> 2640 | I37: =COUNTIF(BQ37:DR37,2) -> 0 | J37: =COUNTIF(BQ37:DR37,-2) -> 0 | K37: =COUNTIF(BQ37:DR37,1) -> 0 | L37: =COUNTIF(BQ37:DR37,-1) -> 0 | M37: =IF(F37>0,(I37+K37)/(F37),0) -> 0 | N37: 141 | O37: 112 | P37: 129 | Q37: 143 | R37: 131 | S37: 163 | T37: 108 | U37: 111 | V37: 119 | W37: 72 | X37: 142 | Y37: 128 | Z37: 167 | AA37: 122 | AB37: 146 | AC37: 126 | AD37: 104 | AE37: 165 | AF37: 109 | AG37: 122 | AH37: 80 | DT37: 33 | DU37: 33 | DV37: =IF(DX37=1,ROW(33:33),"-") -> 33 | DX37: 1 | EB37: 33 | ED37: =IF(DX37=1,DU37,IF(DX37="",DU37,"")) -> 33 | EE37: =IF(DX37=1,"("&DT37&")","("&DV37&")") -> (33)
A38: 34(34) | B38: Lennart Karlsson | C38: Tingsryd | D38: 124.3030303 | F38: 33 | G38: 4102 | I38: 0 | J38: 0 | K38: 0 | L38: 0 | M38: 0 | N38: 148 | O38: 126 | P38: 106 | Q38: 129 | R38: 105 | S38: 128 | T38: 118 | U38: 84 | V38: 101 | W38: 111 | X38: 95 | Y38: 92 | Z38: 115 | AA38: 121 | AB38: 122 | AC38: 151 | AD38: 165 | AE38: 93 | AF38: 171 | AG38: 138 | AH38: 75 | AI38: 147 | AJ38: 162 | AK38: 123 | AL38: 108 | AM38: 96 | AN38: 78 | AO38: 117 | AP38: 144 | AQ38: 191 | AR38: 112 | AS38: 192 | AT38: 138 | DT38: 34 | DU38: 34 | DV38: 34 | DX38: 1 | EB38: 34 | ED38: 34 | EE38: (34)
A39: 35(35) | B39: Göran Olofsson | C39: Korpen Nybro | D39: 123.5333333 | F39: 30 | G39: 3706 | I39: 0 | J39: 0 | K39: 0 | L39: 0 | M39: 0 | N39: 149 | O39: 54 | P39: 143 | Q39: 140 | R39: 151 | S39: 139 | T39: 165 | U39: 159 | V39: 92 | W39: 65 | X39: 55 | Y39: 109 | Z39: 106 | AA39: 102 | AB39: 141 | AC39: 142 | AD39: 86 | AE39: 90 | AF39: 107 | AG39: 110 | AH39: 139 | AI39: 124 | AJ39: 81 | AK39: 207 | AL39: 95 | AM39: 185 | AN39: 128 | AO39: 168 | AP39: 142 | AQ39: 132 | DT39: 35 | DU39: 35 | DV39: 35 | DX39: 1 | EB39: 35 | ED39: 35 | EE39: (35)
A40: 36(36) | B40: Mattias Olsson | C40: Dynapac Södra | D40: 120.4285714 | F40: 7 | G40: 843 | I40: 0 | J40: 0 | K40: 0 | L40: 0 | M40: 0 | N40: 94 | O40: 144 | P40: 124 | Q40: 132 | R40: 45 | S40: 176 | T40: 128 | DT40: 36 | DU40: 36 | DV40: 36 | DX40: 1 | EB40: 36 | ED40: 36 | EE40: (36)
A41: 37(37) | B41: Leo Andersson | C41: Carlskrona | D41: 119.25 | F41: 8 | G41: 954 | I41: 0 | J41: 0 | K41: 0 | L41: 0 | M41: 0 | N41: 56 | O41: 90 | P41: 77 | Q41: 162 | R41: 148 | S41: 144 | T41: 109 | U41: 168 | DT41: 37 | DU41: 37 | DV41: 37 | DX41: 1 | EB41: 37 | ED41: 37 | EE41: (37)
A42: 38(38) | B42: Kjell Rydh | C42: Korpen Nybro | D42: 119.24 | F42: 25 | G42: 2981 | I42: 0 | J42: 0 | K42: 0 | L42: 0 | M42: 0 | N42: 158 | O42: 141 | P42: 75 | Q42: 100 | R42: 87 | S42: 92 | T42: 64 | U42: 121 | V42: 122 | W42: 105 | X42: 115 | Y42: 92 | Z42: 151 | AA42: 144 | AB42: 75 | AC42: 83 | AD42: 143 | AE42: 120 | AF42: 116 | AG42: 179 | AH42: 157 | AI42: 198 | AJ42: 146 | AK42: 112 | AL42: 85 | DT42: 38 | DU42: 38 | DV42: 38 | DX42: 1 | EB42: 38 | ED42: 38 | EE42: (38)
A43: 39(39) | B43: Jan Petersson | C43: Lanternan | D43: 119.2307692 | F43: 13 | G43: 1550 | I43: 0 | J43: 0 | K43: 0 | L43: 0 | M43: 0 | N43: 98 | O43: 116 | P43: 102 | Q43: 142 | R43: 102 | S43: 87 | T43: 136 | U43: 101 | V43: 175 | W43: 147 | X43: 123 | Y43: 112 | Z43: 109 | DT43: 39 | DU43: =IF(AND(D43=D42,D43=D41,D43=D40,D43=D39),ROW(35:35),IF(AND(D43=D42,D43=D41,D43=D40),ROW(36:36),IF(AND(D43=D42,D43=D41),ROW(37:37),IF(D43=D42,ROW(38:38),IF(D43>1,ROW(39:39),"-"))))) -> 39 | DV43: 39 | DX43: 1 | EB43: 39 | ED43: 39 | EE43: (39)
A44: 40(40) | B44: Ronny Lundberg | C44: Lanternan | D44: 119.0416667 | F44: 24 | G44: 2857 | I44: 0 | J44: 0 | K44: 0 | L44: 0 | M44: 0 | N44: 85 | O44: 104 | P44: 132 | Q44: 123 | R44: 144 | S44: 101 | T44: 104 | U44: 102 | V44: 137 | W44: 83 | X44: 130 | Y44: 145 | Z44: 117 | AA44: 113 | AB44: 68 | AC44: 98 | AD44: 131 | AE44: 133 | AF44: 136 | AG44: 88 | AH44: 133 | AI44: 119 | AJ44: 171 | AK44: 160 | DT44: 40 | DU44: 40 | DV44: 40 | DX44: 1 | EB44: 40 | ED44: 40 | EE44: (40)
A45: 41(41) | B45: Bengt Fabbeke | C45: Dynapac Södra | D45: 118.9705882 | F45: 34 | G45: 4045 | I45: 0 | J45: 0 | K45: 0 | L45: 0 | M45: 0 | N45: 170 | O45: 139 | P45: 109 | Q45: 46 | R45: 89 | S45: 125 | T45: 115 | U45: 143 | V45: 145 | W45: 110 | X45: 78 | Y45: 128 | Z45: 95 | AA45: 85 | AB45: 146 | AC45: 126 | AD45: 84 | AE45: 176 | AF45: 119 | AG45: 82 | AH45: 134 | AI45: 145 | AJ45: 112 | AK45: 173 | AL45: 143 | AM45: 91 | AN45: 135 | AO45: 108 | AP45: 123 | AQ45: 136 | AR45: 129 | AS45: 123 | AT45: 112 | AU45: 71 | DT45: 41 | DU45: 41 | DV45: 41 | DX45: 1 | EB45: 41 | ED45: 41 | EE45: (41)
A46: 42(42) | B46: Bela Bodi | C46: Växjö | D46: 117.9354839 | F46: 31 | G46: 3656 | I46: 0 | J46: 0 | K46: 0 | L46: 0 | M46: 0 | N46: 95 | O46: 107 | P46: 69 | Q46: 143 | R46: 98 | S46: 87 | T46: 93 | U46: 100 | V46: 119 | W46: 130 | X46: 143 | Y46: 158 | Z46: 124 | AA46: 67 | AB46: 78 | AC46: 142 | AD46: 141 | AE46: 176 | AF46: 108 | AG46: 142 | AH46: 127 | AI46: 113 | AJ46: 106 | AK46: 122 | AL46: 122 | AM46: 123 | AN46: 147 | AO46: 114 | AP46: 138 | AQ46: 154 | AR46: 70 | DT46: 42 | DU46: 42 | DV46: 42 | DX46: 1 | EB46: 42 | ED46: 42 | EE46: (42)
A47: 43(43) | B47: Ingegerd Pettersson | C47: Lanternan | D47: 117.1666667 | F47: 18 | G47: 2109 | I47: 0 | J47: 0 | K47: 0 | L47: 0 | M47: 0 | N47: 83 | O47: 132 | P47: 175 | Q47: 83 | R47: 144 | S47: 134 | T47: 84 | U47: 156 | V47: 76 | W47: 116 | X47: 115 | Y47: 162 | Z47: 102 | AA47: 124 | AB47: 92 | AC47: 106 | AD47: 95 | AE47: 130 | DT47: 43 | DU47: 43 | DV47: 43 | DX47: 1 | EB47: 43 | ED47: 43 | EE47: (43)
A48: 44(44) | B48: Bengt Andersson | C48: Växjö | D48: 116.1428571 | F48: 14 | G48: 1626 | I48: 0 | J48: 0 | K48: 0 | L48: 0 | M48: 0 | N48: 95 | O48: 69 | P48: 61 | Q48: 117 | R48: 128 | S48: 133 | T48: 135 | U48: 89 | V48: 98 | W48: 217 | X48: 117 | Y48: 110 | Z48: 118 | AA48: 139 | DT48: 44 | DU48: 44 | DV48: 44 | DX48: 1 | EB48: 52 | ED48: 44 | EE48: (44)
A49: 45(45) | B49: Hans Johansson | C49: Tingsryd | D49: 115.4705882 | F49: 34 | G49: 3926 | I49: 0 | J49: 0 | K49: 0 | L49: 0 | M49: 0 | N49: 89 | O49: 141 | P49: 85 | Q49: 106 | R49: 85 | S49: 95 | T49: 139 | U49: 127 | V49: 121 | W49: 102 | X49: 133 | Y49: 68 | Z49: 81 | AA49: 113 | AB49: 87 | AC49: 132 | AD49: 130 | AE49: 153 | AF49: 134 | AG49: 132 | AH49: 121 | AI49: 92 | AJ49: 126 | AK49: 111 | AL49: 81 | AM49: 146 | AN49: 121 | AO49: 106 | AP49: 171 | AQ49: 123 | AR49: 157 | AS49: 106 | AT49: 103 | AU49: 109 | DT49: 45 | DU49: 45 | DV49: 45 | DX49: 1 | EB49: 44 | ED49: 45 | EE49: (45)
A50: 46(46) | B50: Berndt Petersson | C50: Lanternan | D50: 114.2173913 | F50: 23 | G50: 2627 | I50: 0 | J50: 0 | K50: 0 | L50: 0 | M50: 0 | N50: 91 | O50: 89 | P50: 86 | Q50: 81 | R50: 41 | S50: 68 | T50: 107 | U50: 130 | V50: 80 | W50: 138 | X50: 106 | Y50: 125 | Z50: 120 | AA50: 135 | AB50: 116 | AC50: 79 | AD50: 197 | AE50: 128 | AF50: 170 | AG50: 95 | AH50: 124 | AI50: 159 | AJ50: 162 | DT50: 46 | DU50: 46 | DV50: 46 | DX50: 1 | EB50: 45 | ED50: 46 | EE50: (46)
A51: 47(47) | B51: Nils-Åke Hansson | C51: Korpen Nybro | D51: 114.1052632 | F51: 19 | G51: 2168 | I51: 0 | J51: 0 | K51: 0 | L51: 0 | M51: 0 | N51: 125 | O51: 78 | P51: 132 | Q51: 126 | R51: 81 | S51: 126 | T51: 129 | U51: 110 | V51: 105 | W51: 103 | X51: 172 | Y51: 115 | Z51: 128 | AA51: 112 | AB51: 214 | AC51: 65 | AD51: 85 | AE51: 92 | AF51: 70 | DT51: 47 | DU51: 47 | DV51: 47 | DX51: 1 | EB51: 46 | ED51: 47 | EE51: (47)
A52: 48(48) | B52: Alf Svensson | C52: Korpen Åseda | D52: 112.6666667 | F52: 12 | G52: 1352 | I52: 0 | J52: 0 | K52: 0 | L52: 0 | M52: 0 | N52: 116 | O52: 77 | P52: 120 | Q52: 136 | R52: 104 | S52: 50 | T52: 126 | U52: 84 | V52: 161 | W52: 105 | X52: 166 | Y52: 107 | DT52: 48 | DU52: 48 | DV52: 48 | DX52: 1 | EB52: 47 | ED52: 48 | EE52: (48)
A53: 49(49) | B53: Rune Karlsson | C53: Korpen Nybro | D53: 112.1428571 | F53: 7 | G53: 785 | I53: 0 | J53: 0 | K53: 0 | L53: 0 | M53: 0 | N53: 172 | O53: 123 | P53: 143 | Q53: 108 | R53: 42 | S53: 83 | T53: 114 | DT53: 49 | DU53: 49 | DV53: 49 | DX53: 1 | EB53: 48 | ED53: 49 | EE53: (49)
A54: 50(50) | B54: Christer Blomgren | C54: Lanternan | D54: 110.0967742 | F54: 31 | G54: 3413 | I54: 0 | J54: 0 | K54: 0 | L54: 0 | M54: 0 | N54: 99 | O54: 108 | P54: 78 | Q54: 67 | R54: 126 | S54: 116 | T54: 166 | U54: 133 | V54: 138 | W54: 154 | X54: 149 | Y54: 79 | Z54: 104 | AA54: 106 | AB54: 98 | AC54: 102 | AD54: 111 | AE54: 102 | AF54: 90 | AG54: 105 | AH54: 159 | AI54: 134 | AJ54: 102 | AK54: 119 | AL54: 123 | AM54: 101 | AN54: 68 | AO54: 83 | AP54: 110 | AQ54: 86 | AR54: 97 | DT54: 50 | DU54: 50 | DV54: 50 | DX54: 1 | EB54: 49 | ED54: 50 | EE54: (50)
A55: 51(51) | B55: Sune Ohlsson | C55: Korpen Nybro | D55: 109.5 | F55: 22 | G55: 2409 | I55: 0 | J55: 0 | K55: 0 | L55: 0 | M55: 0 | N55: 61 | O55: 83 | P55: 66 | Q55: 79 | R55: 148 | S55: 134 | T55: 112 | U55: 172 | V55: 87 | W55: 146 | X55: 111 | Y55: 142 | Z55: 103 | AA55: 111 | AB55: 115 | AC55: 103 | AD55: 50 | AE55: 96 | AF55: 136 | AG55: 95 | AH55: 144 | AI55: 115 | DT55: 51 | DU55: 51 | DV55: 51 | DX55: 1 | EB55: 50 | ED55: 51 | EE55: (51)
A56: 52(52) | B56: Dan Hallstan | C56: Växjö | D56: 108.76 | F56: 25 | G56: 2719 | I56: 0 | J56: 0 | K56: 0 | L56: 0 | M56: 0 | N56: 89 | O56: 99 | P56: 63 | Q56: 103 | R56: 87 | S56: 106 | T56: 51 | U56: 125 | V56: 136 | W56: 133 | X56: 105 | Y56: 105 | Z56: 157 | AA56: 49 | AB56: 174 | AC56: 54 | AD56: 157 | AE56: 162 | AF56: 115 | AG56: 156 | AH56: 101 | AI56: 120 | AJ56: 113 | AK56: 71 | AL56: 88 | DT56: 52 | DU56: 52 | DV56: 52 | DX56: 1 | EB56: 51 | ED56: 52 | EE56: (52)
A57: 53(53) | B57: Clara Larsson | C57: Värends Hsk | D57: 101.9444444 | F57: 18 | G57: 1835 | I57: 0 | J57: 0 | K57: 0 | L57: 0 | M57: 0 | N57: 48 | O57: 93 | P57: 127 | Q57: 111 | R57: 88 | S57: 131 | T57: 78 | U57: 97 | V57: 98 | W57: 94 | X57: 67 | Y57: 76 | Z57: 110 | AA57: 109 | AB57: 135 | AC57: 108 | AD57: 113 | AE57: 152 | DT57: 53 | DU57: 53 | DV57: 53 | DX57: 1 | EB57: 53 | ED57: 53 | EE57: (53)
A58: 54(54) | B58: Gilbert Pettersson | C58: Lanternan | D58: 101.0666667 | F58: 15 | G58: 1516 | I58: 0 | J58: 0 | K58: 0 | L58: 0 | M58: 0 | N58: 112 | O58: 72 | P58: 85 | Q58: 79 | R58: 84 | S58: 99 | T58: 125 | U58: 133 | V58: 143 | W58: 132 | X58: 66 | Y58: 116 | Z58: 102 | AA58: 66 | AB58: 102 | DT58: 54 | DU58: 54 | DV58: 54 | DX58: 1 | EB58: 109 | ED58: 54 | EE58: (54)
A59: 55(55) | B59: Olle Nilsson | C59: Tingsryd | D59: 100.9047619 | F59: 21 | G59: 2119 | I59: 0 | J59: 0 | K59: 0 | L59: 0 | M59: 0 | N59: 64 | O59: 102 | P59: 101 | Q59: 156 | R59: 71 | S59: 115 | T59: 119 | U59: 90 | V59: 89 | W59: 136 | X59: 78 | Y59: 118 | Z59: 108 | AA59: 143 | AB59: 88 | AC59: 64 | AD59: 116 | AE59: 98 | AF59: 83 | AG59: 106 | AH59: 74 | DT59: 55 | DU59: 55 | DV59: 55 | DX59: 1 | EB59: 54 | ED59: 55 | EE59: (55)
A60: 56(56) | B60: Mikael Bodi | C60: Växjö | D60: 100.8235294 | F60: 34 | G60: 3428 | I60: 0 | J60: 0 | K60: 0 | L60: 0 | M60: 0 | N60: 91 | O60: 67 | P60: 87 | Q60: 122 | R60: 139 | S60: 54 | T60: 88 | U60: 120 | V60: 90 | W60: 46 | X60: 107 | Y60: 148 | Z60: 94 | AA60: 81 | AB60: 59 | AC60: 78 | AD60: 104 | AE60: 177 | AF60: 135 | AG60: 118 | AH60: 133 | AI60: 125 | AJ60: 158 | AK60: 103 | AL60: 68 | AM60: 101 | AN60: 53 | AO60: 59 | AP60: 74 | AQ60: 112 | AR60: 76 | AS60: 114 | AT60: 139 | AU60: 108 | DT60: 56 | DU60: 56 | DV60: 56 | DX60: 1 | EB60: 55 | ED60: 56 | EE60: (56)
A61: 57(57) | B61: Thomas Dahl | C61: Växjö | D61: 100.5384615 | F61: 26 | G61: 2614 | I61: 0 | J61: 0 | K61: 0 | L61: 0 | M61: 0 | N61: 91 | O61: 114 | P61: 78 | Q61: 140 | R61: 84 | S61: 141 | T61: 142 | U61: 145 | V61: 104 | W61: 79 | X61: 93 | Y61: 65 | Z61: 115 | AA61: 157 | AB61: 61 | AC61: 65 | AD61: 64 | AE61: 36 | AF61: 74 | AG61: 57 | AH61: 115 | AI61: 149 | AJ61: 101 | AK61: 140 | AL61: 91 | AM61: 113 | DT61: 57 | DU61: 57 | DV61: 57 | DX61: 1 | EB61: 56 | ED61: 57 | EE61: (57)
A62: 58(58) | B62: Lasse Nilsson | C62: Värends Hsk | D62: 100.3 | F62: 10 | G62: 1003 | I62: 0 | J62: 0 | K62: 0 | L62: 0 | M62: 0 | N62: 102 | O62: 122 | P62: 95 | Q62: 62 | R62: 173 | S62: 94 | T62: 95 | U62: 69 | V62: 112 | W62: 79 | DT62: 58 | DU62: 58 | DV62: 58 | DX62: 1 | EB62: 57 | ED62: 58 | EE62: (58)
A63: 59(59) | B63: Göran Persson | C63: Dynapac Södra | D63: 99.39130435 | F63: 23 | G63: 2286 | I63: 0 | J63: 0 | K63: 0 | L63: 0 | M63: 0 | N63: 74 | O63: 107 | P63: 99 | Q63: 123 | R63: 80 | S63: 66 | T63: 114 | U63: 155 | V63: 114 | W63: 76 | X63: 93 | Y63: 86 | Z63: 104 | AA63: 87 | AB63: 101 | AC63: 131 | AD63: 113 | AE63: 104 | AF63: 92 | AG63: 139 | AH63: 43 | AI63: 58 | AJ63: 127 | DT63: 59 | DU63: 59 | DV63: 59 | DX63: 1 | EB63: 58 | ED63: 59 | EE63: (59)
A64: 60(60) | B64: Lars-Åke Karlsson | C64: Jämjö Hsc | D64: 97.78571429 | F64: 14 | G64: 1369 | I64: 0 | J64: 0 | K64: 0 | L64: 0 | M64: 0 | N64: 97 | O64: 95 | P64: 76 | Q64: 109 | R64: 112 | S64: 77 | T64: 95 | U64: 85 | V64: 111 | W64: 101 | X64: 121 | Y64: 85 | Z64: 79 | AA64: 126 | DT64: 60 | DU64: 60 | DV64: 60 | DX64: 1 | EB64: 59 | ED64: 60 | EE64: (60)
A65: 61(61) | B65: Martin Antic | C65: Värends Hsk | D65: 97.21428571 | F65: 14 | G65: 1361 | I65: 0 | J65: 0 | K65: 0 | L65: 0 | M65: 0 | N65: 92 | O65: 106 | P65: 88 | Q65: 76 | R65: 120 | S65: 105 | T65: 104 | U65: 85 | V65: 82 | W65: 113 | X65: 81 | Y65: 72 | Z65: 135 | AA65: 102 | DT65: 61 | DU65: 61 | DV65: 61 | DX65: 1 | EB65: 60 | ED65: 61 | EE65: (61)
A66: 62(62) | B66: Peter Edlund | C66: Dynapac Södra | D66: 96.44444444 | F66: 9 | G66: 868 | I66: 0 | J66: 0 | K66: 0 | L66: 0 | M66: 0 | N66: 115 | O66: 143 | P66: 136 | Q66: 136 | R66: 87 | S66: 69 | T66: 30 | U66: 122 | V66: 30 | DT66: 62 | DU66: 62 | DV66: 62 | DX66: 1 | EB66: 61 | ED66: 62 | EE66: (62)
A67: 63(63) | B67: Lars-Erik Gren | C67: Team Småland Hsk | D67: 92.5 | F67: 2 | G67: 185 | I67: 0 | J67: 0 | K67: 0 | L67: 0 | M67: 0 | N67: 95 | O67: 90 | DT67: 63 | DU67: 63 | DV67: 63 | DX67: 1 | EB67: 62 | ED67: 63 | EE67: (63)
A68: 64(64) | B68: Sebastian Israelsson | C68: Sibbamåla | D68: 91.40909091 | F68: 22 | G68: 2011 | I68: 0 | J68: 0 | K68: 0 | L68: 0 | M68: 0 | N68: 55 | O68: 63 | P68: 102 | Q68: 71 | R68: 88 | S68: 100 | T68: 107 | U68: 58 | V68: 62 | W68: 78 | X68: 65 | Y68: 96 | Z68: 132 | AA68: 82 | AB68: 105 | AC68: 132 | AD68: 93 | AE68: 76 | AF68: 156 | AG68: 74 | AH68: 106 | AI68: 110 | DT68: 64 | DU68: 64 | DV68: 64 | DX68: 1 | EB68: 64 | ED68: 64 | EE68: (64)
A69: =DU69&EE69 -> 65(65) | B69: Ann-Marie Larsson | C69: Tingsryd | D69: =IF(F69>0.5,(G69/F69),0) -> 91.16 | F69: =COUNT(N69:BO69) -> 25 | G69: =SUM(N69:BO69) -> 2279 | I69: =COUNTIF(BQ69:DR69,2) -> 0 | J69: =COUNTIF(BQ69:DR69,-2) -> 0 | K69: =COUNTIF(BQ69:DR69,1) -> 0 | L69: =COUNTIF(BQ69:DR69,-1) -> 0 | M69: =IF(F69>0,(I69+K69)/(F69),0) -> 0 | N69: 49 | O69: 114 | P69: 95 | Q69: 165 | R69: 119 | S69: 65 | T69: 23 | U69: 90 | V69: 83 | W69: 98 | X69: 117 | Y69: 72 | Z69: 81 | AA69: 97 | AB69: 196 | AC69: 72 | AD69: 81 | AE69: 33 | AF69: 91 | AG69: 163 | AH69: 58 | AI69: 75 | AJ69: 86 | AK69: 92 | AL69: 64 | DT69: 65 | DU69: 65 | DV69: =IF(DX69=1,ROW(65:65),"-") -> 65 | DX69: 1 | EB69: 65 | ED69: =IF(DX69=1,DU69,IF(DX69="",DU69,"")) -> 65 | EE69: =IF(DX69=1,"("&DT69&")","("&DV69&")") -> (65)
A70: 66(66) | B70: Ulrika Rydell | C70: Värends Hsk | D70: 90.81818182 | F70: 11 | G70: 999 | I70: 0 | J70: 0 | K70: 0 | L70: 0 | M70: 0 | N70: 87 | O70: 61 | P70: 85 | Q70: 53 | R70: 146 | S70: 58 | T70: 107 | U70: 68 | V70: 113 | W70: 72 | X70: 149 | DT70: 66 | DU70: 66 | DV70: 66 | DX70: 1 | EB70: 66 | ED70: 66 | EE70: (66)
A71: 67(67) | B71: Rolf Johannesson | C71: Värends Hsk | D71: 87.15384615 | F71: 13 | G71: 1133 | I71: 0 | J71: 0 | K71: 0 | L71: 0 | M71: 0 | N71: 54 | O71: 73 | P71: 58 | Q71: 65 | R71: 98 | S71: 113 | T71: 100 | U71: 79 | V71: 86 | W71: 74 | X71: 155 | Y71: 83 | Z71: 95 | DT71: 67 | DU71: 67 | DV71: 67 | DX71: 1 | EB71: 67 | ED71: 67 | EE71: (67)
A72: 68(68) | B72: Åke Bergkvist | C72: Tingsryd | D72: 82.69230769 | F72: 26 | G72: 2150 | I72: 0 | J72: 0 | K72: 0 | L72: 0 | M72: 0 | N72: 44 | O72: 43 | P72: 55 | Q72: 55 | R72: 64 | S72: 64 | T72: 10 | U72: 57 | V72: 47 | W72: 110 | X72: 141 | Y72: 83 | Z72: 90 | AA72: 92 | AB72: 103 | AC72: 54 | AD72: 121 | AE72: 60 | AF72: 92 | AG72: 108 | AH72: 95 | AI72: 112 | AJ72: 136 | AK72: 142 | AL72: 101 | AM72: 71 | DT72: 68 | DU72: 68 | DV72: 68 | DX72: 1 | EB72: 68 | ED72: 68 | EE72: (68)
A73: 69(69) | B73: Marianne Karlsson | C73: Jämjö Hsc | D73: 80.42105263 | F73: 19 | G73: 1528 | I73: 0 | J73: 0 | K73: 0 | L73: 0 | M73: 0 | N73: 58 | O73: 112 | P73: 72 | Q73: 61 | R73: 59 | S73: 81 | T73: 122 | U73: 86 | V73: 43 | W73: 92 | X73: 68 | Y73: 85 | Z73: 70 | AA73: 80 | AB73: 79 | AC73: 110 | AD73: 110 | AE73: 68 | AF73: 72 | DT73: 69 | DU73: 69 | DV73: 69 | DX73: 1 | EB73: 69 | ED73: 69 | EE73: (69)
A74: 70(70) | B74: Lennart Karlsson | C74: Lanternan | D74: 79.5 | F74: 4 | G74: 318 | I74: 0 | J74: 0 | K74: 0 | L74: 0 | M74: 0 | N74: 64 | O74: 67 | P74: 106 | Q74: 81 | DT74: 70 | DU74: 70 | DV74: 70 | DX74: 1 | EB74: 70 | ED74: 70 | EE74: (70)
A75: 71(71) | B75: Gunnar Lundbeck | C75: Tingsryd | D75: 79.32 | F75: 25 | G75: 1983 | I75: 0 | J75: 0 | K75: 0 | L75: 0 | M75: 0 | N75: 93 | O75: 64 | P75: 79 | Q75: 138 | R75: 129 | S75: 28 | T75: 109 | U75: 101 | V75: 77 | W75: 87 | X75: 77 | Y75: 65 | Z75: 48 | AA75: 130 | AB75: 48 | AC75: 30 | AD75: 55 | AE75: 27 | AF75: 105 | AG75: 103 | AH75: 69 | AI75: 124 | AJ75: 63 | AK75: 62 | AL75: 72 | DT75: 71 | DU75: =IF(AND(D75=D74,D75=D73,D75=D72,D75=D71),ROW(67:67),IF(AND(D75=D74,D75=D73,D75=D72),ROW(68:68),IF(AND(D75=D74,D75=D73),ROW(69:69),IF(D75=D74,ROW(70:70),IF(D75>1,ROW(71:71),"-"))))) -> 71 | DV75: 71 | DX75: 1 | EB75: 114 | ED75: 71 | EE75: (71)
A76: 72(72) | B76: Alf Johansson | C76: Värends Hsk | D76: 78.2 | F76: 25 | G76: 1955 | I76: 0 | J76: 0 | K76: 0 | L76: 0 | M76: 0 | N76: 68 | O76: 85 | P76: 88 | Q76: 68 | R76: 50 | S76: 114 | T76: 157 | U76: 42 | V76: 95 | W76: 78 | X76: 60 | Y76: 124 | Z76: 51 | AA76: 45 | AB76: 83 | AC76: 50 | AD76: 42 | AE76: 81 | AF76: 59 | AG76: 86 | AH76: 64 | AI76: 142 | AJ76: 78 | AK76: 93 | AL76: 52 | DT76: 72 | DU76: 72 | DV76: 72 | DX76: 1 | EB76: 71 | ED76: 72 | EE76: (72)
A77: 73(73) | B77: Inger Andersson | C77: Korpen Nybro | D77: 77.6 | F77: 5 | G77: 388 | I77: 0 | J77: 0 | K77: 0 | L77: 0 | M77: 0 | N77: 87 | O77: 34 | P77: 89 | Q77: 144 | R77: 34 | DT77: 73 | DU77: 73 | DV77: 73 | DX77: 1 | EB77: 111 | ED77: 73 | EE77: (73)
A78: 74(74) | B78: Susanne Andersson | C78: Team Småland Hsk | D78: 75 | F78: 2 | G78: 150 | I78: 0 | J78: 0 | K78: 0 | L78: 0 | M78: 0 | N78: 78 | O78: 72 | DT78: 74 | DU78: 74 | DV78: 74 | DX78: 1 | EB78: 72 | ED78: 74 | EE78: (74)
A79: 75(75) | B79: Ulrika Strandahl | C79: Växjö | D79: 74.4 | F79: 5 | G79: 372 | I79: 0 | J79: 0 | K79: 0 | L79: 0 | M79: 0 | N79: 58 | O79: 116 | P79: 55 | Q79: 75 | R79: 68 | DT79: 75 | DU79: 75 | DV79: 75 | DX79: 1 | EB79: 73 | ED79: 75 | EE79: (75)
A80: 76(76) | B80: Kerstin Svensson | C80: Växjö | D80: 74.26666667 | F80: 15 | G80: 1114 | I80: 0 | J80: 0 | K80: 0 | L80: 0 | M80: 0 | N80: 69 | O80: 56 | P80: 106 | Q80: 78 | R80: 70 | S80: 85 | T80: 30 | U80: 114 | V80: 75 | W80: 51 | X80: 112 | Y80: 68 | Z80: 119 | AA80: 30 | AB80: 51 | DT80: 76 | DU80: 76 | DV80: 76 | DX80: 1 | EB80: 74 | ED80: 76 | EE80: (76)
A81: 77(77) | B81: Bertil Westergren | C81: Växjö | D81: 74 | F81: 3 | G81: 222 | I81: 0 | J81: 0 | K81: 0 | L81: 0 | M81: 0 | N81: 87 | O81: 44 | P81: 91 | DT81: 77 | DU81: 77 | DV81: 77 | DX81: 1 | EB81: 75 | ED81: 77 | EE81: (77)
A82: 78(78) | B82: Bertil Olsson | C82: Jämjö Hsc | D82: 63 | F82: 4 | G82: 252 | I82: 0 | J82: 0 | K82: 0 | L82: 0 | M82: 0 | N82: 45 | O82: 100 | P82: 74 | Q82: 33 | DT82: 78 | DU82: 78 | DV82: 78 | DX82: 1 | EB82: 76 | ED82: 78 | EE82: (78)
A83: 79(79) | B83: Allan Persson | C83: Tingsryd | D83: 60.66666667 | F83: 3 | G83: 182 | I83: 0 | J83: 0 | K83: 0 | L83: 0 | M83: 0 | N83: 80 | O83: 37 | P83: 65 | DT83: 79 | DU83: 79 | DV83: 79 | DX83: 1 | EB83: 77 | ED83: 79 | EE83: (79)
A84: 80(80) | B84: Anders Karlsson | C84: Värends Hsk | D84: 60.14285714 | F84: 7 | G84: 421 | I84: 0 | J84: 0 | K84: 0 | L84: 0 | M84: 0 | N84: 30 | O84: 34 | P84: 74 | Q84: 39 | R84: 67 | S84: 98 | T84: 79 | DT84: 80 | DU84: 80 | DV84: 80 | DX84: 1 | EB84: 78 | ED84: 80 | EE84: (80)
A85: 81(81) | B85: Elisabeth Brisendahl | C85: Tingsryd | D85: 52.5 | F85: 2 | G85: 105 | I85: 0 | J85: 0 | K85: 0 | L85: 0 | M85: 0 | N85: 27 | O85: 78 | DT85: 81 | DU85: 81 | DV85: 81 | DX85: 1 | EB85: 79 | ED85: 81 | EE85: (81)
A86: 82(82) | B86: Jonas Klarström | C86: Team Småland Hsk | D86: 47.5 | F86: 2 | G86: 95 | I86: 0 | J86: 0 | K86: 0 | L86: 0 | M86: 0 | N86: 71 | O86: 24 | DT86: 82 | DU86: 82 | DV86: 82 | DX86: 1 | EB86: 80 | ED86: 82 | EE86: (82)
A87: 83(83) | B87: Maria Andersson | C87: Team Småland Hsk | D87: 40 | F87: 2 | G87: 80 | I87: 0 | J87: 0 | K87: 0 | L87: 0 | M87: 0 | N87: 71 | O87: 9 | DT87: 83 | DU87: 83 | DV87: 83 | DX87: 1 | EB87: 81 | ED87: 83 | EE87: (83)
A88: 84(84) | B88: Solveig Brincner | C88: Värends Hsk | D88: 34.9 | F88: 10 | G88: 349 | I88: 0 | J88: 0 | K88: 0 | L88: 0 | M88: 0 | N88: 43 | O88: 10 | P88: 38 | Q88: 44 | R88: 23 | S88: 41 | T88: 17 | U88: 69 | V88: 20 | W88: 44 | DT88: 84 | DU88: 84 | DV88: 84 | DX88: 1 | EB88: 82 | ED88: 84 | EE88: (84)
A89: -(-) | D89: 0 | F89: 0 | G89: 0 | I89: 0 | J89: 0 | K89: 0 | L89: 0 | M89: 0 | DT89: - | DU89: - | DV89: 85 | DX89: 1 | EB89: 83 | ED89: - | EE89: (-)
A90: 85(85) | D90: 0 | F90: 0 | G90: 0 | I90: 0 | J90: 0 | K90: 0 | L90: 0 | M90: 0 | DT90: 85 | DU90: 85 | DV90: 86 | DX90: 1 | EB90: 84 | ED90: 85 | EE90: (85)
A91: 85(85) | D91: 0 | F91: 0 | G91: 0 | I91: 0 | J91: 0 | K91: 0 | L91: 0 | M91: 0 | DT91: 85 | DU91: 85 | DV91: 87 | DX91: 1 | EB91: 85 | ED91: 85 | EE91: (85)
A92: 85(85) | D92: 0 | F92: 0 | G92: 0 | I92: 0 | J92: 0 | K92: 0 | L92: 0 | M92: 0 | DT92: 85 | DU92: 85 | DV92: 88 | DX92: 1 | EB92: 86 | ED92: 85 | EE92: (85)
A93: 85(85) | D93: 0 | F93: 0 | G93: 0 | I93: 0 | J93: 0 | K93: 0 | L93: 0 | M93: 0 | DT93: 85 | DU93: 85 | DV93: 89 | DX93: 1 | EB93: 87 | ED93: 85 | EE93: (85)
A94: 86(86) | D94: 0 | F94: 0 | G94: 0 | I94: 0 | J94: 0 | K94: 0 | L94: 0 | M94: 0 | DT94: 86 | DU94: 86 | DV94: 90 | DX94: 1 | EB94: 88 | ED94: 86 | EE94: (86)
A95: 87(87) | D95: 0 | F95: 0 | G95: 0 | I95: 0 | J95: 0 | K95: 0 | L95: 0 | M95: 0 | DT95: 87 | DU95: 87 | DV95: 91 | DX95: 1 | EB95: 89 | ED95: 87 | EE95: (87)
A96: 88(88) | D96: 0 | F96: 0 | G96: 0 | I96: 0 | J96: 0 | K96: 0 | L96: 0 | M96: 0 | DT96: 88 | DU96: 88 | DV96: 92 | DX96: 1 | EB96: 112 | ED96: 88 | EE96: (88)
A97: 89(89) | D97: 0 | F97: 0 | G97: 0 | I97: 0 | J97: 0 | K97: 0 | L97: 0 | M97: 0 | DT97: 89 | DU97: 89 | DV97: 93 | DX97: 1 | EB97: 90 | ED97: 89 | EE97: (89)
A98: 90(90) | D98: 0 | F98: 0 | G98: 0 | I98: 0 | J98: 0 | K98: 0 | L98: 0 | M98: 0 | DT98: 90 | DU98: 90 | DV98: 94 | DX98: 1 | EB98: 91 | ED98: 90 | EE98: (90)
A99: 91(91) | D99: 0 | F99: 0 | G99: 0 | I99: 0 | J99: 0 | K99: 0 | L99: 0 | M99: 0 | DT99: 91 | DU99: 91 | DV99: 95 | DX99: 1 | EB99: 92 | ED99: 91 | EE99: (91)
A100: 92(92) | D100: 0 | F100: 0 | G100: 0 | I100: 0 | J100: 0 | K100: 0 | L100: 0 | M100: 0 | DT100: 92 | DU100: 92 | DV100: 96 | DX100: 1 | EB100: 63 | ED100: 92 | EE100: (92)
A101: 93(93) | D101: =IF(F101>0.5,(G101/F101),0) -> 0 | F101: =COUNT(N101:BO101) -> 0 | G101: =SUM(N101:BO101) -> 0 | I101: =COUNTIF(BQ101:DR101,2) -> 0 | J101: =COUNTIF(BQ101:DR101,-2) -> 0 | K101: =COUNTIF(BQ101:DR101,1) -> 0 | L101: =COUNTIF(BQ101:DR101,-1) -> 0 | M101: =IF(F101>0,(I101+K101)/(F101),0) -> 0 | DT101: 93 | DU101: 93 | DV101: =IF(DX101=1,ROW(97:97),"-") -> 97 | DX101: 1 | EB101: 93 | ED101: =IF(DX101=1,DU101,IF(DX101="",DU101,"")) -> 93 | EE101: =IF(DX101=1,"("&DT101&")","("&DV101&")") -> (93)
A102: 94(94) | D102: 0 | F102: 0 | G102: 0 | I102: 0 | J102: 0 | K102: 0 | L102: 0 | M102: 0 | DT102: 94 | DU102: 94 | DV102: 98 | DX102: 1 | EB102: 94 | ED102: 94 | EE102: (94)
A103: 95(95) | D103: 0 | F103: 0 | G103: 0 | I103: 0 | J103: 0 | K103: 0 | L103: 0 | M103: 0 | DT103: 95 | DU103: 95 | DV103: 99 | DX103: 1 | EB103: 95 | ED103: 95 | EE103: (95)
A104: 96(96) | D104: 0 | F104: 0 | G104: 0 | I104: 0 | J104: 0 | K104: 0 | L104: 0 | M104: 0 | DT104: 96 | DU104: 96 | DV104: 100 | DX104: 1 | EB104: 96 | ED104: 96 | EE104: (96)
A105: 97(97) | D105: 0 | F105: 0 | G105: 0 | I105: 0 | J105: 0 | K105: 0 | L105: 0 | M105: 0 | DT105: 97 | DU105: 97 | DV105: 101 | DX105: 1 | EB105: 97 | ED105: 97 | EE105: (97)
A106: 98(98) | D106: 0 | F106: 0 | G106: 0 | I106: 0 | J106: 0 | K106: 0 | L106: 0 | M106: 0 | DT106: 98 | DU106: 98 | DV106: 102 | DX106: 1 | EB106: 98 | ED106: 98 | EE106: (98)
A107: 99(99) | D107: 0 | F107: 0 | G107: 0 | I107: 0 | J107: 0 | K107: 0 | L107: 0 | M107: 0 | DT107: 99 | DU107: =IF(AND(D107=D106,D107=D105,D107=D104,D107=D103),ROW(99:99),IF(AND(D107=D106,D107=D105,D107=D104),ROW(100:100),IF(AND(D107=D106,D107=D105),ROW(101:101),IF(D107=D106,ROW(102:102),IF(D107>1,ROW(103:103),"-"))))) -> 99 | DV107: 103 | DX107: 1 | EB107: 99 | ED107: 99 | EE107: (99)
A108: 100(100) | D108: 0 | F108: 0 | G108: 0 | I108: 0 | J108: 0 | K108: 0 | L108: 0 | M108: 0 | DT108: 100 | DU108: 100 | DV108: 104 | DX108: 1 | EB108: 100 | ED108: 100 | EE108: (100)
A109: 101(101) | D109: 0 | F109: 0 | G109: 0 | I109: 0 | J109: 0 | K109: 0 | L109: 0 | M109: 0 | DT109: 101 | DU109: 101 | DV109: 105 | DX109: 1 | EB109: 101 | ED109: 101 | EE109: (101)
A110: 102(102) | D110: 0 | F110: 0 | G110: 0 | I110: 0 | J110: 0 | K110: 0 | L110: 0 | M110: 0 | DT110: 102 | DU110: 102 | DV110: 106 | DX110: 1 | EB110: 102 | ED110: 102 | EE110: (102)
A111: 103(103) | D111: 0 | F111: 0 | G111: 0 | I111: 0 | J111: 0 | K111: 0 | L111: 0 | M111: 0 | DT111: 103 | DU111: 103 | DV111: 107 | DX111: 1 | EB111: 110 | ED111: 103 | EE111: (103)
A112: 104(104) | D112: 0 | F112: 0 | G112: 0 | I112: 0 | J112: 0 | K112: 0 | L112: 0 | M112: 0 | DT112: 104 | DU112: 104 | DV112: 108 | DX112: 1 | EB112: 103 | ED112: 104 | EE112: (104)
A113: 105(105) | D113: 0 | F113: 0 | G113: 0 | I113: 0 | J113: 0 | K113: 0 | L113: 0 | M113: 0 | DT113: 105 | DU113: 105 | DV113: 109 | DX113: 1 | EB113: 104 | ED113: 105 | EE113: (105)
A114: 106(106) | D114: 0 | F114: 0 | G114: 0 | I114: 0 | J114: 0 | K114: 0 | L114: 0 | M114: 0 | DT114: 106 | DU114: 106 | DV114: 110 | DX114: 1 | EB114: 105 | ED114: 106 | EE114: (106)
A115: 107(107) | D115: 0 | F115: 0 | G115: 0 | I115: 0 | J115: 0 | K115: 0 | L115: 0 | M115: 0 | DT115: 107 | DU115: 107 | DV115: 111 | DX115: 1 | EB115: 106 | ED115: 107 | EE115: (107)
A116: 108(108) | D116: 0 | F116: 0 | G116: 0 | I116: 0 | J116: 0 | K116: 0 | L116: 0 | M116: 0 | DT116: 108 | DU116: 108 | DV116: 112 | DX116: 1 | EB116: 107 | ED116: 108 | EE116: (108)
A117: 109(109) | D117: 0 | F117: 0 | G117: 0 | I117: 0 | J117: 0 | K117: 0 | L117: 0 | M117: 0 | DT117: 109 | DU117: 109 | DV117: 113 | DX117: 1 | EB117: 108 | ED117: 109 | EE117: (109)
A118: 110(110) | D118: 0 | F118: 0 | G118: 0 | I118: 0 | J118: 0 | K118: 0 | L118: 0 | M118: 0 | DT118: 110 | DU118: 110 | DV118: 114 | DX118: 1 | EB118: 109 | ED118: 110 | EE118: (110)
A119: 111(111) | D119: 0 | F119: 0 | G119: 0 | I119: 0 | J119: 0 | K119: 0 | L119: 0 | M119: 0 | DT119: 111 | DU119: 111 | DV119: 115 | DX119: 1 | EB119: 112 | ED119: 111 | EE119: (111)
A120: 112(112) | D120: 0 | F120: 0 | G120: 0 | I120: 0 | J120: 0 | K120: 0 | L120: 0 | M120: 0 | DT120: 112 | DU120: 112 | DV120: 116 | DX120: 1 | EB120: 110 | ED120: 112 | EE120: (112)
A121: =DU121&EE121 -> 113(113) | D121: 0 | F121: 0 | G121: 0 | I121: 0 | J121: 0 | K121: 0 | L121: 0 | M121: 0 | DT121: 113 | DU121: =IF(AND(D121=D120,D121=D119,D121=D118,D121=D117),ROW(113:113),IF(AND(D121=D120,D121=D119,D121=D118),ROW(114:114),IF(AND(D121=D120,D121=D119),ROW(115:115),IF(D121=D120,ROW(116:116),IF(D121>1,ROW(117:117),"-"))))) -> 113 | DV121: =IF(DX121=1,ROW(117:117),"-") -> 117 | DX121: 1 | EB121: 111 | ED121: =IF(DX121=1,DU121,IF(DX121="",DU121,"")) -> 113 | EE121: =IF(DX121=1,"("&DT121&")","("&DV121&")") -> (113)
A122: =DU122&EE122 -> 114(114) | D122: 0 | F122: 0 | G122: 0 | I122: 0 | J122: 0 | K122: 0 | L122: 0 | M122: 0 | DT122: 114 | DU122: =IF(AND(D122=D121,D122=D120,D122=D119,D122=D118),ROW(114:114),IF(AND(D122=D121,D122=D120,D122=D119),ROW(115:115),IF(AND(D122=D121,D122=D120),ROW(116:116),IF(D122=D121,ROW(117:117),IF(D122>1,ROW(118:118),"-"))))) -> 114 | DV122: =IF(DX122=1,ROW(118:118),"-") -> 118 | DX122: 1 | EB122: 113 | ED122: =IF(DX122=1,DU122,IF(DX122="",DU122,"")) -> 114 | EE122: =IF(DX122=1,"("&DT122&")","("&DV122&")") -> (114)
A123: =DU123&EE123 -> 115(115) | D123: 0 | F123: 0 | G123: 0 | I123: 0 | J123: 0 | K123: 0 | L123: 0 | M123: 0 | DT123: 115 | DU123: =IF(AND(D123=D122,D123=D121,D123=D120,D123=D119),ROW(115:115),IF(AND(D123=D122,D123=D121,D123=D120),ROW(116:116),IF(AND(D123=D122,D123=D121),ROW(117:117),IF(D123=D122,ROW(118:118),IF(D123>1,ROW(119:119),"-"))))) -> 115 | DV123: =IF(DX123=1,ROW(119:119),"-") -> 119 | DX123: 1 | EB123: 113 | ED123: =IF(DX123=1,DU123,IF(DX123="",DU123,"")) -> 115 | EE123: =IF(DX123=1,"("&DT123&")","("&DV123&")") -> (115)
